Workbook

Sheet Basic Sculpting - Interpolate
B2: Case 1: Basic | F2: 0 | G2: 1 | H2: 2 | I2: 3 | J2: 4 | K2: 5 | L2: 6 | M2: 7 | N2: 8 | O2: 9 | P2: 10 | Q2: 11 | R2: 12 | S2: 13 | T2: 14 | U2: 15 | V2: 16 | W2: 17 | X2: 18 | Y2: 19 | Z2: 20 | AA2: 21 | AB2: 22 | AC2: 23
D3: Repayment Flag | E3: =E7 -> 15
B5: Inputs
D6: Target DSCR | E6: 1.4
D7: Tenor | E7: 15
D8: Intrest Rate | E8: 0.05
D10: CFADS Growth Year | F10: 0 | G10: 1 | H10: 3 | I10: 7 | J10: 10
D11: CFADS Growth Rate | F11: 0.08 | G11: 0.08 | H11: 0.05 | I11: 0.03 | J11: 0.02
D13: Base CFADS | G13: 100 | H13: =G13 -> 100 | I13: =H13 -> 100 | J13: 100 | K13: 100 | L13: 100 | M13: 100 | N13: 100 | O13: 100 | P13: 100 | Q13: 100 | R13: 100 | S13: 100 | T13: 100 | U13: 100 | V13: 100 | W13: 100 | X13: 100 | Y13: 100 | Z13: 100 | AA13: 100 | AB13: 100 | AC13: 100
B15: CFADS
D16: Growth Rate
D17: CFADS Index - Lookup | F17: 1
D18: Growth Rate Interpolate
D19: CFADS Index - Interpolate | F19: 1
D20: CFADS | G20: =G13*G19 -> 0 | H20: =H13*H19 -> 0 | I20: 0 | J20: 0 | K20: 0 | L20: 0 | M20: 0 | N20: 0 | O20: 0 | P20: 0 | Q20: 0 | R20: 0 | S20: 0 | T20: 0 | U20: 0 | V20: 0 | W20: 0 | X20: 0 | Y20: 0 | Z20: 0 | AA20: 0 | AB20: 0 | AC20: 0
D22: Target Debt Service | F22: =E6 -> 1.4 | G22: =G20/$F$22*G3 -> 0 | H22: 0 | I22: 0 | J22: 0 | K22: 0 | L22: 0 | M22: 0 | N22: 0 | O22: 0 | P22: 0 | Q22: 0 | R22: 0 | S22: 0 | T22: 0 | U22: 0 | V22: 0 | W22: 0 | X22: 0 | Y22: 0 | Z22: 0 | AA22: 0 | AB22: 0 | AC22: 0
D24: Debt Amount from PV | E24: =E8 -> 0.05
B26: Results
C27: Debt Balance
D28: Opening Balance | G28: =F30 -> 0 | H28: 0 | I28: 0 | J28: 0 | K28: 0 | L28: 0 | M28: 0 | N28: 0 | O28: 0 | P28: 0 | Q28: 0 | R28: 0 | S28: 0 | T28: 0 | U28: 0 | V28: 0 | W28: 0 | X28: 0 | Y28: 0 | Z28: 0 | AA28: 0 | AB28: 0 | AC28: 0
D29: Repayments
D30: Closing Balance | F30: =F24 -> 0 | G30: =G28-G29 -> 0 | H30: 0 | I30: 0 | J30: 0 | K30: 0 | L30: 0 | M30: 0 | N30: 0 | O30: 0 | P30: 0 | Q30: 0 | R30: 0 | S30: 0 | T30: 0 | U30: 0 | V30: 0 | W30: 0 | X30: 0 | Y30: 0 | Z30: 0 | AA30: 0 | AB30: 0 | AC30: 0
D31: Interest | G31: =$E$8*G28 -> 0 | H31: 0 | I31: 0 | J31: 0 | K31: 0 | L31: 0 | M31: 0 | N31: 0 | O31: 0 | P31: 0 | Q31: 0 | R31: 0 | S31: 0 | T31: 0 | U31: 0 | V31: 0 | W31: 0 | X31: 0 | Y31: 0 | Z31: 0 | AA31: 0 | AB31: 0 | AC31: 0
D33: DSCR | E33: =MIN(G33:AC33) -> 0 | G33: =IF(G31+G29>0.1,G20/(G31+G29)) -> FALSE | H33: =IF(H31+H29>0.1,H20/(H31+H29)) -> FALSE | I33: FALSE | J33: FALSE | K33: FALSE | L33: FALSE | M33: FALSE | N33: FALSE | O33: FALSE | P33: FALSE | Q33: FALSE | R33: FALSE | S33: FALSE | T33: FALSE | U33: FALSE | V33: FALSE | W33: FALSE | X33: FALSE | Y33: FALSE | Z33: FALSE | AA33: FALSE | AB33: FALSE | AC33: FALSE
D35: PV CFADS | E35: =E8 -> 0.05 | F35: =NPV(E35,G20:AC20) -> 0
D36: Debt =PV Debt Service | F36: =F24 -> 0
D38: PLCR
D40: CFADS over Debt Life | G40: =G20*G3 -> 0 | H40: =H20*H3 -> 0 | I40: 0 | J40: 0 | K40: 0 | L40: 0 | M40: 0 | N40: 0 | O40: 0 | P40: 0 | Q40: 0 | R40: 0 | S40: 0 | T40: 0 | U40: 0 | V40: 0 | W40: 0 | X40: 0 | Y40: 0 | Z40: 0 | AA40: 0 | AB40: 0 | AC40: 0
D41: PV CFADS over Debt Life | E41: =E8 -> 0.05 | F41: =NPV(E41,G40:AC40) -> 0
D42: Debt =PV Debt Service | F42: =F36 -> 0
D44: LLCR
C46: IRR's
D47: Capital Expenditure | F47: 1700
D48: Project Cash Flow | F48: =F20-F47 -> -1700 | G48: =G20-G47 -> 0 | H48: 0 | I48: 0 | J48: 0 | K48: 0 | L48: 0 | M48: 0 | N48: 0 | O48: 0 | P48: 0 | Q48: 0 | R48: 0 | S48: 0 | T48: 0 | U48: 0 | V48: 0 | W48: 0 | X48: 0 | Y48: 0 | Z48: 0 | AA48: 0 | AB48: 0 | AC48: 0
D49: Project IRR
D51: Equity Issued | F51: =F48+F36 -> -1700
D52: Equity Cash Flow | F52: =F51 -> -1700
D53: Equity IRR
C55: Graph
G56: =G2 -> 1 | H56: =H2 -> 2 | I56: 3 | J56: 4 | K56: 5 | L56: 6 | M56: 7 | N56: 8 | O56: 9 | P56: 10 | Q56: 11 | R56: 12 | S56: 13 | T56: 14 | U56: 15 | V56: 16 | W56: 17 | X56: 18 | Y56: 19 | Z56: 20 | AA56: 21 | AB56: 22 | AC56: 23
D57: CFADS | G57: =G20 -> 0 | H57: =H20 -> 0 | I57: 0 | J57: 0 | K57: 0 | L57: 0 | M57: 0 | N57: 0 | O57: 0 | P57: 0 | Q57: 0 | R57: 0 | S57: 0 | T57: 0 | U57: 0 | V57: 0 | W57: 0 | X57: 0 | Y57: 0 | Z57: 0 | AA57: 0 | AB57: 0 | AC57: 0
D58: Debt Service | G58: =G22 -> 0 | H58: =H22 -> 0 | I58: 0 | J58: 0 | K58: 0 | L58: 0 | M58: 0 | N58: 0 | O58: 0 | P58: 0 | Q58: 0 | R58: 0 | S58: 0 | T58: 0 | U58: 0 | V58: 0 | W58: 0 | X58: 0 | Y58: 0 | Z58: 0 | AA58: 0 | AB58: 0 | AC58: 0

Sheet Changing DSCR, Interest
B2: Case 1: Basic | F2: 0 | G2: 1 | H2: 2 | I2: 3 | J2: 4 | K2: 5 | L2: 6 | M2: 7 | N2: 8 | O2: 9 | P2: 10 | Q2: 11 | R2: 12 | S2: 13 | T2: 14 | U2: 15 | V2: 16 | W2: 17 | X2: 18 | Y2: 19 | Z2: 20 | AA2: 21 | AB2: 22 | AC2: 23
D3: Repayment Flag | E3: =E6 -> 15 | G3: =G2<=$E$3 -> TRUE | H3: TRUE | I3: TRUE | J3: TRUE | K3: TRUE | L3: TRUE | M3: TRUE | N3: TRUE | O3: TRUE | P3: TRUE | Q3: TRUE | R3: TRUE | S3: TRUE | T3: TRUE | U3: TRUE | V3: FALSE | W3: FALSE | X3: FALSE | Y3: FALSE | Z3: FALSE | AA3: FALSE | AB3: FALSE | AC3: FALSE
B5: Inputs
D6: Tenor | E6: 15
D8: CFADS Growth Year | F8: 0 | G8: 1 | H8: 3 | I8: 7 | J8: 10
D9: CFADS Growth Rate | F9: 0.08 | G9: 0.08 | H9: 0.05 | I9: 0.03 | J9: 0.02
D11: Intrest Rate | F11: 0.04 | G11: 0.0425 | H11: 0.045 | I11: 0.05 | J11: 0.0525
D13: Target DSCR | F13: 1.3 | G13: 1.3 | H13: 1.4 | I13: 1.42 | J13: 1.45
D15: Base CFADS | G15: 100 | H15: =G15 -> 100 | I15: =H15 -> 100 | J15: 100 | K15: 100 | L15: 100 | M15: 100 | N15: 100 | O15: 100 | P15: 100 | Q15: 100 | R15: 100 | S15: 100 | T15: 100 | U15: 100 | V15: 100 | W15: 100 | X15: 100 | Y15: 100 | Z15: 100 | AA15: 100 | AB15: 100 | AC15: 100
B17: CFADS
D18: Growth Rate | G18: =LOOKUP(G2,8:8,9:9) -> 0.08 | H18: 0.08 | I18: 0.05 | J18: 0.05 | K18: 0.05 | L18: 0.05 | M18: 0.03 | N18: 0.03 | O18: 0.03 | P18: 0.02 | Q18: 0.02 | R18: 0.02 | S18: 0.02 | T18: 0.02 | U18: 0.02 | V18: 0.02 | W18: 0.02 | X18: 0.02 | Y18: 0.02 | Z18: 0.02 | AA18: 0.02 | AB18: 0.02 | AC18: 0.02
D19: CFADS Index - Lookup | F19: 1 | G19: =F19*(1+G18) -> 1.08 | H19: =G19*(1+H18) -> 1.1664 | I19: 1.22472 | J19: 1.285956 | K19: 1.3502538 | L19: 1.41776649 | M19: 1.460299485 | N19: 1.504108469 | O19: 1.549231723 | P19: 1.580216358 | Q19: 1.611820685 | R19: 1.644057099 | S19: 1.676938241 | T19: 1.710477005 | U19: 1.744686546 | V19: 1.779580276 | W19: 1.815171882 | X19: 1.85147532 | Y19: 1.888504826 | Z19: 1.926274923 | AA19: 1.964800421 | AB19: 2.004096429 | AC19: 2.044178358
D20: Growth Rate Interpolate | G20: =interpolate_look_up(G2,8:8,9:9) -> 0.08 | H20: =interpolate_look_up(H2,8:8,9:9) -> 0.0632455532 | I20: =interpolate_look_up(I2,8:8,9:9) -> 0.05 | J20: =interpolate_look_up(J2,8:8,9:9) -> 0.04400558684 | K20: =interpolate_look_up(K2,8:8,9:9) -> 0.03872983346 | L20: =interpolate_look_up(L2,8:8,9:9) -> 0.03408658099 | M20: =interpolate_look_up(M2,8:8,9:9) -> 0.03 | N20: =interpolate_look_up(N2,8:8,9:9) -> 0.02620741394 | O20: =interpolate_look_up(O2,8:8,9:9) -> 0.02289428485 | P20: =interpolate_look_up(P2,8:8,9:9) -> 0.02 | Q20: =interpolate_look_up(Q2,8:8,9:9) -> 0.02 | R20: =interpolate_look_up(R2,8:8,9:9) -> 0.02 | S20: =interpolate_look_up(S2,8:8,9:9) -> 0.02 | T20: =interpolate_look_up(T2,8:8,9:9) -> 0.02 | U20: =interpolate_look_up(U2,8:8,9:9) -> 0.02 | V20: =interpolate_look_up(V2,8:8,9:9) -> 0.02 | W20: =interpolate_look_up(W2,8:8,9:9) -> 0.02 | X20: =interpolate_look_up(X2,8:8,9:9) -> 0.02 | Y20: =interpolate_look_up(Y2,8:8,9:9) -> 0.02 | Z20: =interpolate_look_up(Z2,8:8,9:9) -> 0.02 | AA20: =interpolate_look_up(AA2,8:8,9:9) -> 0.02 | AB20: =interpolate_look_up(AB2,8:8,9:9) -> 0.02 | AC20: =interpolate_look_up(AC2,8:8,9:9) -> 0.02
D21: CFADS Index - Interpolate | F21: 1 | G21: =F21*(1+G20) -> 1.08 | H21: =G21*(1+H20) -> 1.148305197 | I21: 1.205720457 | J21: 1.258778894 | K21: 1.307531191 | L21: 1.352100458 | M21: 1.392663472 | N21: 1.42916158 | O21: 1.461881213 | P21: 1.491118837 | Q21: 1.520941214 | R21: 1.551360038 | S21: 1.582387239 | T21: 1.614034983 | U21: 1.646315683 | V21: 1.679241997 | W21: 1.712826837 | X21: 1.747083373 | Y21: 1.782025041 | Z21: 1.817665542 | AA21: 1.854018852 | AB21: 1.891099229 | AC21: 1.928921214
D22: CFADS | G22: =G15*G21 -> 108 | H22: =H15*H21 -> 114.8305197 | I22: 120.5720457 | J22: 125.8778894 | K22: 130.7531191 | L22: 135.2100458 | M22: 139.2663472 | N22: 142.916158 | O22: 146.1881213 | P22: 149.1118837 | Q22: 152.0941214 | R22: 155.1360038 | S22: 158.2387239 | T22: 161.4034983 | U22: 164.6315683 | V22: 167.9241997 | W22: 171.2826837 | X22: 174.7083373 | Y22: 178.2025041 | Z22: 181.7665542 | AA22: 185.4018852 | AB22: 189.1099229 | AC22: 192.8921214
D24: Target DSCR | G24: =LOOKUP(G2,8:8,13:13) -> 1.3 | H24: 1.3 | I24: 1.4 | J24: 1.4 | K24: 1.4 | L24: 1.4 | M24: 1.42 | N24: 1.42 | O24: 1.42 | P24: 1.45 | Q24: 1.45 | R24: 1.45 | S24: 1.45 | T24: 1.45 | U24: 1.45 | V24: 1.45 | W24: 1.45 | X24: 1.45 | Y24: 1.45 | Z24: 1.45 | AA24: 1.45 | AB24: 1.45 | AC24: 1.45
D25: Target Debt Service
D27: Interest Rate
D28: Interest Rate Index | F28: 1
D29: Debt Amount from PV
B31: Results
C32: Debt Balance
D33: Opening Balance | G33: =F35 -> 0 | H33: 0 | I33: 0 | J33: 0 | K33: 0 | L33: 0 | M33: 0 | N33: 0 | O33: 0 | P33: 0 | Q33: 0 | R33: 0 | S33: 0 | T33: 0 | U33: 0 | V33: 0 | W33: 0 | X33: 0 | Y33: 0 | Z33: 0 | AA33: 0 | AB33: 0 | AC33: 0
D34: Repayments | G34: =G25-G36 -> 0 | H34: 0 | I34: 0 | J34: 0 | K34: 0 | L34: 0 | M34: 0 | N34: 0 | O34: 0 | P34: 0 | Q34: 0 | R34: 0 | S34: 0 | T34: 0 | U34: 0 | V34: 0 | W34: 0 | X34: 0 | Y34: 0 | Z34: 0 | AA34: 0 | AB34: 0 | AC34: 0
D35: Closing Balance | F35: =F29 -> 0 | G35: =G33-G34 -> 0 | H35: 0 | I35: 0 | J35: 0 | K35: 0 | L35: 0 | M35: 0 | N35: 0 | O35: 0 | P35: 0 | Q35: 0 | R35: 0 | S35: 0 | T35: 0 | U35: 0 | V35: 0 | W35: 0 | X35: 0 | Y35: 0 | Z35: 0 | AA35: 0 | AB35: 0 | AC35: 0
D36: Interest | G36: =G33*G27 -> 0 | H36: =H33*H27 -> 0 | I36: 0 | J36: 0 | K36: 0 | L36: 0 | M36: 0 | N36: 0 | O36: 0 | P36: 0 | Q36: 0 | R36: 0 | S36: 0 | T36: 0 | U36: 0 | V36: 0 | W36: 0 | X36: 0 | Y36: 0 | Z36: 0 | AA36: 0 | AB36: 0 | AC36: 0
D38: Check | E38: =ROUND(LOOKUP(E6,2:2,35:35),0)=0 -> TRUE
D40: DSCR | E40: =MIN(G40:AC40) -> 0 | G40: =IF(G36+G34>0.1,G22/(G36+G34)) -> FALSE | H40: =IF(H36+H34>0.1,H22/(H36+H34)) -> FALSE | I40: FALSE | J40: FALSE | K40: FALSE | L40: FALSE | M40: FALSE | N40: FALSE | O40: FALSE | P40: FALSE | Q40: FALSE | R40: FALSE | S40: FALSE | T40: FALSE | U40: FALSE | V40: FALSE | W40: FALSE | X40: FALSE | Y40: FALSE | Z40: FALSE | AA40: FALSE | AB40: FALSE | AC40: FALSE
D42: PV CFADS | E42: =E11 -> 0 | F42: =NPV(E42,G22:AC22) -> 3545.518254
D43: Debt =PV Debt Service | F43: =F29 -> 0
D45: PLCR | F45: =F42/F43 -> 
D47: CFADS over Debt Life | G47: =G22*G3 -> 108 | H47: 114.8305197 | I47: 120.5720457 | J47: 125.8778894 | K47: 130.7531191 | L47: 135.2100458 | M47: 139.2663472 | N47: 142.916158 | O47: 146.1881213 | P47: 149.1118837 | Q47: 152.0941214 | R47: 155.1360038 | S47: 158.2387239 | T47: 161.4034983 | U47: 164.6315683 | V47: 0 | W47: 0 | X47: 0 | Y47: 0 | Z47: 0 | AA47: 0 | AB47: 0 | AC47: 0
D48: PV CFADS over Debt Life | E48: =E11 -> 0 | F48: =NPV(E48,G47:AC47) -> 2104.230046
D49: Debt =PV Debt Service | F49: =F43 -> 0
D51: LLCR | F51: =F48/F49 -> 
C53: IRR's
D54: Capital Expenditure | F54: 1700
D55: Project Cash Flow | F55: =F22-F54 -> -1700 | G55: =G22-G54 -> 108 | H55: 114.8305197 | I55: 120.5720457 | J55: 125.8778894 | K55: 130.7531191 | L55: 135.2100458 | M55: 139.2663472 | N55: 142.916158 | O55: 146.1881213 | P55: 149.1118837 | Q55: 152.0941214 | R55: 155.1360038 | S55: 158.2387239 | T55: 161.4034983 | U55: 164.6315683 | V55: 167.9241997 | W55: 171.2826837 | X55: 174.7083373 | Y55: 178.2025041 | Z55: 181.7665542 | AA55: 185.4018852 | AB55: 189.1099229 | AC55: 192.8921214
D56: Project IRR | E56: =IRR(F55:AC55) -> 0.06500548226
D58: Equity Issued | F58: =F55+F43 -> -1700
D59: Equity Cash Flow | F59: =F58 -> -1700 | G59: =G22-G25 -> 108 | H59: =H22-H25 -> 114.8305197 | I59: 120.5720457 | J59: 125.8778894 | K59: 130.7531191 | L59: 135.2100458 | M59: 139.2663472 | N59: 142.916158 | O59: 146.1881213 | P59: 149.1118837 | Q59: 152.0941214 | R59: 155.1360038 | S59: 158.2387239 | T59: 161.4034983 | U59: 164.6315683 | V59: 167.9241997 | W59: 171.2826837 | X59: 174.7083373 | Y59: 178.2025041 | Z59: 181.7665542 | AA59: 185.4018852 | AB59: 189.1099229 | AC59: 192.8921214
D60: Equity IRR | E60: =IRR(F59:AC59) -> 0.06500548226
D62: Debt to Capital | F62: =F49/F54 -> 0
C64: Graph
G65: =G2 -> 1 | H65: 2 | I65: 3 | J65: 4 | K65: 5 | L65: 6 | M65: 7 | N65: 8 | O65: 9 | P65: 10 | Q65: 11 | R65: 12 | S65: 13 | T65: 14 | U65: 15 | V65: 16 | W65: 17 | X65: 18 | Y65: 19 | Z65: 20 | AA65: 21 | AB65: 22 | AC65: 23
D66: CFADS | G66: =G22 -> 108 | H66: =H22 -> 114.8305197 | I66: 120.5720457 | J66: 125.8778894 | K66: 130.7531191 | L66: 135.2100458 | M66: 139.2663472 | N66: 142.916158 | O66: 146.1881213 | P66: 149.1118837 | Q66: 152.0941214 | R66: 155.1360038 | S66: 158.2387239 | T66: 161.4034983 | U66: 164.6315683 | V66: 167.9241997 | W66: 171.2826837 | X66: 174.7083373 | Y66: 178.2025041 | Z66: 181.7665542 | AA66: 185.4018852 | AB66: 189.1099229 | AC66: 192.8921214
D67: Debt Service | G67: =G25 -> 0 | H67: =H25 -> 0 | I67: 0 | J67: 0 | K67: 0 | L67: 0 | M67: 0 | N67: 0 | O67: 0 | P67: 0 | Q67: 0 | R67: 0 | S67: 0 | T67: 0 | U67: 0 | V67: 0 | W67: 0 | X67: 0 | Y67: 0 | Z67: 0 | AA67: 0 | AB67: 0 | AC67: 0

Sheet Fixed Debt and DSCR
B2: Case 1: Basic | F2: 0 | G2: 1 | H2: 2 | I2: 3 | J2: 4 | K2: 5 | L2: 6 | M2: 7 | N2: 8 | O2: 9 | P2: 10 | Q2: 11 | R2: 12 | S2: 13 | T2: 14 | U2: 15 | V2: 16 | W2: 17 | X2: 18 | Y2: 19 | Z2: 20 | AA2: 21 | AB2: 22 | AC2: 23
D3: Repayment Flag | E3: =E6 -> 20 | G3: =G2<=$E$3 -> TRUE | H3: TRUE | I3: TRUE | J3: TRUE | K3: TRUE | L3: TRUE | M3: TRUE | N3: TRUE | O3: TRUE | P3: TRUE | Q3: TRUE | R3: TRUE | S3: TRUE | T3: TRUE | U3: TRUE | V3: TRUE | W3: TRUE | X3: TRUE | Y3: TRUE | Z3: TRUE | AA3: FALSE | AB3: FALSE | AC3: FALSE
B5: Inputs
D6: Tenor | E6: 20
D7: Capital Expenditure | F7: 1700
D8: Debt to Capital | F8: 0.8
D9: Debt Target
D11: Apply Target DSCR with Minimum | F11: FALSE
D13: CFADS Growth Year | F13: 0 | G13: 1 | H13: 3 | I13: 7 | J13: 10
D14: CFADS Growth Rate | F14: 0.08 | G14: 0.08 | H14: 0.05 | I14: 0.03 | J14: 0.02
D16: Intrest Rate | F16: 0.04 | G16: 0.0425 | H16: 0.045 | I16: 0.05 | J16: 0.0525
D18: Target DSCR | F18: 1.2 | G18: 1.2 | H18: 1.2 | I18: 1.2 | J18: 1.2
D20: Base CFADS | G20: 100 | H20: =G20 -> 100 | I20: =H20 -> 100 | J20: 100 | K20: 100 | L20: 100 | M20: 100 | N20: 100 | O20: 100 | P20: 100 | Q20: 100 | R20: 100 | S20: 100 | T20: 100 | U20: 100 | V20: 100 | W20: 100 | X20: 100 | Y20: 100 | Z20: 100 | AA20: 100 | AB20: 100 | AC20: 100
B22: CFADS
D23: Growth Rate | G23: =LOOKUP(G2,13:13,14:14) -> 0.08 | H23: 0.08 | I23: 0.05 | J23: 0.05 | K23: 0.05 | L23: 0.05 | M23: 0.03 | N23: 0.03 | O23: 0.03 | P23: 0.02 | Q23: 0.02 | R23: 0.02 | S23: 0.02 | T23: 0.02 | U23: 0.02 | V23: 0.02 | W23: 0.02 | X23: 0.02 | Y23: 0.02 | Z23: 0.02 | AA23: 0.02 | AB23: 0.02 | AC23: 0.02
D24: CFADS Index - Lookup | F24: 1 | G24: =F24*(1+G23) -> 1.08 | H24: =G24*(1+H23) -> 1.1664 | I24: 1.22472 | J24: 1.285956 | K24: 1.3502538 | L24: 1.41776649 | M24: 1.460299485 | N24: 1.504108469 | O24: 1.549231723 | P24: 1.580216358 | Q24: 1.611820685 | R24: 1.644057099 | S24: 1.676938241 | T24: 1.710477005 | U24: 1.744686546 | V24: 1.779580276 | W24: 1.815171882 | X24: 1.85147532 | Y24: 1.888504826 | Z24: 1.926274923 | AA24: 1.964800421 | AB24: 2.004096429 | AC24: 2.044178358
D25: Growth Rate Interpolate | G25: =interpolate_look_up(G2,13:13,14:14) -> 0.08 | H25: =interpolate_look_up(H2,13:13,14:14) -> 0.0632455532 | I25: =interpolate_look_up(I2,13:13,14:14) -> 0.05 | J25: =interpolate_look_up(J2,13:13,14:14) -> 0.04400558684 | K25: =interpolate_look_up(K2,13:13,14:14) -> 0.03872983346 | L25: =interpolate_look_up(L2,13:13,14:14) -> 0.03408658099 | M25: =interpolate_look_up(M2,13:13,14:14) -> 0.03 | N25: =interpolate_look_up(N2,13:13,14:14) -> 0.02620741394 | O25: =interpolate_look_up(O2,13:13,14:14) -> 0.02289428485 | P25: =interpolate_look_up(P2,13:13,14:14) -> 0.02 | Q25: =interpolate_look_up(Q2,13:13,14:14) -> 0.02 | R25: =interpolate_look_up(R2,13:13,14:14) -> 0.02 | S25: =interpolate_look_up(S2,13:13,14:14) -> 0.02 | T25: =interpolate_look_up(T2,13:13,14:14) -> 0.02 | U25: =interpolate_look_up(U2,13:13,14:14) -> 0.02 | V25: =interpolate_look_up(V2,13:13,14:14) -> 0.02 | W25: =interpolate_look_up(W2,13:13,14:14) -> 0.02 | X25: =interpolate_look_up(X2,13:13,14:14) -> 0.02 | Y25: =interpolate_look_up(Y2,13:13,14:14) -> 0.02 | Z25: =interpolate_look_up(Z2,13:13,14:14) -> 0.02 | AA25: =interpolate_look_up(AA2,13:13,14:14) -> 0.02 | AB25: =interpolate_look_up(AB2,13:13,14:14) -> 0.02 | AC25: =interpolate_look_up(AC2,13:13,14:14) -> 0.02
D26: CFADS Index - Interpolate | F26: 1 | G26: =F26*(1+G25) -> 1.08 | H26: =G26*(1+H25) -> 1.148305197 | I26: 1.205720457 | J26: 1.258778894 | K26: 1.307531191 | L26: 1.352100458 | M26: 1.392663472 | N26: 1.42916158 | O26: 1.461881213 | P26: 1.491118837 | Q26: 1.520941214 | R26: 1.551360038 | S26: 1.582387239 | T26: 1.614034983 | U26: 1.646315683 | V26: 1.679241997 | W26: 1.712826837 | X26: 1.747083373 | Y26: 1.782025041 | Z26: 1.817665542 | AA26: 1.854018852 | AB26: 1.891099229 | AC26: 1.928921214
D27: CFADS | G27: =G20*G26 -> 108 | H27: =H20*H26 -> 114.8305197 | I27: 120.5720457 | J27: 125.8778894 | K27: 130.7531191 | L27: 135.2100458 | M27: 139.2663472 | N27: 142.916158 | O27: 146.1881213 | P27: 149.1118837 | Q27: 152.0941214 | R27: 155.1360038 | S27: 158.2387239 | T27: 161.4034983 | U27: 164.6315683 | V27: 167.9241997 | W27: 171.2826837 | X27: 174.7083373 | Y27: 178.2025041 | Z27: 181.7665542 | AA27: 185.4018852 | AB27: 189.1099229 | AC27: 192.8921214
D29: Interest Rate | G29: =LOOKUP(G2,13:13,16:16) -> 0.0425 | H29: 0.0425 | I29: 0.045 | J29: 0.045 | K29: 0.045 | L29: 0.045 | M29: 0.05 | N29: 0.05 | O29: 0.05 | P29: 0.0525 | Q29: 0.0525 | R29: 0.0525 | S29: 0.0525 | T29: 0.0525 | U29: 0.0525 | V29: 0.0525 | W29: 0.0525 | X29: 0.0525 | Y29: 0.0525 | Z29: 0.0525 | AA29: 0.0525 | AB29: 0.0525 | AC29: 0.0525
D30: Interest Rate Index | F30: 1 | G30: =F30*(1+G29) -> 1.0425 | H30: =G30*(1+H29) -> 1.08680625 | I30: 1.135712531 | J30: 1.186819595 | K30: 1.240226477 | L30: 1.296036668 | M30: 1.360838502 | N30: 1.428880427 | O30: 1.500324448 | P30: 1.579091482 | Q30: 1.661993785 | R30: 1.749248458 | S30: 1.841084002 | T30: 1.937740912 | U30: 2.03947231 | V30: 2.146544607 | W30: 2.259238199 | X30: 2.377848204 | Y30: 2.502685235 | Z30: 2.634076209 | AA30: 2.77236521 | AB30: 2.917914384 | AC30: 3.071104889
D31: CFADS over Debt Term
D32: PV of CFADS at Interest Rate
D33: Implied LLCR for Debt Service
D35: Target DSCR | G35: =LOOKUP(G2,13:13,18:18) -> 1.2 | H35: 1.2 | I35: 1.2 | J35: 1.2 | K35: 1.2 | L35: 1.2 | M35: 1.2 | N35: 1.2 | O35: 1.2 | P35: 1.2 | Q35: 1.2 | R35: 1.2 | S35: 1.2 | T35: 1.2 | U35: 1.2 | V35: 1.2 | W35: 1.2 | X35: 1.2 | Y35: 1.2 | Z35: 1.2 | AA35: 1.2 | AB35: 1.2 | AC35: 1.2
D36: Target Debt Service with Minimum | G36: =G27/G35*G3 -> 90 | H36: 95.69209979 | I36: 100.4767048 | J36: 104.8982411 | K36: 108.9609325 | L36: 112.6750382 | M36: 116.0552893 | N36: 119.0967984 | O36: 121.8234344 | P36: 124.2599031 | Q36: 126.7451011 | R36: 129.2800031 | S36: 131.8656032 | T36: 134.5029153 | U36: 137.1929736 | V36: 139.9368331 | W36: 142.7355697 | X36: 145.5902811 | Y36: 148.5020867 | Z36: 151.4721285 | AA36: 0 | AB36: 0 | AC36: 0
D37: Target Debt Service with LLCR | E37: =E33 -> 0
D38: Target Debt Service Applied | E38: =F11 -> FALSE
D40: Debt Amount Fixed | E40: =F9 -> 0
D42: Repayments with Minimum
B44: Results
C45: Debt Balance
D46: Opening Balance | G46: =F48 -> 0 | H46: 0 | I46: 0 | J46: 0 | K46: 0 | L46: 0 | M46: 0 | N46: 0 | O46: 0 | P46: 0 | Q46: 0 | R46: 0 | S46: 0 | T46: 0 | U46: 0 | V46: 0 | W46: 0 | X46: 0 | Y46: 0 | Z46: 0 | AA46: 0 | AB46: 0 | AC46: 0
D47: Repayments
D48: Closing Balance | F48: =E40 -> 0 | G48: =G46-G47 -> 0 | H48: 0 | I48: 0 | J48: 0 | K48: 0 | L48: 0 | M48: 0 | N48: 0 | O48: 0 | P48: 0 | Q48: 0 | R48: 0 | S48: 0 | T48: 0 | U48: 0 | V48: 0 | W48: 0 | X48: 0 | Y48: 0 | Z48: 0 | AA48: 0 | AB48: 0 | AC48: 0
D49: Interest | G49: =G46*G29 -> 0 | H49: 0 | I49: 0 | J49: 0 | K49: 0 | L49: 0 | M49: 0 | N49: 0 | O49: 0 | P49: 0 | Q49: 0 | R49: 0 | S49: 0 | T49: 0 | U49: 0 | V49: 0 | W49: 0 | X49: 0 | Y49: 0 | Z49: 0 | AA49: 0 | AB49: 0 | AC49: 0
D51: Check
D53: DSCR | E53: =MIN(G53:AC53) -> 0 | G53: =IF(G49+G47>0.1,G27/(G49+G47)) -> FALSE | H53: FALSE | I53: FALSE | J53: FALSE | K53: FALSE | L53: FALSE | M53: FALSE | N53: FALSE | O53: FALSE | P53: FALSE | Q53: FALSE | R53: FALSE | S53: FALSE | T53: FALSE | U53: FALSE | V53: FALSE | W53: FALSE | X53: FALSE | Y53: FALSE | Z53: FALSE | AA53: FALSE | AB53: FALSE | AC53: FALSE
D55: PV CFADS | E55: =E16 -> 0 | F55: =NPV(E55,G27:AC27) -> 3545.518254
D56: Debt =PV Debt Service | F56: =E40 -> 0
D58: PLCR | F58: =F55/F56 -> 
D60: CFADS over Debt Life | G60: =G27*G3 -> 108 | H60: 114.8305197 | I60: 120.5720457 | J60: 125.8778894 | K60: 130.7531191 | L60: 135.2100458 | M60: 139.2663472 | N60: 142.916158 | O60: 146.1881213 | P60: 149.1118837 | Q60: 152.0941214 | R60: 155.1360038 | S60: 158.2387239 | T60: 161.4034983 | U60: 164.6315683 | V60: 167.9241997 | W60: 171.2826837 | X60: 174.7083373 | Y60: 178.2025041 | Z60: 181.7665542 | AA60: 0 | AB60: 0 | AC60: 0
D61: PV CFADS over Debt Life | E61: =E16 -> 0 | F61: =NPV(E61,G60:AC60) -> 2978.114324
D62: Debt =PV Debt Service | F62: =F56 -> 0
D64: LLCR | F64: =F61/F62 -> 
C66: IRR's
D67: Project Cash Flow | F67: =F27-F7 -> -1700 | G67: 108 | H67: 114.8305197 | I67: 120.5720457 | J67: 125.8778894 | K67: 130.7531191 | L67: 135.2100458 | M67: 139.2663472 | N67: 142.916158 | O67: 146.1881213 | P67: 149.1118837 | Q67: 152.0941214 | R67: 155.1360038 | S67: 158.2387239 | T67: 161.4034983 | U67: 164.6315683 | V67: 167.9241997 | W67: 171.2826837 | X67: 174.7083373 | Y67: 178.2025041 | Z67: 181.7665542 | AA67: 185.4018852 | AB67: 189.1099229 | AC67: 192.8921214
D68: Project IRR | E68: =IRR(F67:AC67) -> 0.06500548226
D70: Equity Issued | F70: =F67+F56 -> -1700
D71: Equity Cash Flow | F71: =F70 -> -1700 | G71: =G27-G38 -> 108 | H71: =H27-H38 -> 114.8305197 | I71: 120.5720457 | J71: 125.8778894 | K71: 130.7531191 | L71: 135.2100458 | M71: 139.2663472 | N71: 142.916158 | O71: 146.1881213 | P71: 149.1118837 | Q71: 152.0941214 | R71: 155.1360038 | S71: 158.2387239 | T71: 161.4034983 | U71: 164.6315683 | V71: 167.9241997 | W71: 171.2826837 | X71: 174.7083373 | Y71: 178.2025041 | Z71: 181.7665542 | AA71: 185.4018852 | AB71: 189.1099229 | AC71: 192.8921214
D72: Equity IRR | E72: =IRR(F71:AC71) -> 0.06500548226
C74: Graph
G75: =G2 -> 1 | H75: 2 | I75: 3 | J75: 4 | K75: 5 | L75: 6 | M75: 7 | N75: 8 | O75: 9 | P75: 10 | Q75: 11 | R75: 12 | S75: 13 | T75: 14 | U75: 15 | V75: 16 | W75: 17 | X75: 18 | Y75: 19 | Z75: 20 | AA75: 21 | AB75: 22 | AC75: 23
D76: CFADS | G76: =G27 -> 108 | H76: =H27 -> 114.8305197 | I76: 120.5720457 | J76: 125.8778894 | K76: 130.7531191 | L76: 135.2100458 | M76: 139.2663472 | N76: 142.916158 | O76: 146.1881213 | P76: 149.1118837 | Q76: 152.0941214 | R76: 155.1360038 | S76: 158.2387239 | T76: 161.4034983 | U76: 164.6315683 | V76: 167.9241997 | W76: 171.2826837 | X76: 174.7083373 | Y76: 178.2025041 | Z76: 181.7665542 | AA76: 185.4018852 | AB76: 189.1099229 | AC76: 192.8921214
D77: Debt Service | G77: =G36 -> 90 | H77: =H36 -> 95.69209979 | I77: 100.4767048 | J77: 104.8982411 | K77: 108.9609325 | L77: 112.6750382 | M77: 116.0552893 | N77: 119.0967984 | O77: 121.8234344 | P77: 124.2599031 | Q77: 126.7451011 | R77: 129.2800031 | S77: 131.8656032 | T77: 134.5029153 | U77: 137.1929736 | V77: 139.9368331 | W77: 142.7355697 | X77: 145.5902811 | Y77: 148.5020867 | Z77: 151.4721285 | AA77: 0 | AB77: 0 | AC77: 0

Sheet Curved Sculpting
B2: Case 1: Basic | F2: 0 | G2: 1 | H2: 2 | I2: 3 | J2: 4 | K2: 5 | L2: 6 | M2: 7 | N2: 8 | O2: 9 | P2: 10 | Q2: 11 | R2: 12 | S2: 13 | T2: 14 | U2: 15 | V2: 16 | W2: 17 | X2: 18 | Y2: 19 | Z2: 20 | AA2: 21 | AB2: 22 | AC2: 23
D3: Repayment Flag | E3: =E6 -> 20 | G3: =G2<=$E$3 -> TRUE | H3: TRUE | I3: TRUE | J3: TRUE | K3: TRUE | L3: TRUE | M3: TRUE | N3: TRUE | O3: TRUE | P3: TRUE | Q3: TRUE | R3: TRUE | S3: TRUE | T3: TRUE | U3: TRUE | V3: TRUE | W3: TRUE | X3: TRUE | Y3: TRUE | Z3: TRUE | AA3: FALSE | AB3: FALSE | AC3: FALSE
B5: Inputs
D6: Tenor | E6: 20
D7: Capital Expenditure | F7: 1700
D8: Debt to Capital | F8: 0.8
D9: Debt Target | F9: =F7*F8 -> 1360
D11: Apply Target DSCR with Minimum | F11: TRUE
D13: CFADS Growth Year | F13: 0 | G13: 1 | H13: 3 | I13: 7 | J13: 10
D14: CFADS Growth Rate | F14: 0.08 | G14: 0.08 | H14: 0.05 | I14: 0.03 | J14: 0.02
D16: Intrest Rate | F16: 0.04 | G16: 0.0425 | H16: 0.045 | I16: 0.05 | J16: 0.0525
D18: Start and End Period | F18: 1 | G18: =E6 -> 20
D19: Start and End DSCR | F19: 1.3 | G19: 1.2
D20: PV of Debt Service
D21: Target | E21: =F9 -> 1360
D22: Difference
D24: DSCR
D25: Base CFADS | G25: 100 | H25: =G25 -> 100 | I25: =H25 -> 100 | J25: 100 | K25: 100 | L25: 100 | M25: 100 | N25: 100 | O25: 100 | P25: 100 | Q25: 100 | R25: 100 | S25: 100 | T25: 100 | U25: 100 | V25: 100 | W25: 100 | X25: 100 | Y25: 100 | Z25: 100 | AA25: 100 | AB25: 100 | AC25: 100
B27: CFADS
D28: Growth Rate | G28: =LOOKUP(G2,13:13,14:14) -> 0.08 | H28: 0.08 | I28: 0.05 | J28: 0.05 | K28: 0.05 | L28: 0.05 | M28: 0.03 | N28: 0.03 | O28: 0.03 | P28: 0.02 | Q28: 0.02 | R28: 0.02 | S28: 0.02 | T28: 0.02 | U28: 0.02 | V28: 0.02 | W28: 0.02 | X28: 0.02 | Y28: 0.02 | Z28: 0.02 | AA28: 0.02 | AB28: 0.02 | AC28: 0.02
D29: CFADS Index - Lookup | F29: 1 | G29: =F29*(1+G28) -> 1.08 | H29: =G29*(1+H28) -> 1.1664 | I29: 1.22472 | J29: 1.285956 | K29: 1.3502538 | L29: 1.41776649 | M29: 1.460299485 | N29: 1.504108469 | O29: 1.549231723 | P29: 1.580216358 | Q29: 1.611820685 | R29: 1.644057099 | S29: 1.676938241 | T29: 1.710477005 | U29: 1.744686546 | V29: 1.779580276 | W29: 1.815171882 | X29: 1.85147532 | Y29: 1.888504826 | Z29: 1.926274923 | AA29: 1.964800421 | AB29: 2.004096429 | AC29: 2.044178358
D30: Growth Rate Interpolate | G30: =interpolate_look_up(G2,13:13,14:14) -> 0.08 | H30: =interpolate_look_up(H2,13:13,14:14) -> 0.0632455532 | I30: =interpolate_look_up(I2,13:13,14:14) -> 0.05 | J30: =interpolate_look_up(J2,13:13,14:14) -> 0.04400558684 | K30: =interpolate_look_up(K2,13:13,14:14) -> 0.03872983346 | L30: =interpolate_look_up(L2,13:13,14:14) -> 0.03408658099 | M30: =interpolate_look_up(M2,13:13,14:14) -> 0.03 | N30: =interpolate_look_up(N2,13:13,14:14) -> 0.02620741394 | O30: =interpolate_look_up(O2,13:13,14:14) -> 0.02289428485 | P30: =interpolate_look_up(P2,13:13,14:14) -> 0.02 | Q30: =interpolate_look_up(Q2,13:13,14:14) -> 0.02 | R30: =interpolate_look_up(R2,13:13,14:14) -> 0.02 | S30: =interpolate_look_up(S2,13:13,14:14) -> 0.02 | T30: =interpolate_look_up(T2,13:13,14:14) -> 0.02 | U30: =interpolate_look_up(U2,13:13,14:14) -> 0.02 | V30: =interpolate_look_up(V2,13:13,14:14) -> 0.02 | W30: =interpolate_look_up(W2,13:13,14:14) -> 0.02 | X30: =interpolate_look_up(X2,13:13,14:14) -> 0.02 | Y30: =interpolate_look_up(Y2,13:13,14:14) -> 0.02 | Z30: =interpolate_look_up(Z2,13:13,14:14) -> 0.02 | AA30: =interpolate_look_up(AA2,13:13,14:14) -> 0.02 | AB30: =interpolate_look_up(AB2,13:13,14:14) -> 0.02 | AC30: =interpolate_look_up(AC2,13:13,14:14) -> 0.02
D31: CFADS Index - Interpolate | F31: 1 | G31: =F31*(1+G30) -> 1.08 | H31: =G31*(1+H30) -> 1.148305197 | I31: 1.205720457 | J31: 1.258778894 | K31: 1.307531191 | L31: 1.352100458 | M31: 1.392663472 | N31: 1.42916158 | O31: 1.461881213 | P31: 1.491118837 | Q31: 1.520941214 | R31: 1.551360038 | S31: 1.582387239 | T31: 1.614034983 | U31: 1.646315683 | V31: 1.679241997 | W31: 1.712826837 | X31: 1.747083373 | Y31: 1.782025041 | Z31: 1.817665542 | AA31: 1.854018852 | AB31: 1.891099229 | AC31: 1.928921214
D32: CFADS | G32: =G25*G31 -> 108 | H32: =H25*H31 -> 114.8305197 | I32: 120.5720457 | J32: 125.8778894 | K32: 130.7531191 | L32: 135.2100458 | M32: 139.2663472 | N32: 142.916158 | O32: 146.1881213 | P32: 149.1118837 | Q32: 152.0941214 | R32: 155.1360038 | S32: 158.2387239 | T32: 161.4034983 | U32: 164.6315683 | V32: 167.9241997 | W32: 171.2826837 | X32: 174.7083373 | Y32: 178.2025041 | Z32: 181.7665542 | AA32: 185.4018852 | AB32: 189.1099229 | AC32: 192.8921214
D34: Interest Rate | G34: =LOOKUP(G2,13:13,16:16) -> 0.0425 | H34: 0.0425 | I34: 0.045 | J34: 0.045 | K34: 0.045 | L34: 0.045 | M34: 0.05 | N34: 0.05 | O34: 0.05 | P34: 0.0525 | Q34: 0.0525 | R34: 0.0525 | S34: 0.0525 | T34: 0.0525 | U34: 0.0525 | V34: 0.0525 | W34: 0.0525 | X34: 0.0525 | Y34: 0.0525 | Z34: 0.0525 | AA34: 0.0525 | AB34: 0.0525 | AC34: 0.0525
D35: Interest Rate Index | F35: 1 | G35: =F35*(1+G34) -> 1.0425 | H35: =G35*(1+H34) -> 1.08680625 | I35: 1.135712531 | J35: 1.186819595 | K35: 1.240226477 | L35: 1.296036668 | M35: 1.360838502 | N35: 1.428880427 | O35: 1.500324448 | P35: 1.579091482 | Q35: 1.661993785 | R35: 1.749248458 | S35: 1.841084002 | T35: 1.937740912 | U35: 2.03947231 | V35: 2.146544607 | W35: 2.259238199 | X35: 2.377848204 | Y35: 2.502685235 | Z35: 2.634076209 | AA35: 2.77236521 | AB35: 2.917914384 | AC35: 3.071104889
D36: CFADS over Debt Term | G36: =G32*G3 -> 108 | H36: 114.8305197 | I36: 120.5720457 | J36: 125.8778894 | K36: 130.7531191 | L36: 135.2100458 | M36: 139.2663472 | N36: 142.916158 | O36: 146.1881213 | P36: 149.1118837 | Q36: 152.0941214 | R36: 155.1360038 | S36: 158.2387239 | T36: 161.4034983 | U36: 164.6315683 | V36: 167.9241997 | W36: 171.2826837 | X36: 174.7083373 | Y36: 178.2025041 | Z36: 181.7665542 | AA36: 0 | AB36: 0 | AC36: 0
D37: PV of CFADS at Interest Rate | E37: =SUMPRODUCT(G36:AC36/G35:AC35) -> 1823.354962
D38: Implied LLCR for Debt Service | E38: =E37/F9 -> 1.340702178
D40: Target DSCR | G40: =G24 -> 0 | H40: =H24 -> 0 | I40: 0 | J40: 0 | K40: 0 | L40: 0 | M40: 0 | N40: 0 | O40: 0 | P40: 0 | Q40: 0 | R40: 0 | S40: 0 | T40: 0 | U40: 0 | V40: 0 | W40: 0 | X40: 0 | Y40: 0 | Z40: 0 | AA40: 0 | AB40: 0 | AC40: 0
D41: Target Debt Service with Curved
D42: Target Debt Service with LLCR | E42: =E38 -> 1.340702178 | G42: =G36/$E$42*G3 -> 80.55480311 | H42: 85.6495362 | I42: 89.93201301 | J42: 93.88952401 | K42: 97.52584964 | L42: 100.8501724 | M42: 103.8756776 | N42: 106.5979905 | O42: 109.0384752 | P42: 111.2192447 | Q42: 113.4436296 | R42: 115.7125022 | S42: 118.0267523 | T42: 120.3872873 | U42: 122.7950331 | V42: 125.2509337 | W42: 127.7559524 | X42: 130.3110714 | Y42: 132.9172929 | Z42: 135.5756387 | AA42: 0 | AB42: 0 | AC42: 0
D43: Target Debt Service Applied | E43: =F11 -> TRUE | G43: =IF($E$43,G41,G42) -> 0 | H43: =IF($E$43,H41,H42) -> 0 | I43: 0 | J43: 0 | K43: 0 | L43: 0 | M43: 0 | N43: 0 | O43: 0 | P43: 0 | Q43: 0 | R43: 0 | S43: 0 | T43: 0 | U43: 0 | V43: 0 | W43: 0 | X43: 0 | Y43: 0 | Z43: 0 | AA43: 0 | AB43: 0 | AC43: 0
D45: PV of Debt Service
D47: Repayments with Minimum
B49: Results
C50: Debt Balance
D51: Opening Balance | G51: =F53 -> 0 | H51: 0 | I51: 0 | J51: 0 | K51: 0 | L51: 0 | M51: 0 | N51: 0 | O51: 0 | P51: 0 | Q51: 0 | R51: 0 | S51: 0 | T51: 0 | U51: 0 | V51: 0 | W51: 0 | X51: 0 | Y51: 0 | Z51: 0 | AA51: 0 | AB51: 0 | AC51: 0
D52: Repayments | G52: =G43-G54 -> 0 | H52: =H43-H54 -> 0 | I52: 0 | J52: 0 | K52: 0 | L52: 0 | M52: 0 | N52: 0 | O52: 0 | P52: 0 | Q52: 0 | R52: 0 | S52: 0 | T52: 0 | U52: 0 | V52: 0 | W52: 0 | X52: 0 | Y52: 0 | Z52: 0 | AA52: 0 | AB52: 0 | AC52: 0
D53: Closing Balance | F53: =E45 -> 0 | G53: =G51-G52 -> 0 | H53: 0 | I53: 0 | J53: 0 | K53: 0 | L53: 0 | M53: 0 | N53: 0 | O53: 0 | P53: 0 | Q53: 0 | R53: 0 | S53: 0 | T53: 0 | U53: 0 | V53: 0 | W53: 0 | X53: 0 | Y53: 0 | Z53: 0 | AA53: 0 | AB53: 0 | AC53: 0
D54: Interest | G54: =G51*G34 -> 0 | H54: 0 | I54: 0 | J54: 0 | K54: 0 | L54: 0 | M54: 0 | N54: 0 | O54: 0 | P54: 0 | Q54: 0 | R54: 0 | S54: 0 | T54: 0 | U54: 0 | V54: 0 | W54: 0 | X54: 0 | Y54: 0 | Z54: 0 | AA54: 0 | AB54: 0 | AC54: 0
D56: Check | E56: =ROUND(LOOKUP(E6,2:2,53:53),0)=0 -> TRUE
D58: DSCR | E58: =MIN(G58:AC58) -> 0 | G58: =IF(G54+G52>0.1,G32/(G54+G52)) -> FALSE | H58: FALSE | I58: FALSE | J58: FALSE | K58: FALSE | L58: FALSE | M58: FALSE | N58: FALSE | O58: FALSE | P58: FALSE | Q58: FALSE | R58: FALSE | S58: FALSE | T58: FALSE | U58: FALSE | V58: FALSE | W58: FALSE | X58: FALSE | Y58: FALSE | Z58: FALSE | AA58: FALSE | AB58: FALSE | AC58: FALSE
D60: PV CFADS | E60: =E16 -> 0 | F60: =NPV(E60,G32:AC32) -> 3545.518254
D61: Debt =PV Debt Service | F61: =E45 -> 0
D63: PLCR | F63: =F60/F61 -> 
D65: CFADS over Debt Life | G65: =G32*G3 -> 108 | H65: 114.8305197 | I65: 120.5720457 | J65: 125.8778894 | K65: 130.7531191 | L65: 135.2100458 | M65: 139.2663472 | N65: 142.916158 | O65: 146.1881213 | P65: 149.1118837 | Q65: 152.0941214 | R65: 155.1360038 | S65: 158.2387239 | T65: 161.4034983 | U65: 164.6315683 | V65: 167.9241997 | W65: 171.2826837 | X65: 174.7083373 | Y65: 178.2025041 | Z65: 181.7665542 | AA65: 0 | AB65: 0 | AC65: 0
D66: PV CFADS over Debt Life | E66: =E16 -> 0 | F66: =NPV(E66,G65:AC65) -> 2978.114324
D67: Debt =PV Debt Service | F67: =F61 -> 0
D69: LLCR | F69: =F66/F67 -> 
C71: IRR's
D72: Project Cash Flow | F72: =F32-F7 -> -1700 | G72: 108 | H72: 114.8305197 | I72: 120.5720457 | J72: 125.8778894 | K72: 130.7531191 | L72: 135.2100458 | M72: 139.2663472 | N72: 142.916158 | O72: 146.1881213 | P72: 149.1118837 | Q72: 152.0941214 | R72: 155.1360038 | S72: 158.2387239 | T72: 161.4034983 | U72: 164.6315683 | V72: 167.9241997 | W72: 171.2826837 | X72: 174.7083373 | Y72: 178.2025041 | Z72: 181.7665542 | AA72: 185.4018852 | AB72: 189.1099229 | AC72: 192.8921214
D73: Project IRR | E73: =IRR(F72:AC72) -> 0.06500548226
D75: Equity Issued | F75: =F72+F61 -> -1700
D76: Equity Cash Flow | F76: =F75 -> -1700 | G76: =G32-G43 -> 108 | H76: =H32-H43 -> 114.8305197 | I76: 120.5720457 | J76: 125.8778894 | K76: 130.7531191 | L76: 135.2100458 | M76: 139.2663472 | N76: 142.916158 | O76: 146.1881213 | P76: 149.1118837 | Q76: 152.0941214 | R76: 155.1360038 | S76: 158.2387239 | T76: 161.4034983 | U76: 164.6315683 | V76: 167.9241997 | W76: 171.2826837 | X76: 174.7083373 | Y76: 178.2025041 | Z76: 181.7665542 | AA76: 185.4018852 | AB76: 189.1099229 | AC76: 192.8921214
D77: Equity IRR | E77: =IRR(F76:AC76) -> 0.06500548226
C79: Graph
G80: =G2 -> 1 | H80: 2 | I80: 3 | J80: 4 | K80: 5 | L80: 6 | M80: 7 | N80: 8 | O80: 9 | P80: 10 | Q80: 11 | R80: 12 | S80: 13 | T80: 14 | U80: 15 | V80: 16 | W80: 17 | X80: 18 | Y80: 19 | Z80: 20 | AA80: 21 | AB80: 22 | AC80: 23
D81: CFADS | G81: =G32 -> 108 | H81: =H32 -> 114.8305197 | I81: 120.5720457 | J81: 125.8778894 | K81: 130.7531191 | L81: 135.2100458 | M81: 139.2663472 | N81: 142.916158 | O81: 146.1881213 | P81: 149.1118837 | Q81: 152.0941214 | R81: 155.1360038 | S81: 158.2387239 | T81: 161.4034983 | U81: 164.6315683 | V81: 167.9241997 | W81: 171.2826837 | X81: 174.7083373 | Y81: 178.2025041 | Z81: 181.7665542 | AA81: 185.4018852 | AB81: 189.1099229 | AC81: 192.8921214
D82: Debt Service | G82: =G41 -> 0 | H82: =H41 -> 0 | I82: 0 | J82: 0 | K82: 0 | L82: 0 | M82: 0 | N82: 0 | O82: 0 | P82: 0 | Q82: 0 | R82: 0 | S82: 0 | T82: 0 | U82: 0 | V82: 0 | W82: 0 | X82: 0 | Y82: 0 | Z82: 0 | AA82: 0 | AB82: 0 | AC82: 0

Sheet Curved Sculpting Min
B2: Case 1: Basic | F2: 0 | G2: 1 | H2: 2 | I2: 3 | J2: 4 | K2: 5 | L2: 6 | M2: 7 | N2: 8 | O2: 9 | P2: 10 | Q2: 11 | R2: 12 | S2: 13 | T2: 14 | U2: 15 | V2: 16 | W2: 17 | X2: 18 | Y2: 19 | Z2: 20 | AA2: 21 | AB2: 22 | AC2: 23
D3: Repayment Flag | E3: =E6 -> 24 | G3: =G2<=$E$3 -> TRUE | H3: TRUE | I3: TRUE | J3: TRUE | K3: TRUE | L3: TRUE | M3: TRUE | N3: TRUE | O3: TRUE | P3: TRUE | Q3: TRUE | R3: TRUE | S3: TRUE | T3: TRUE | U3: TRUE | V3: TRUE | W3: TRUE | X3: TRUE | Y3: TRUE | Z3: TRUE | AA3: TRUE | AB3: TRUE | AC3: TRUE
B5: Inputs
D6: Tenor | E6: 24
D7: Capital Expenditure | F7: 1700
D8: Debt to Capital | F8: 0.9
D9: Debt Target | F9: =F7*F8 -> 1530
D11: Apply Target DSCR with Minimum | F11: TRUE
D13: CFADS Growth Year | F13: 0 | G13: 1 | H13: 3 | I13: 7 | J13: 10
D14: CFADS Growth Rate | F14: 0.08 | G14: 0.03 | H14: 0.07 | I14: 0.08 | J14: 0.02
D16: Intrest Rate | F16: 0.04 | G16: 0.0425 | H16: 0.045 | I16: 0.05 | J16: 0.0525
D18: Start and End Period | F18: 1 | G18: =E6 -> 24
D19: Start and End DSCR | F19: 0.9393043128 | G19: 1.2
D20: PV of Debt Service | E20: =E42 -> 0
D21: Target | E21: =F9 -> 1530
D22: Difference | E22: =E20-E21 -> -1530
D24: DSCR | G24: =interpolate_look_up(G2,18:18,19:19) -> 0.9393043128 | H24: =interpolate_look_up(H2,18:18,19:19) -> 0.9493608394 | I24: =interpolate_look_up(I2,18:18,19:19) -> 0.9595250347 | J24: =interpolate_look_up(J2,18:18,19:19) -> 0.9697980515 | K24: =interpolate_look_up(K2,18:18,19:19) -> 0.9801810549 | L24: =interpolate_look_up(L2,18:18,19:19) -> 0.9906752225 | M24: =interpolate_look_up(M2,18:18,19:19) -> 1.001281744 | N24: =interpolate_look_up(N2,18:18,19:19) -> 1.012001823 | O24: =interpolate_look_up(O2,18:18,19:19) -> 1.022836675 | P24: =interpolate_look_up(P2,18:18,19:19) -> 1.033787529 | Q24: =interpolate_look_up(Q2,18:18,19:19) -> 1.044855627 | R24: =interpolate_look_up(R2,18:18,19:19) -> 1.056042223 | S24: =interpolate_look_up(S2,18:18,19:19) -> 1.067348587 | T24: =interpolate_look_up(T2,18:18,19:19) -> 1.078776002 | U24: =interpolate_look_up(U2,18:18,19:19) -> 1.090325762 | V24: =interpolate_look_up(V2,18:18,19:19) -> 1.101999178 | W24: =interpolate_look_up(W2,18:18,19:19) -> 1.113797574 | X24: =interpolate_look_up(X2,18:18,19:19) -> 1.125722287 | Y24: =interpolate_look_up(Y2,18:18,19:19) -> 1.137774671 | Z24: =interpolate_look_up(Z2,18:18,19:19) -> 1.149956092 | AA24: =interpolate_look_up(AA2,18:18,19:19) -> 1.162267932 | AB24: =interpolate_look_up(AB2,18:18,19:19) -> 1.174711586 | AC24: =interpolate_look_up(AC2,18:18,19:19) -> 1.187288467
D25: Base CFADS | G25: 50 | H25: =G25 -> 50 | I25: =H25 -> 50 | J25: 60 | K25: 60 | L25: 60 | M25: 60 | N25: 80 | O25: 80 | P25: 80 | Q25: 80 | R25: 80 | S25: 80 | T25: 80 | U25: 80 | V25: 80 | W25: 80 | X25: 80 | Y25: 80 | Z25: 80 | AA25: 80 | AB25: 80 | AC25: 80
B27: CFADS
D28: Growth Rate | G28: =LOOKUP(G2,13:13,14:14) -> 0.03 | H28: 0.03 | I28: 0.07 | J28: 0.07 | K28: 0.07 | L28: 0.07 | M28: 0.08 | N28: 0.08 | O28: 0.08 | P28: 0.02 | Q28: 0.02 | R28: 0.02 | S28: 0.02 | T28: 0.02 | U28: 0.02 | V28: 0.02 | W28: 0.02 | X28: 0.02 | Y28: 0.02 | Z28: 0.02 | AA28: 0.02 | AB28: 0.02 | AC28: 0.02
D29: CFADS Index - Lookup | F29: 1 | G29: =F29*(1+G28) -> 1.03 | H29: =G29*(1+H28) -> 1.0609 | I29: 1.135163 | J29: 1.21462441 | K29: 1.299648119 | L29: 1.390623487 | M29: 1.501873366 | N29: 1.622023235 | O29: 1.751785094 | P29: 1.786820796 | Q29: 1.822557212 | R29: 1.859008356 | S29: 1.896188523 | T29: 1.934112294 | U29: 1.97279454 | V29: 2.01225043 | W29: 2.052495439 | X29: 2.093545348 | Y29: 2.135416255 | Z29: 2.17812458 | AA29: 2.221687071 | AB29: 2.266120813 | AC29: 2.311443229
D30: Growth Rate Interpolate | G30: =interpolate_look_up(G2,13:13,14:14) -> 0.03 | H30: =interpolate_look_up(H2,13:13,14:14) -> 0.04582575695 | I30: =interpolate_look_up(I2,13:13,14:14) -> 0.07 | J30: =interpolate_look_up(J2,13:13,14:14) -> 0.07237624155 | K30: =interpolate_look_up(K2,13:13,14:14) -> 0.07483314774 | L30: =interpolate_look_up(L2,13:13,14:14) -> 0.07737345681 | M30: =interpolate_look_up(M2,13:13,14:14) -> 0.08 | N30: =interpolate_look_up(N2,13:13,14:14) -> 0.050396842 | O30: =interpolate_look_up(O2,13:13,14:14) -> 0.03174802104 | P30: =interpolate_look_up(P2,13:13,14:14) -> 0.02 | Q30: =interpolate_look_up(Q2,13:13,14:14) -> 0.02 | R30: =interpolate_look_up(R2,13:13,14:14) -> 0.02 | S30: =interpolate_look_up(S2,13:13,14:14) -> 0.02 | T30: =interpolate_look_up(T2,13:13,14:14) -> 0.02 | U30: =interpolate_look_up(U2,13:13,14:14) -> 0.02 | V30: =interpolate_look_up(V2,13:13,14:14) -> 0.02 | W30: =interpolate_look_up(W2,13:13,14:14) -> 0.02 | X30: =interpolate_look_up(X2,13:13,14:14) -> 0.02 | Y30: =interpolate_look_up(Y2,13:13,14:14) -> 0.02 | Z30: =interpolate_look_up(Z2,13:13,14:14) -> 0.02 | AA30: =interpolate_look_up(AA2,13:13,14:14) -> 0.02 | AB30: =interpolate_look_up(AB2,13:13,14:14) -> 0.02 | AC30: =interpolate_look_up(AC2,13:13,14:14) -> 0.02
D31: CFADS Index - Interpolate | F31: 1 | G31: =F31*(1+G30) -> 1.03 | H31: =G31*(1+H30) -> 1.07720053 | I31: 1.152604567 | J31: 1.236025753 | K31: 1.328521451 | L31: 1.431313748 | M31: 1.545818848 | N31: 1.623723236 | O31: 1.675273236 | P31: 1.7087787 | Q31: 1.742954274 | R31: 1.77781336 | S31: 1.813369627 | T31: 1.84963702 | U31: 1.88662976 | V31: 1.924362355 | W31: 1.962849602 | X31: 2.002106594 | Y31: 2.042148726 | Z31: 2.082991701 | AA31: 2.124651535 | AB31: 2.167144566 | AC31: 2.210487457
D32: CFADS | G32: =G25*G31 -> 51.5 | H32: =H25*H31 -> 53.86002648 | I32: 57.63022834 | J32: 74.1615452 | K32: 79.71128706 | L32: 85.87882489 | M32: 92.74913088 | N32: 129.8978589 | O32: 134.0218589 | P32: 136.702296 | Q32: 139.436342 | R32: 142.2250688 | S32: 145.0695702 | T32: 147.9709616 | U32: 150.9303808 | V32: 153.9489884 | W32: 157.0279682 | X32: 160.1685276 | Y32: 163.3718981 | Z32: 166.6393361 | AA32: 169.9721228 | AB32: 173.3715652 | AC32: 176.8389966
D34: Interest Rate | G34: =LOOKUP(G2,13:13,16:16) -> 0.0425 | H34: 0.0425 | I34: 0.045 | J34: 0.045 | K34: 0.045 | L34: 0.045 | M34: 0.05 | N34: 0.05 | O34: 0.05 | P34: 0.0525 | Q34: 0.0525 | R34: 0.0525 | S34: 0.0525 | T34: 0.0525 | U34: 0.0525 | V34: 0.0525 | W34: 0.0525 | X34: 0.0525 | Y34: 0.0525 | Z34: 0.0525 | AA34: 0.0525 | AB34: 0.0525 | AC34: 0.0525
D35: Interest Rate Index | F35: 1 | G35: =F35*(1+G34) -> 1.0425 | H35: =G35*(1+H34) -> 1.08680625 | I35: 1.135712531 | J35: 1.186819595 | K35: 1.240226477 | L35: 1.296036668 | M35: 1.360838502 | N35: 1.428880427 | O35: 1.500324448 | P35: 1.579091482 | Q35: 1.661993785 | R35: 1.749248458 | S35: 1.841084002 | T35: 1.937740912 | U35: 2.03947231 | V35: 2.146544607 | W35: 2.259238199 | X35: 2.377848204 | Y35: 2.502685235 | Z35: 2.634076209 | AA35: 2.77236521 | AB35: 2.917914384 | AC35: 3.071104889
D36: CFADS over Debt Term | G36: =G32*G3 -> 51.5 | H36: 53.86002648 | I36: 57.63022834 | J36: 74.1615452 | K36: 79.71128706 | L36: 85.87882489 | M36: 92.74913088 | N36: 129.8978589 | O36: 134.0218589 | P36: 136.702296 | Q36: 139.436342 | R36: 142.2250688 | S36: 145.0695702 | T36: 147.9709616 | U36: 150.9303808 | V36: 153.9489884 | W36: 157.0279682 | X36: 160.1685276 | Y36: 163.3718981 | Z36: 166.6393361 | AA36: 169.9721228 | AB36: 173.3715652 | AC36: 176.8389966
D38: Target DSCR | G38: =G24 -> 0.9393043128 | H38: 0.9493608394 | I38: 0.9595250347 | J38: 0.9697980515 | K38: 0.9801810549 | L38: 0.9906752225 | M38: 1.001281744 | N38: 1.012001823 | O38: 1.022836675 | P38: 1.033787529 | Q38: 1.044855627 | R38: 1.056042223 | S38: 1.067348587 | T38: 1.078776002 | U38: 1.090325762 | V38: 1.101999178 | W38: 1.113797574 | X38: 1.125722287 | Y38: 1.137774671 | Z38: 1.149956092 | AA38: 1.162267932 | AB38: 1.174711586 | AC38: 1.187288467
D39: Target Debt Service with Curved MAX
D40: Target Debt Service Applied | E40: =F11 -> TRUE | G40: =IF($E$40,G39) -> 0 | H40: =IF($E$40,H39) -> 0 | I40: 0 | J40: 0 | K40: 0 | L40: 0 | M40: 0 | N40: 0 | O40: 0 | P40: 0 | Q40: 0 | R40: 0 | S40: 0 | T40: 0 | U40: 0 | V40: 0 | W40: 0 | X40: 0 | Y40: 0 | Z40: 0 | AA40: 0 | AB40: 0 | AC40: 0
D42: PV of Debt Service | E42: =SUMPRODUCT(G39:AC39/G35:AC35) -> 0
D44: Repayments with Minimum
B46: Results
C47: Debt Balance
D48: Opening Balance | G48: =F50 -> 1530 | H48: 1595.025 | I48: 1662.813562 | J48: 1737.640173 | K48: 1815.833981 | L48: 1897.54651 | M48: 1982.936103 | N48: 2082.082908 | O48: 2186.187053 | P48: 2295.496406 | Q48: 2416.009967 | R48: 2542.85049 | S48: 2676.350141 | T48: 2816.858524 | U48: 2964.743596 | V48: 3120.392635 | W48: 3284.213248 | X48: 3456.634444 | Y48: 3638.107752 | Z48: 3829.108409 | AA48: 4030.1366 | AB48: 4241.718772 | AC48: 4464.409008
D49: Repayments | G49: =G40-G51 -> -65.025 | H49: =H40-H51 -> -67.7885625 | I49: -74.82661031 | J49: -78.19380778 | K49: -81.71252913 | L49: -85.38959294 | M49: -99.14680513 | N49: -104.1041454 | O49: -109.3093527 | P49: -120.5135613 | Q49: -126.8405233 | R49: -133.4996507 | S49: -140.5083824 | T49: -147.8850725 | U49: -155.6490388 | V49: -163.8206133 | W49: -172.4211955 | X49: -181.4733083 | Y49: -191.000657 | Z49: -201.0281915 | AA49: -211.5821715 | AB49: -222.6902355 | AC49: -234.3814729
D50: Closing Balance | F50: =F9 -> 1530 | G50: =G48-G49 -> 1595.025 | H50: 1662.813562 | I50: 1737.640173 | J50: 1815.833981 | K50: 1897.54651 | L50: 1982.936103 | M50: 2082.082908 | N50: 2186.187053 | O50: 2295.496406 | P50: 2416.009967 | Q50: 2542.85049 | R50: 2676.350141 | S50: 2816.858524 | T50: 2964.743596 | U50: 3120.392635 | V50: 3284.213248 | W50: 3456.634444 | X50: 3638.107752 | Y50: 3829.108409 | Z50: 4030.1366 | AA50: 4241.718772 | AB50: 4464.409008 | AC50: 4698.79048
D51: Interest | G51: =G48*G34 -> 65.025 | H51: 67.7885625 | I51: 74.82661031 | J51: 78.19380778 | K51: 81.71252913 | L51: 85.38959294 | M51: 99.14680513 | N51: 104.1041454 | O51: 109.3093527 | P51: 120.5135613 | Q51: 126.8405233 | R51: 133.4996507 | S51: 140.5083824 | T51: 147.8850725 | U51: 155.6490388 | V51: 163.8206133 | W51: 172.4211955 | X51: 181.4733083 | Y51: 191.000657 | Z51: 201.0281915 | AA51: 211.5821715 | AB51: 222.6902355 | AC51: 234.3814729
D53: Check | E53: =ROUND(LOOKUP(E6,2:2,50:50),0)=0 -> FALSE
D55: DSCR | E55: =MIN(G55:AC55) -> 0 | G55: =IF(G51+G49>0.1,G32/(G51+G49)) -> FALSE | H55: FALSE | I55: FALSE | J55: FALSE | K55: FALSE | L55: FALSE | M55: FALSE | N55: FALSE | O55: FALSE | P55: FALSE | Q55: FALSE | R55: FALSE | S55: FALSE | T55: FALSE | U55: FALSE | V55: FALSE | W55: FALSE | X55: FALSE | Y55: FALSE | Z55: FALSE | AA55: FALSE | AB55: FALSE | AC55: FALSE
D57: PV CFADS | E57: =E16 -> 0 | F57: =NPV(E57,G32:AC32) -> 2943.084783
D58: Debt =PV Debt Service | F58: =E42 -> 0
D60: PLCR | F60: =F57/F58 -> 
D62: CFADS over Debt Life | G62: =G32*G3 -> 51.5 | H62: 53.86002648 | I62: 57.63022834 | J62: 74.1615452 | K62: 79.71128706 | L62: 85.87882489 | M62: 92.74913088 | N62: 129.8978589 | O62: 134.0218589 | P62: 136.702296 | Q62: 139.436342 | R62: 142.2250688 | S62: 145.0695702 | T62: 147.9709616 | U62: 150.9303808 | V62: 153.9489884 | W62: 157.0279682 | X62: 160.1685276 | Y62: 163.3718981 | Z62: 166.6393361 | AA62: 169.9721228 | AB62: 173.3715652 | AC62: 176.8389966
D63: PV CFADS over Debt Life | E63: =E16 -> 0 | F63: =NPV(E63,G62:AC62) -> 2943.084783
D64: Debt =PV Debt Service | F64: =F58 -> 0
D66: LLCR | F66: =F63/F64 -> 
C68: IRR's
D69: Project Cash Flow | F69: =F32-F7 -> -1700 | G69: 51.5 | H69: 53.86002648 | I69: 57.63022834 | J69: 74.1615452 | K69: 79.71128706 | L69: 85.87882489 | M69: 92.74913088 | N69: 129.8978589 | O69: 134.0218589 | P69: 136.702296 | Q69: 139.436342 | R69: 142.2250688 | S69: 145.0695702 | T69: 147.9709616 | U69: 150.9303808 | V69: 153.9489884 | W69: 157.0279682 | X69: 160.1685276 | Y69: 163.3718981 | Z69: 166.6393361 | AA69: 169.9721228 | AB69: 173.3715652 | AC69: 176.8389966
D70: Project IRR | E70: =IRR(F69:AC69) -> 0.04242081049
D72: Equity Issued | F72: =F69+F58 -> -1700
D73: Equity Cash Flow | F73: =F72 -> -1700 | G73: =G32-G40 -> 51.5 | H73: 53.86002648 | I73: 57.63022834 | J73: 74.1615452 | K73: 79.71128706 | L73: 85.87882489 | M73: 92.74913088 | N73: 129.8978589 | O73: 134.0218589 | P73: 136.702296 | Q73: 139.436342 | R73: 142.2250688 | S73: 145.0695702 | T73: 147.9709616 | U73: 150.9303808 | V73: 153.9489884 | W73: 157.0279682 | X73: 160.1685276 | Y73: 163.3718981 | Z73: 166.6393361 | AA73: 169.9721228 | AB73: 173.3715652 | AC73: 176.8389966
D74: Equity IRR | E74: =IRR(F73:AC73) -> 0.04242081049
C76: Graph
G77: =G2 -> 1 | H77: 2 | I77: 3 | J77: 4 | K77: 5 | L77: 6 | M77: 7 | N77: 8 | O77: 9 | P77: 10 | Q77: 11 | R77: 12 | S77: 13 | T77: 14 | U77: 15 | V77: 16 | W77: 17 | X77: 18 | Y77: 19 | Z77: 20 | AA77: 21 | AB77: 22 | AC77: 23
D78: CFADS | G78: =G32 -> 51.5 | H78: 53.86002648 | I78: 57.63022834 | J78: 74.1615452 | K78: 79.71128706 | L78: 85.87882489 | M78: 92.74913088 | N78: 129.8978589 | O78: 134.0218589 | P78: 136.702296 | Q78: 139.436342 | R78: 142.2250688 | S78: 145.0695702 | T78: 147.9709616 | U78: 150.9303808 | V78: 153.9489884 | W78: 157.0279682 | X78: 160.1685276 | Y78: 163.3718981 | Z78: 166.6393361 | AA78: 169.9721228 | AB78: 173.3715652 | AC78: 176.8389966
D79: Debt Service | G79: =G39 -> 0 | H79: =H39 -> 0 | I79: 0 | J79: 0 | K79: 0 | L79: 0 | M79: 0 | N79: 0 | O79: 0 | P79: 0 | Q79: 0 | R79: 0 | S79: 0 | T79: 0 | U79: 0 | V79: 0 | W79: 0 | X79: 0 | Y79: 0 | Z79: 0 | AA79: 0 | AB79: 0 | AC79: 0

Sheet Monthly to Semi
D2: Month | F2: 0 | G2: 1 | H2: 2 | I2: 3 | J2: 4 | K2: 5 | L2: 6 | M2: 7 | N2: 8 | O2: 9 | P2: 10 | Q2: 11 | R2: 12 | S2: 13 | T2: 14 | U2: 15 | V2: 16 | W2: 17 | X2: 18 | Y2: 19 | Z2: 20 | AA2: 21 | AB2: 22 | AC2: 23 | AD2: 24 | AE2: 25 | AF2: 26 | AG2: 27 | AH2: 28 | AI2: 29 | AJ2: 30 | AK2: 31 | AL2: 32 | AM2: 33 | AN2: 34 | AO2: 35 | AP2: 36 | AQ2: 37 | AR2: 38 | AS2: 39 | AT2: 40 | AU2: 41 | AV2: 42 | AW2: 43 | AX2: 44 | AY2: 45 | AZ2: 46 | BA2: 47 | BB2: 48 | BC2: 49 | BD2: 50 | BE2: 51 | BF2: 52 | BG2: 53 | BH2: 54 | BI2: 55 | BJ2: 56 | BK2: 57 | BL2: 58 | BM2: 59 | BN2: 60 | BO2: 61 | BP2: 62 | BQ2: 63 | BR2: 64 | BS2: 65 | BT2: 66 | BU2: 67 | BV2: 68 | BW2: 69 | BX2: 70 | BY2: 71 | BZ2: 72 | CA2: 73 | CB2: 74 | CC2: 75 | CD2: 76 | CE2: 77 | CF2: 78 | CG2: 79 | CH2: 80 | CI2: 81 | CJ2: 82 | CK2: 83 | CL2: 84 | CM2: 85 | CN2: 86 | CO2: 87 | CP2: 88 | CQ2: 89 | CR2: 90 | CS2: 91 | CT2: 92 | CU2: 93 | CV2: 94 | CW2: 95 | CX2: 96 | CY2: 97 | CZ2: 98 | DA2: 99 | DB2: 100 | DC2: 101 | DD2: 102 | DE2: 103 | DF2: 104 | DG2: 105 | DH2: 106 | DI2: 107 | DJ2: 108 | DK2: 109 | DL2: 110 | DM2: 111 | DN2: 112 | DO2: 113 | DP2: 114 | DQ2: 115 | DR2: 116 | DS2: 117 | DT2: 118 | DU2: 119 | DV2: 120 | DW2: 121 | DX2: 122 | DY2: 123 | DZ2: 124 | EA2: 125 | EB2: 126 | EC2: 127 | ED2: 128 | EE2: 129 | EF2: 130 | EG2: 131 | EH2: 132 | EI2: 133 | EJ2: 134 | EK2: 135 | EL2: 136 | EM2: 137 | EN2: 138 | EO2: 139 | EP2: 140 | EQ2: 141 | ER2: 142 | ES2: 143 | ET2: 144 | EU2: 145 | EV2: 146 | EW2: 147 | EX2: 148 | EY2: 149 | EZ2: 150 | FA2: 151 | FB2: 152 | FC2: 153 | FD2: 154 | FE2: 155 | FF2: 156 | FG2: 157 | FH2: 158 | FI2: 159 | FJ2: 160 | FK2: 161 | FL2: 162 | FM2: 163 | FN2: 164 | FO2: 165 | FP2: 166 | FQ2: 167 | FR2: 168 | FS2: 169 | FT2: 170 | FU2: 171 | FV2: 172 | FW2: 173 | FX2: 174 | FY2: 175 | FZ2: 176 | GA2: 177 | GB2: 178 | GC2: 179 | GD2: 180 | GE2: 181 | GF2: 182 | GG2: 183 | GH2: 184 | GI2: 185 | GJ2: 186 | GK2: 187 | GL2: 188 | GM2: 189 | GN2: 190 | GO2: 191 | GP2: 192 | GQ2: 193 | GR2: 194 | GS2: 195 | GT2: 196 | GU2: 197 | GV2: 198 | GW2: 199 | GX2: 200 | GY2: 201 | GZ2: 202 | HA2: 203 | HB2: 204 | HC2: 205 | HD2: 206 | HE2: 207 | HF2: 208 | HG2: 209 | HH2: 210 | HI2: 211 | HJ2: 212 | HK2: 213 | HL2: 214 | HM2: 215 | HN2: 216 | HO2: 217 | HP2: 218 | HQ2: 219 | HR2: 220 | HS2: 221 | HT2: 222 | HU2: 223 | HV2: 224 | HW2: 225 | HX2: 226 | HY2: 227 | HZ2: 228 | IA2: 229 | IB2: 230 | IC2: 231 | ID2: 232 | IE2: 233 | IF2: 234 | IG2: 235 | IH2: 236 | II2: 237 | IJ2: 238 | IK2: 239 | IL2: 240 | IM2: 241 | IN2: 242 | IO2: 243 | IP2: 244 | IQ2: 245 | IR2: 246 | IS2: 247 | IT2: 248 | IU2: 249 | IV2: 250 | IW2: 251 | IX2: 252 | IY2: 253 | IZ2: 254 | JA2: 255 | JB2: 256 | JC2: 257 | JD2: 258 | JE2: 259 | JF2: 260 | JG2: 261 | JH2: 262 | JI2: 263 | JJ2: 264 | JK2: 265 | JL2: 266 | JM2: 267 | JN2: 268 | JO2: 269 | JP2: 270 | JQ2: 271 | JR2: 272 | JS2: 273 | JT2: 274 | JU2: 275 | JV2: 276 | JW2: 277 | JX2: 278 | JY2: 279 | JZ2: 280 | KA2: 281 | KB2: 282 | KC2: 283 | KD2: 284 | KE2: 285 | KF2: 286 | KG2: 287 | KH2: 288 | KI2: 289 | KJ2: 290 | KK2: 291 | KL2: 292 | KM2: 293 | KN2: 294 | KO2: 295 | KP2: 296 | KQ2: 297 | KR2: 298 | KS2: 299 | KT2: 300
D3: Year Flag
D4: Year Counter | G4: 1 | H4: =G4+H3 -> 1 | I4: =H4+I3 -> 1 | J4: 1 | K4: 1 | L4: 1 | M4: 1 | N4: 1 | O4: 1 | P4: 1 | Q4: 1 | R4: 1 | S4: 1 | T4: 1 | U4: 1 | V4: 1 | W4: 1 | X4: 1 | Y4: 1 | Z4: 1 | AA4: 1 | AB4: 1 | AC4: 1 | AD4: 1 | AE4: 1 | AF4: 1 | AG4: 1 | AH4: 1 | AI4: 1 | AJ4: 1 | AK4: 1 | AL4: 1 | AM4: 1 | AN4: 1 | AO4: 1 | AP4: 1 | AQ4: 1 | AR4: 1 | AS4: 1 | AT4: 1 | AU4: 1 | AV4: 1 | AW4: 1 | AX4: 1 | AY4: 1 | AZ4: 1 | BA4: 1 | BB4: 1 | BC4: 1 | BD4: 1 | BE4: 1 | BF4: 1 | BG4: 1 | BH4: 1 | BI4: 1 | BJ4: 1 | BK4: 1 | BL4: 1 | BM4: 1 | BN4: 1 | BO4: 1 | BP4: 1 | BQ4: 1 | BR4: 1 | BS4: 1 | BT4: 1 | BU4: =BT4+BU3 -> 1 | BV4: 1 | BW4: 1 | BX4: 1 | BY4: 1 | BZ4: 1 | CA4: 1 | CB4: 1 | CC4: 1 | CD4: 1 | CE4: 1 | CF4: 1 | CG4: 1 | CH4: 1 | CI4: 1 | CJ4: 1 | CK4: 1 | CL4: 1 | CM4: 1 | CN4: 1 | CO4: 1 | CP4: 1 | CQ4: 1 | CR4: 1 | CS4: 1 | CT4: 1 | CU4: 1 | CV4: 1 | CW4: 1 | CX4: 1 | CY4: 1 | CZ4: 1 | DA4: 1 | DB4: 1 | DC4: 1 | DD4: 1 | DE4: 1 | DF4: 1 | DG4: 1 | DH4: 1 | DI4: 1 | DJ4: 1 | DK4: 1 | DL4: 1 | DM4: 1 | DN4: 1 | DO4: 1 | DP4: 1 | DQ4: 1 | DR4: 1 | DS4: 1 | DT4: 1 | DU4: 1 | DV4: 1 | DW4: 1 | DX4: 1 | DY4: 1 | DZ4: 1 | EA4: 1 | EB4: 1 | EC4: 1 | ED4: 1 | EE4: 1 | EF4: 1 | EG4: =EF4+EG3 -> 1 | EH4: 1 | EI4: 1 | EJ4: 1 | EK4: 1 | EL4: 1 | EM4: 1 | EN4: 1 | EO4: 1 | EP4: 1 | EQ4: 1 | ER4: 1 | ES4: 1 | ET4: 1 | EU4: 1 | EV4: 1 | EW4: 1 | EX4: 1 | EY4: 1 | EZ4: 1 | FA4: 1 | FB4: 1 | FC4: 1 | FD4: 1 | FE4: 1 | FF4: 1 | FG4: 1 | FH4: 1 | FI4: 1 | FJ4: 1 | FK4: 1 | FL4: 1 | FM4: 1 | FN4: 1 | FO4: 1 | FP4: 1 | FQ4: 1 | FR4: 1 | FS4: 1 | FT4: 1 | FU4: 1 | FV4: 1 | FW4: 1 | FX4: 1 | FY4: 1 | FZ4: 1 | GA4: 1 | GB4: 1 | GC4: 1 | GD4: 1 | GE4: 1 | GF4: 1 | GG4: 1 | GH4: 1 | GI4: 1 | GJ4: 1 | GK4: 1 | GL4: 1 | GM4: 1 | GN4: 1 | GO4: 1 | GP4: 1 | GQ4: 1 | GR4: 1 | GS4: =GR4+GS3 -> 1 | GT4: 1 | GU4: 1 | GV4: 1 | GW4: 1 | GX4: 1 | GY4: 1 | GZ4: 1 | HA4: 1 | HB4: 1 | HC4: 1 | HD4: 1 | HE4: 1 | HF4: 1 | HG4: 1 | HH4: 1 | HI4: 1 | HJ4: 1 | HK4: 1 | HL4: 1 | HM4: 1 | HN4: 1 | HO4: 1 | HP4: 1 | HQ4: 1 | HR4: 1 | HS4: 1 | HT4: 1 | HU4: 1 | HV4: 1 | HW4: 1 | HX4: 1 | HY4: 1 | HZ4: 1 | IA4: 1 | IB4: 1 | IC4: 1 | ID4: 1 | IE4: 1 | IF4: 1 | IG4: 1 | IH4: 1 | II4: 1 | IJ4: 1 | IK4: 1 | IL4: 1 | IM4: 1 | IN4: 1 | IO4: 1 | IP4: 1 | IQ4: 1 | IR4: 1 | IS4: 1 | IT4: 1 | IU4: 1 | IV4: 1 | IW4: 1 | IX4: 1 | IY4: 1 | IZ4: 1 | JA4: 1 | JB4: 1 | JC4: 1 | JD4: 1 | JE4: =JD4+JE3 -> 1 | JF4: 1 | JG4: 1 | JH4: 1 | JI4: 1 | JJ4: 1 | JK4: 1 | JL4: 1 | JM4: 1 | JN4: 1 | JO4: 1 | JP4: 1 | JQ4: 1 | JR4: 1 | JS4: 1 | JT4: 1 | JU4: 1 | JV4: 1 | JW4: =JV4+JW3 -> 1 | JX4: =JW4+JX3 -> 1 | JY4: =JX4+JY3 -> 1 | JZ4: =JY4+JZ3 -> 1 | KA4: =JZ4+KA3 -> 1 | KB4: =KA4+KB3 -> 1 | KC4: =KB4+KC3 -> 1 | KD4: =KC4+KD3 -> 1 | KE4: =KD4+KE3 -> 1 | KF4: =KE4+KF3 -> 1 | KG4: =KF4+KG3 -> 1 | KH4: =KG4+KH3 -> 1 | KI4: =KH4+KI3 -> 1 | KJ4: =KI4+KJ3 -> 1 | KK4: =KJ4+KK3 -> 1 | KL4: =KK4+KL3 -> 1 | KM4: =KL4+KM3 -> 1 | KN4: =KM4+KN3 -> 1 | KO4: =KN4+KO3 -> 1 | KP4: =KO4+KP3 -> 1 | KQ4: =KP4+KQ3 -> 1 | KR4: =KQ4+KR3 -> 1 | KS4: =KR4+KS3 -> 1 | KT4: =KS4+KT3 -> 1
D5: Semi-annual Flag
D6: Semi Counter | G6: 1 | H6: =G6+H5 -> 1 | I6: =H6+I5 -> 1 | J6: 1 | K6: 1 | L6: 1 | M6: 1 | N6: 1 | O6: 1 | P6: 1 | Q6: 1 | R6: 1 | S6: 1 | T6: 1 | U6: 1 | V6: 1 | W6: 1 | X6: 1 | Y6: 1 | Z6: 1 | AA6: 1 | AB6: 1 | AC6: 1 | AD6: 1 | AE6: 1 | AF6: 1 | AG6: 1 | AH6: 1 | AI6: 1 | AJ6: 1 | AK6: 1 | AL6: 1 | AM6: 1 | AN6: 1 | AO6: 1 | AP6: 1 | AQ6: 1 | AR6: 1 | AS6: 1 | AT6: 1 | AU6: 1 | AV6: 1 | AW6: 1 | AX6: 1 | AY6: 1 | AZ6: 1 | BA6: 1 | BB6: 1 | BC6: 1 | BD6: 1 | BE6: 1 | BF6: 1 | BG6: 1 | BH6: 1 | BI6: 1 | BJ6: 1 | BK6: 1 | BL6: 1 | BM6: 1 | BN6: 1 | BO6: 1 | BP6: 1 | BQ6: 1 | BR6: 1 | BS6: 1 | BT6: 1 | BU6: =BT6+BU5 -> 1 | BV6: 1 | BW6: 1 | BX6: 1 | BY6: 1 | BZ6: 1 | CA6: 1 | CB6: 1 | CC6: 1 | CD6: 1 | CE6: 1 | CF6: 1 | CG6: 1 | CH6: 1 | CI6: 1 | CJ6: 1 | CK6: 1 | CL6: 1 | CM6: 1 | CN6: 1 | CO6: 1 | CP6: 1 | CQ6: 1 | CR6: 1 | CS6: 1 | CT6: 1 | CU6: 1 | CV6: 1 | CW6: 1 | CX6: 1 | CY6: 1 | CZ6: 1 | DA6: 1 | DB6: 1 | DC6: 1 | DD6: 1 | DE6: 1 | DF6: 1 | DG6: 1 | DH6: 1 | DI6: 1 | DJ6: 1 | DK6: 1 | DL6: 1 | DM6: 1 | DN6: 1 | DO6: 1 | DP6: 1 | DQ6: 1 | DR6: 1 | DS6: 1 | DT6: 1 | DU6: 1 | DV6: 1 | DW6: 1 | DX6: 1 | DY6: 1 | DZ6: 1 | EA6: 1 | EB6: 1 | EC6: 1 | ED6: 1 | EE6: 1 | EF6: 1 | EG6: =EF6+EG5 -> 1 | EH6: 1 | EI6: 1 | EJ6: 1 | EK6: 1 | EL6: 1 | EM6: 1 | EN6: 1 | EO6: 1 | EP6: 1 | EQ6: 1 | ER6: 1 | ES6: 1 | ET6: 1 | EU6: 1 | EV6: 1 | EW6: 1 | EX6: 1 | EY6: 1 | EZ6: 1 | FA6: 1 | FB6: 1 | FC6: 1 | FD6: 1 | FE6: 1 | FF6: 1 | FG6: 1 | FH6: 1 | FI6: 1 | FJ6: 1 | FK6: 1 | FL6: 1 | FM6: 1 | FN6: 1 | FO6: 1 | FP6: 1 | FQ6: 1 | FR6: 1 | FS6: 1 | FT6: 1 | FU6: 1 | FV6: 1 | FW6: 1 | FX6: 1 | FY6: 1 | FZ6: 1 | GA6: 1 | GB6: 1 | GC6: 1 | GD6: 1 | GE6: 1 | GF6: 1 | GG6: 1 | GH6: 1 | GI6: 1 | GJ6: 1 | GK6: 1 | GL6: 1 | GM6: 1 | GN6: 1 | GO6: 1 | GP6: 1 | GQ6: 1 | GR6: 1 | GS6: =GR6+GS5 -> 1 | GT6: 1 | GU6: 1 | GV6: 1 | GW6: 1 | GX6: 1 | GY6: 1 | GZ6: 1 | HA6: 1 | HB6: 1 | HC6: 1 | HD6: 1 | HE6: 1 | HF6: 1 | HG6: 1 | HH6: 1 | HI6: 1 | HJ6: 1 | HK6: 1 | HL6: 1 | HM6: 1 | HN6: 1 | HO6: 1 | HP6: 1 | HQ6: 1 | HR6: 1 | HS6: 1 | HT6: 1 | HU6: 1 | HV6: 1 | HW6: 1 | HX6: 1 | HY6: 1 | HZ6: 1 | IA6: 1 | IB6: 1 | IC6: 1 | ID6: 1 | IE6: 1 | IF6: 1 | IG6: 1 | IH6: 1 | II6: 1 | IJ6: 1 | IK6: 1 | IL6: 1 | IM6: 1 | IN6: 1 | IO6: 1 | IP6: 1 | IQ6: 1 | IR6: 1 | IS6: 1 | IT6: 1 | IU6: 1 | IV6: 1 | IW6: 1 | IX6: 1 | IY6: 1 | IZ6: 1 | JA6: 1 | JB6: 1 | JC6: 1 | JD6: 1 | JE6: =JD6+JE5 -> 1 | JF6: 1 | JG6: 1 | JH6: 1 | JI6: 1 | JJ6: 1 | JK6: 1 | JL6: 1 | JM6: 1 | JN6: 1 | JO6: 1 | JP6: 1 | JQ6: 1 | JR6: 1 | JS6: 1 | JT6: 1 | JU6: 1 | JV6: 1 | JW6: 1 | JX6: 1 | JY6: 1 | JZ6: 1 | KA6: 1 | KB6: 1 | KC6: 1 | KD6: 1 | KE6: 1 | KF6: 1 | KG6: 1 | KH6: 1 | KI6: 1 | KJ6: 1 | KK6: 1 | KL6: 1 | KM6: 1 | KN6: 1 | KO6: 1 | KP6: 1 | KQ6: 1 | KR6: 1 | KS6: 1 | KT6: 1
D7: Repayment Flag | E7: =E10 -> 20 | G7: =G4<=$E$7 -> TRUE | H7: =H4<=$E$7 -> TRUE | I7: TRUE | J7: TRUE | K7: TRUE | L7: TRUE | M7: TRUE | N7: TRUE | O7: TRUE | P7: TRUE | Q7: TRUE | R7: TRUE | S7: TRUE | T7: TRUE | U7: TRUE | V7: TRUE | W7: TRUE | X7: TRUE | Y7: TRUE | Z7: TRUE | AA7: TRUE | AB7: TRUE | AC7: TRUE | AD7: TRUE | AE7: TRUE | AF7: TRUE | AG7: TRUE | AH7: TRUE | AI7: TRUE | AJ7: TRUE | AK7: TRUE | AL7: TRUE | AM7: TRUE | AN7: TRUE | AO7: TRUE | AP7: TRUE | AQ7: TRUE | AR7: TRUE | AS7: TRUE | AT7: TRUE | AU7: TRUE | AV7: TRUE | AW7: TRUE | AX7: TRUE | AY7: TRUE | AZ7: TRUE | BA7: TRUE | BB7: TRUE | BC7: TRUE | BD7: TRUE | BE7: TRUE | BF7: TRUE | BG7: TRUE | BH7: TRUE | BI7: TRUE | BJ7: TRUE | BK7: TRUE | BL7: TRUE | BM7: TRUE | BN7: TRUE | BO7: TRUE | BP7: TRUE | BQ7: TRUE | BR7: TRUE | BS7: TRUE | BT7: =BT4<=$E$7 -> TRUE | BU7: TRUE | BV7: TRUE | BW7: TRUE | BX7: TRUE | BY7: TRUE | BZ7: TRUE | CA7: TRUE | CB7: TRUE | CC7: TRUE | CD7: TRUE | CE7: TRUE | CF7: TRUE | CG7: TRUE | CH7: TRUE | CI7: TRUE | CJ7: TRUE | CK7: TRUE | CL7: TRUE | CM7: TRUE | CN7: TRUE | CO7: TRUE | CP7: TRUE | CQ7: TRUE | CR7: TRUE | CS7: TRUE | CT7: TRUE | CU7: TRUE | CV7: TRUE | CW7: TRUE | CX7: TRUE | CY7: TRUE | CZ7: TRUE | DA7: TRUE | DB7: TRUE | DC7: TRUE | DD7: TRUE | DE7: TRUE | DF7: TRUE | DG7: TRUE | DH7: TRUE | DI7: TRUE | DJ7: TRUE | DK7: TRUE | DL7: TRUE | DM7: TRUE | DN7: TRUE | DO7: TRUE | DP7: TRUE | DQ7: TRUE | DR7: TRUE | DS7: TRUE | DT7: TRUE | DU7: TRUE | DV7: TRUE | DW7: TRUE | DX7: TRUE | DY7: TRUE | DZ7: TRUE | EA7: TRUE | EB7: TRUE | EC7: TRUE | ED7: TRUE | EE7: TRUE | EF7: =EF4<=$E$7 -> TRUE | EG7: TRUE | EH7: TRUE | EI7: TRUE | EJ7: TRUE | EK7: TRUE | EL7: TRUE | EM7: TRUE | EN7: TRUE | EO7: TRUE | EP7: TRUE | EQ7: TRUE | ER7: TRUE | ES7: TRUE | ET7: TRUE | EU7: TRUE | EV7: TRUE | EW7: TRUE | EX7: TRUE | EY7: TRUE | EZ7: TRUE | FA7: TRUE | FB7: TRUE | FC7: TRUE | FD7: TRUE | FE7: TRUE | FF7: TRUE | FG7: TRUE | FH7: TRUE | FI7: TRUE | FJ7: TRUE | FK7: TRUE | FL7: TRUE | FM7: TRUE | FN7: TRUE | FO7: TRUE | FP7: TRUE | FQ7: TRUE | FR7: TRUE | FS7: TRUE | FT7: TRUE | FU7: TRUE | FV7: TRUE | FW7: TRUE | FX7: TRUE | FY7: TRUE | FZ7: TRUE | GA7: TRUE | GB7: TRUE | GC7: TRUE | GD7: TRUE | GE7: TRUE | GF7: TRUE | GG7: TRUE | GH7: TRUE | GI7: TRUE | GJ7: TRUE | GK7: TRUE | GL7: TRUE | GM7: TRUE | GN7: TRUE | GO7: TRUE | GP7: TRUE | GQ7: TRUE | GR7: =GR4<=$E$7 -> TRUE | GS7: TRUE | GT7: TRUE | GU7: TRUE | GV7: TRUE | GW7: TRUE | GX7: TRUE | GY7: TRUE | GZ7: TRUE | HA7: TRUE | HB7: TRUE | HC7: TRUE | HD7: TRUE | HE7: TRUE | HF7: TRUE | HG7: TRUE | HH7: TRUE | HI7: TRUE | HJ7: TRUE | HK7: TRUE | HL7: TRUE | HM7: TRUE | HN7: TRUE | HO7: TRUE | HP7: TRUE | HQ7: TRUE | HR7: TRUE | HS7: TRUE | HT7: TRUE | HU7: TRUE | HV7: TRUE | HW7: TRUE | HX7: TRUE | HY7: TRUE | HZ7: TRUE | IA7: TRUE | IB7: TRUE | IC7: TRUE | ID7: TRUE | IE7: TRUE | IF7: TRUE | IG7: TRUE | IH7: TRUE | II7: TRUE | IJ7: TRUE | IK7: TRUE | IL7: TRUE | IM7: TRUE | IN7: TRUE | IO7: TRUE | IP7: TRUE | IQ7: TRUE | IR7: TRUE | IS7: TRUE | IT7: TRUE | IU7: TRUE | IV7: TRUE | IW7: TRUE | IX7: TRUE | IY7: TRUE | IZ7: TRUE | JA7: TRUE | JB7: TRUE | JC7: TRUE | JD7: =JD4<=$E$7 -> TRUE | JE7: TRUE | JF7: TRUE | JG7: TRUE | JH7: TRUE | JI7: TRUE | JJ7: TRUE | JK7: TRUE | JL7: TRUE | JM7: TRUE | JN7: TRUE | JO7: TRUE | JP7: TRUE | JQ7: TRUE | JR7: TRUE | JS7: TRUE | JT7: TRUE | JU7: TRUE | JV7: TRUE | JW7: TRUE | JX7: TRUE | JY7: TRUE | JZ7: TRUE | KA7: TRUE | KB7: TRUE | KC7: TRUE | KD7: TRUE | KE7: TRUE | KF7: TRUE | KG7: TRUE | KH7: TRUE | KI7: TRUE | KJ7: TRUE | KK7: TRUE | KL7: TRUE | KM7: TRUE | KN7: TRUE | KO7: TRUE | KP7: TRUE | KQ7: TRUE | KR7: TRUE | KS7: TRUE | KT7: TRUE
B9: Inputs
D10: Tenor | E10: 20
D11: Capital Expenditure | F11: 1700
D12: Debt to Capital | F12: 0.7
D13: Debt Target | F13: =F11*F12 -> 1190
D15: Apply Target DSCR with Minimum | F15: TRUE
D17: CFADS Growth Year | F17: 0 | G17: 1 | H17: 3 | I17: 7 | J17: 10
D18: CFADS Growth Rate | F18: 0.08 | G18: 0.09 | H18: 0.08 | I18: 0.03 | J18: 0.02
D20: Annual Interest Rate | F20: 0.04 | G20: 0.0425 | H20: 0.045 | I20: 0.05 | J20: 0.0525
D22: Month | F22: 1 | G22: 2 | H22: 3 | I22: 4 | J22: 5 | K22: 6 | L22: 7 | M22: 8 | N22: 9 | O22: 10 | P22: 11 | Q22: 12
D23: Seasonal Factor | F23: 0.03331637671 | G23: 0.05188048971 | H23: 0.07814291044 | I23: 0.1084070947 | J23: 0.1198969037 | K23: 0.1231118798 | L23: 0.1232610981 | M23: 0.108671618 | N23: 0.1052599451 | O23: 0.05841218164 | P23: 0.05014413131 | Q23: 0.03949537084
D25: Start and End Period | F25: 1 | G25: =E10 -> 20
D26: Start and End DSCR | F26: 100 | G26: 1.2
D27: PV of Debt Service | E27: =E57 -> 
D28: Target | E28: =F13 -> 1190
D29: Difference | E29: =E27-E28 -> 
D31: DSCR | G31: =interpolate_look_up(G2,25:25,26:26) -> 100 | H31: =interpolate_look_up(H2,25:25,26:26) -> 79.23266726 | I31: =interpolate_look_up(I2,25:25,26:26) -> 62.77815561 | J31: =interpolate_look_up(J2,25:25,26:26) -> 49.74080715 | K31: =interpolate_look_up(K2,25:25,26:26) -> 39.41096822 | L31: =interpolate_look_up(L2,25:25,26:26) -> 31.22636131 | M31: =interpolate_look_up(M2,25:25,26:26) -> 24.74147896 | N31: =interpolate_look_up(N2,25:25,26:26) -> 19.6033337 | O31: =interpolate_look_up(O2,25:25,26:26) -> 15.53224416 | P31: =interpolate_look_up(P2,25:25,26:26) -> 12.30661133 | Q31: =interpolate_look_up(Q2,25:25,26:26) -> 9.750856409 | R31: =interpolate_look_up(R2,25:25,26:26) -> 7.725863614 | S31: =interpolate_look_up(S2,25:25,26:26) -> 6.12140781 | T31: =interpolate_look_up(T2,25:25,26:26) -> 4.850154682 | U31: =interpolate_look_up(U2,25:25,26:26) -> 3.842906921 | V31: =interpolate_look_up(V2,25:25,26:26) -> 3.044837654 | W31: =interpolate_look_up(W2,25:25,26:26) -> 2.412506087 | X31: =interpolate_look_up(X2,25:25,26:26) -> 1.91149292 | Y31: =interpolate_look_up(Y2,25:25,26:26) -> 1.514526825 | Z31: =interpolate_look_up(Z2,25:25,26:26) -> 1.2 | AA31: =interpolate_look_up(AA2,25:25,26:26) -> 1.2 | AB31: =interpolate_look_up(AB2,25:25,26:26) -> 1.2 | AC31: =interpolate_look_up(AC2,25:25,26:26) -> 1.2 | AD31: =interpolate_look_up(AD2,25:25,26:26) -> 1.2 | AE31: =interpolate_look_up(AE2,25:25,26:26) -> 1.2 | AF31: =interpolate_look_up(AF2,25:25,26:26) -> 1.2 | AG31: =interpolate_look_up(AG2,25:25,26:26) -> 1.2 | AH31: =interpolate_look_up(AH2,25:25,26:26) -> 1.2 | AI31: =interpolate_look_up(AI2,25:25,26:26) -> 1.2 | AJ31: =interpolate_look_up(AJ2,25:25,26:26) -> 1.2 | AK31: =interpolate_look_up(AK2,25:25,26:26) -> 1.2 | AL31: =interpolate_look_up(AL2,25:25,26:26) -> 1.2 | AM31: =interpolate_look_up(AM2,25:25,26:26) -> 1.2 | AN31: =interpolate_look_up(AN2,25:25,26:26) -> 1.2 | AO31: =interpolate_look_up(AO2,25:25,26:26) -> 1.2 | AP31: =interpolate_look_up(AP2,25:25,26:26) -> 1.2 | AQ31: =interpolate_look_up(AQ2,25:25,26:26) -> 1.2 | AR31: =interpolate_look_up(AR2,25:25,26:26) -> 1.2 | AS31: =interpolate_look_up(AS2,25:25,26:26) -> 1.2 | AT31: =interpolate_look_up(AT2,25:25,26:26) -> 1.2 | AU31: =interpolate_look_up(AU2,25:25,26:26) -> 1.2 | AV31: =interpolate_look_up(AV2,25:25,26:26) -> 1.2 | AW31: =interpolate_look_up(AW2,25:25,26:26) -> 1.2 | AX31: =interpolate_look_up(AX2,25:25,26:26) -> 1.2 | AY31: =interpolate_look_up(AY2,25:25,26:26) -> 1.2 | AZ31: =interpolate_look_up(AZ2,25:25,26:26) -> 1.2 | BA31: =interpolate_look_up(BA2,25:25,26:26) -> 1.2 | BB31: =interpolate_look_up(BB2,25:25,26:26) -> 1.2 | BC31: =interpolate_look_up(BC2,25:25,26:26) -> 1.2 | BD31: =interpolate_look_up(BD2,25:25,26:26) -> 1.2 | BE31: =interpolate_look_up(BE2,25:25,26:26) -> 1.2 | BF31: =interpolate_look_up(BF2,25:25,26:26) -> 1.2 | BG31: =interpolate_look_up(BG2,25:25,26:26) -> 1.2 | BH31: =interpolate_look_up(BH2,25:25,26:26) -> 1.2 | BI31: =interpolate_look_up(BI2,25:25,26:26) -> 1.2 | BJ31: =interpolate_look_up(BJ2,25:25,26:26) -> 1.2 | BK31: =interpolate_look_up(BK2,25:25,26:26) -> 1.2 | BL31: =interpolate_look_up(BL2,25:25,26:26) -> 1.2 | BM31: =interpolate_look_up(BM2,25:25,26:26) -> 1.2 | BN31: =interpolate_look_up(BN2,25:25,26:26) -> 1.2 | BO31: =interpolate_look_up(BO2,25:25,26:26) -> 1.2 | BP31: =interpolate_look_up(BP2,25:25,26:26) -> 1.2 | BQ31: =interpolate_look_up(BQ2,25:25,26:26) -> 1.2 | BR31: =interpolate_look_up(BR2,25:25,26:26) -> 1.2 | BS31: =interpolate_look_up(BS2,25:25,26:26) -> 1.2 | BT31: =interpolate_look_up(BT2,25:25,26:26) -> 1.2 | BU31: =interpolate_look_up(BU2,25:25,26:26) -> 1.2 | BV31: =interpolate_look_up(BV2,25:25,26:26) -> 1.2 | BW31: =interpolate_look_up(BW2,25:25,26:26) -> 1.2 | BX31: =interpolate_look_up(BX2,25:25,26:26) -> 1.2 | BY31: =interpolate_look_up(BY2,25:25,26:26) -> 1.2 | BZ31: =interpolate_look_up(BZ2,25:25,26:26) -> 1.2 | CA31: =interpolate_look_up(CA2,25:25,26:26) -> 1.2 | CB31: =interpolate_look_up(CB2,25:25,26:26) -> 1.2 | CC31: =interpolate_look_up(CC2,25:25,26:26) -> 1.2 | CD31: =interpolate_look_up(CD2,25:25,26:26) -> 1.2 | CE31: =interpolate_look_up(CE2,25:25,26:26) -> 1.2 | CF31: =interpolate_look_up(CF2,25:25,26:26) -> 1.2 | CG31: =interpolate_look_up(CG2,25:25,26:26) -> 1.2 | CH31: =interpolate_look_up(CH2,25:25,26:26) -> 1.2 | CI31: =interpolate_look_up(CI2,25:25,26:26) -> 1.2 | CJ31: =interpolate_look_up(CJ2,25:25,26:26) -> 1.2 | CK31: =interpolate_look_up(CK2,25:25,26:26) -> 1.2 | CL31: =interpolate_look_up(CL2,25:25,26:26) -> 1.2 | CM31: =interpolate_look_up(CM2,25:25,26:26) -> 1.2 | CN31: =interpolate_look_up(CN2,25:25,26:26) -> 1.2 | CO31: =interpolate_look_up(CO2,25:25,26:26) -> 1.2 | CP31: =interpolate_look_up(CP2,25:25,26:26) -> 1.2 | CQ31: =interpolate_look_up(CQ2,25:25,26:26) -> 1.2 | CR31: =interpolate_look_up(CR2,25:25,26:26) -> 1.2 | CS31: =interpolate_look_up(CS2,25:25,26:26) -> 1.2 | CT31: =interpolate_look_up(CT2,25:25,26:26) -> 1.2 | CU31: =interpolate_look_up(CU2,25:25,26:26) -> 1.2 | CV31: =interpolate_look_up(CV2,25:25,26:26) -> 1.2 | CW31: =interpolate_look_up(CW2,25:25,26:26) -> 1.2 | CX31: =interpolate_look_up(CX2,25:25,26:26) -> 1.2 | CY31: =interpolate_look_up(CY2,25:25,26:26) -> 1.2 | CZ31: =interpolate_look_up(CZ2,25:25,26:26) -> 1.2 | DA31: =interpolate_look_up(DA2,25:25,26:26) -> 1.2 | DB31: =interpolate_look_up(DB2,25:25,26:26) -> 1.2 | DC31: =interpolate_look_up(DC2,25:25,26:26) -> 1.2 | DD31: =interpolate_look_up(DD2,25:25,26:26) -> 1.2 | DE31: =interpolate_look_up(DE2,25:25,26:26) -> 1.2 | DF31: =interpolate_look_up(DF2,25:25,26:26) -> 1.2 | DG31: =interpolate_look_up(DG2,25:25,26:26) -> 1.2 | DH31: =interpolate_look_up(DH2,25:25,26:26) -> 1.2 | DI31: =interpolate_look_up(DI2,25:25,26:26) -> 1.2 | DJ31: =interpolate_look_up(DJ2,25:25,26:26) -> 1.2 | DK31: =interpolate_look_up(DK2,25:25,26:26) -> 1.2 | DL31: =interpolate_look_up(DL2,25:25,26:26) -> 1.2 | DM31: =interpolate_look_up(DM2,25:25,26:26) -> 1.2 | DN31: =interpolate_look_up(DN2,25:25,26:26) -> 1.2 | DO31: =interpolate_look_up(DO2,25:25,26:26) -> 1.2 | DP31: =interpolate_look_up(DP2,25:25,26:26) -> 1.2 | DQ31: =interpolate_look_up(DQ2,25:25,26:26) -> 1.2 | DR31: =interpolate_look_up(DR2,25:25,26:26) -> 1.2 | DS31: =interpolate_look_up(DS2,25:25,26:26) -> 1.2 | DT31: =interpolate_look_up(DT2,25:25,26:26) -> 1.2 | DU31: =interpolate_look_up(DU2,25:25,26:26) -> 1.2 | DV31: =interpolate_look_up(DV2,25:25,26:26) -> 1.2 | DW31: =interpolate_look_up(DW2,25:25,26:26) -> 1.2 | DX31: =interpolate_look_up(DX2,25:25,26:26) -> 1.2 | DY31: =interpolate_look_up(DY2,25:25,26:26) -> 1.2 | DZ31: =interpolate_look_up(DZ2,25:25,26:26) -> 1.2 | EA31: =interpolate_look_up(EA2,25:25,26:26) -> 1.2 | EB31: =interpolate_look_up(EB2,25:25,26:26) -> 1.2 | EC31: =interpolate_look_up(EC2,25:25,26:26) -> 1.2 | ED31: =interpolate_look_up(ED2,25:25,26:26) -> 1.2 | EE31: =interpolate_look_up(EE2,25:25,26:26) -> 1.2 | EF31: =interpolate_look_up(EF2,25:25,26:26) -> 1.2 | EG31: =interpolate_look_up(EG2,25:25,26:26) -> 1.2 | EH31: =interpolate_look_up(EH2,25:25,26:26) -> 1.2 | EI31: =interpolate_look_up(EI2,25:25,26:26) -> 1.2 | EJ31: =interpolate_look_up(EJ2,25:25,26:26) -> 1.2 | EK31: =interpolate_look_up(EK2,25:25,26:26) -> 1.2 | EL31: =interpolate_look_up(EL2,25:25,26:26) -> 1.2 | EM31: =interpolate_look_up(EM2,25:25,26:26) -> 1.2 | EN31: =interpolate_look_up(EN2,25:25,26:26) -> 1.2 | EO31: =interpolate_look_up(EO2,25:25,26:26) -> 1.2 | EP31: =interpolate_look_up(EP2,25:25,26:26) -> 1.2 | EQ31: =interpolate_look_up(EQ2,25:25,26:26) -> 1.2 | ER31: =interpolate_look_up(ER2,25:25,26:26) -> 1.2 | ES31: =interpolate_look_up(ES2,25:25,26:26) -> 1.2 | ET31: =interpolate_look_up(ET2,25:25,26:26) -> 1.2 | EU31: =interpolate_look_up(EU2,25:25,26:26) -> 1.2 | EV31: =interpolate_look_up(EV2,25:25,26:26) -> 1.2 | EW31: =interpolate_look_up(EW2,25:25,26:26) -> 1.2 | EX31: =interpolate_look_up(EX2,25:25,26:26) -> 1.2 | EY31: =interpolate_look_up(EY2,25:25,26:26) -> 1.2 | EZ31: =interpolate_look_up(EZ2,25:25,26:26) -> 1.2 | FA31: =interpolate_look_up(FA2,25:25,26:26) -> 1.2 | FB31: =interpolate_look_up(FB2,25:25,26:26) -> 1.2 | FC31: =interpolate_look_up(FC2,25:25,26:26) -> 1.2 | FD31: =interpolate_look_up(FD2,25:25,26:26) -> 1.2 | FE31: =interpolate_look_up(FE2,25:25,26:26) -> 1.2 | FF31: =interpolate_look_up(FF2,25:25,26:26) -> 1.2 | FG31: =interpolate_look_up(FG2,25:25,26:26) -> 1.2 | FH31: =interpolate_look_up(FH2,25:25,26:26) -> 1.2 | FI31: =interpolate_look_up(FI2,25:25,26:26) -> 1.2 | FJ31: =interpolate_look_up(FJ2,25:25,26:26) -> 1.2 | FK31: =interpolate_look_up(FK2,25:25,26:26) -> 1.2 | FL31: =interpolate_look_up(FL2,25:25,26:26) -> 1.2 | FM31: =interpolate_look_up(FM2,25:25,26:26) -> 1.2 | FN31: =interpolate_look_up(FN2,25:25,26:26) -> 1.2 | FO31: =interpolate_look_up(FO2,25:25,26:26) -> 1.2 | FP31: =interpolate_look_up(FP2,25:25,26:26) -> 1.2 | FQ31: =interpolate_look_up(FQ2,25:25,26:26) -> 1.2 | FR31: =interpolate_look_up(FR2,25:25,26:26) -> 1.2 | FS31: =interpolate_look_up(FS2,25:25,26:26) -> 1.2 | FT31: =interpolate_look_up(FT2,25:25,26:26) -> 1.2 | FU31: =interpolate_look_up(FU2,25:25,26:26) -> 1.2 | FV31: =interpolate_look_up(FV2,25:25,26:26) -> 1.2 | FW31: =interpolate_look_up(FW2,25:25,26:26) -> 1.2 | FX31: =interpolate_look_up(FX2,25:25,26:26) -> 1.2 | FY31: =interpolate_look_up(FY2,25:25,26:26) -> 1.2 | FZ31: =interpolate_look_up(FZ2,25:25,26:26) -> 1.2 | GA31: =interpolate_look_up(GA2,25:25,26:26) -> 1.2 | GB31: =interpolate_look_up(GB2,25:25,26:26) -> 1.2 | GC31: =interpolate_look_up(GC2,25:25,26:26) -> 1.2 | GD31: =interpolate_look_up(GD2,25:25,26:26) -> 1.2 | GE31: =interpolate_look_up(GE2,25:25,26:26) -> 1.2 | GF31: =interpolate_look_up(GF2,25:25,26:26) -> 1.2 | GG31: =interpolate_look_up(GG2,25:25,26:26) -> 1.2 | GH31: =interpolate_look_up(GH2,25:25,26:26) -> 1.2 | GI31: =interpolate_look_up(GI2,25:25,26:26) -> 1.2 | GJ31: =interpolate_look_up(GJ2,25:25,26:26) -> 1.2 | GK31: =interpolate_look_up(GK2,25:25,26:26) -> 1.2 | GL31: =interpolate_look_up(GL2,25:25,26:26) -> 1.2 | GM31: =interpolate_look_up(GM2,25:25,26:26) -> 1.2 | GN31: =interpolate_look_up(GN2,25:25,26:26) -> 1.2 | GO31: =interpolate_look_up(GO2,25:25,26:26) -> 1.2 | GP31: =interpolate_look_up(GP2,25:25,26:26) -> 1.2 | GQ31: =interpolate_look_up(GQ2,25:25,26:26) -> 1.2 | GR31: =interpolate_look_up(GR2,25:25,26:26) -> 1.2 | GS31: =interpolate_look_up(GS2,25:25,26:26) -> 1.2 | GT31: =interpolate_look_up(GT2,25:25,26:26) -> 1.2 | GU31: =interpolate_look_up(GU2,25:25,26:26) -> 1.2 | GV31: =interpolate_look_up(GV2,25:25,26:26) -> 1.2 | GW31: =interpolate_look_up(GW2,25:25,26:26) -> 1.2 | GX31: =interpolate_look_up(GX2,25:25,26:26) -> 1.2 | GY31: =interpolate_look_up(GY2,25:25,26:26) -> 1.2 | GZ31: =interpolate_look_up(GZ2,25:25,26:26) -> 1.2 | HA31: =interpolate_look_up(HA2,25:25,26:26) -> 1.2 | HB31: =interpolate_look_up(HB2,25:25,26:26) -> 1.2 | HC31: =interpolate_look_up(HC2,25:25,26:26) -> 1.2 | HD31: =interpolate_look_up(HD2,25:25,26:26) -> 1.2 | HE31: =interpolate_look_up(HE2,25:25,26:26) -> 1.2 | HF31: =interpolate_look_up(HF2,25:25,26:26) -> 1.2 | HG31: =interpolate_look_up(HG2,25:25,26:26) -> 1.2 | HH31: =interpolate_look_up(HH2,25:25,26:26) -> 1.2 | HI31: =interpolate_look_up(HI2,25:25,26:26) -> 1.2 | HJ31: =interpolate_look_up(HJ2,25:25,26:26) -> 1.2 | HK31: =interpolate_look_up(HK2,25:25,26:26) -> 1.2 | HL31: =interpolate_look_up(HL2,25:25,26:26) -> 1.2 | HM31: =interpolate_look_up(HM2,25:25,26:26) -> 1.2 | HN31: =interpolate_look_up(HN2,25:25,26:26) -> 1.2 | HO31: =interpolate_look_up(HO2,25:25,26:26) -> 1.2 | HP31: =interpolate_look_up(HP2,25:25,26:26) -> 1.2 | HQ31: =interpolate_look_up(HQ2,25:25,26:26) -> 1.2 | HR31: =interpolate_look_up(HR2,25:25,26:26) -> 1.2 | HS31: =interpolate_look_up(HS2,25:25,26:26) -> 1.2 | HT31: =interpolate_look_up(HT2,25:25,26:26) -> 1.2 | HU31: =interpolate_look_up(HU2,25:25,26:26) -> 1.2 | HV31: =interpolate_look_up(HV2,25:25,26:26) -> 1.2 | HW31: =interpolate_look_up(HW2,25:25,26:26) -> 1.2 | HX31: =interpolate_look_up(HX2,25:25,26:26) -> 1.2 | HY31: =interpolate_look_up(HY2,25:25,26:26) -> 1.2 | HZ31: =interpolate_look_up(HZ2,25:25,26:26) -> 1.2 | IA31: =interpolate_look_up(IA2,25:25,26:26) -> 1.2 | IB31: =interpolate_look_up(IB2,25:25,26:26) -> 1.2 | IC31: =interpolate_look_up(IC2,25:25,26:26) -> 1.2 | ID31: =interpolate_look_up(ID2,25:25,26:26) -> 1.2 | IE31: =interpolate_look_up(IE2,25:25,26:26) -> 1.2 | IF31: =interpolate_look_up(IF2,25:25,26:26) -> 1.2 | IG31: =interpolate_look_up(IG2,25:25,26:26) -> 1.2 | IH31: =interpolate_look_up(IH2,25:25,26:26) -> 1.2 | II31: =interpolate_look_up(II2,25:25,26:26) -> 1.2 | IJ31: =interpolate_look_up(IJ2,25:25,26:26) -> 1.2 | IK31: =interpolate_look_up(IK2,25:25,26:26) -> 1.2 | IL31: =interpolate_look_up(IL2,25:25,26:26) -> 1.2 | IM31: =interpolate_look_up(IM2,25:25,26:26) -> 1.2 | IN31: =interpolate_look_up(IN2,25:25,26:26) -> 1.2 | IO31: =interpolate_look_up(IO2,25:25,26:26) -> 1.2 | IP31: =interpolate_look_up(IP2,25:25,26:26) -> 1.2 | IQ31: =interpolate_look_up(IQ2,25:25,26:26) -> 1.2 | IR31: =interpolate_look_up(IR2,25:25,26:26) -> 1.2 | IS31: =interpolate_look_up(IS2,25:25,26:26) -> 1.2 | IT31: =interpolate_look_up(IT2,25:25,26:26) -> 1.2 | IU31: =interpolate_look_up(IU2,25:25,26:26) -> 1.2 | IV31: =interpolate_look_up(IV2,25:25,26:26) -> 1.2 | IW31: =interpolate_look_up(IW2,25:25,26:26) -> 1.2 | IX31: =interpolate_look_up(IX2,25:25,26:26) -> 1.2 | IY31: =interpolate_look_up(IY2,25:25,26:26) -> 1.2 | IZ31: =interpolate_look_up(IZ2,25:25,26:26) -> 1.2 | JA31: =interpolate_look_up(JA2,25:25,26:26) -> 1.2 | JB31: =interpolate_look_up(JB2,25:25,26:26) -> 1.2 | JC31: =interpolate_look_up(JC2,25:25,26:26) -> 1.2 | JD31: =interpolate_look_up(JD2,25:25,26:26) -> 1.2 | JE31: =interpolate_look_up(JE2,25:25,26:26) -> 1.2 | JF31: =interpolate_look_up(JF2,25:25,26:26) -> 1.2 | JG31: =interpolate_look_up(JG2,25:25,26:26) -> 1.2 | JH31: =interpolate_look_up(JH2,25:25,26:26) -> 1.2 | JI31: =interpolate_look_up(JI2,25:25,26:26) -> 1.2 | JJ31: =interpolate_look_up(JJ2,25:25,26:26) -> 1.2 | JK31: =interpolate_look_up(JK2,25:25,26:26) -> 1.2 | JL31: =interpolate_look_up(JL2,25:25,26:26) -> 1.2 | JM31: =interpolate_look_up(JM2,25:25,26:26) -> 1.2 | JN31: =interpolate_look_up(JN2,25:25,26:26) -> 1.2 | JO31: =interpolate_look_up(JO2,25:25,26:26) -> 1.2 | JP31: =interpolate_look_up(JP2,25:25,26:26) -> 1.2 | JQ31: =interpolate_look_up(JQ2,25:25,26:26) -> 1.2 | JR31: =interpolate_look_up(JR2,25:25,26:26) -> 1.2 | JS31: =interpolate_look_up(JS2,25:25,26:26) -> 1.2 | JT31: =interpolate_look_up(JT2,25:25,26:26) -> 1.2 | JU31: =interpolate_look_up(JU2,25:25,26:26) -> 1.2 | JV31: =interpolate_look_up(JV2,25:25,26:26) -> 1.2 | JW31: =interpolate_look_up(JW2,25:25,26:26) -> 1.2 | JX31: =interpolate_look_up(JX2,25:25,26:26) -> 1.2 | JY31: =interpolate_look_up(JY2,25:25,26:26) -> 1.2 | JZ31: =interpolate_look_up(JZ2,25:25,26:26) -> 1.2 | KA31: =interpolate_look_up(KA2,25:25,26:26) -> 1.2 | KB31: =interpolate_look_up(KB2,25:25,26:26) -> 1.2 | KC31: =interpolate_look_up(KC2,25:25,26:26) -> 1.2 | KD31: =interpolate_look_up(KD2,25:25,26:26) -> 1.2 | KE31: =interpolate_look_up(KE2,25:25,26:26) -> 1.2 | KF31: =interpolate_look_up(KF2,25:25,26:26) -> 1.2 | KG31: =interpolate_look_up(KG2,25:25,26:26) -> 1.2 | KH31: =interpolate_look_up(KH2,25:25,26:26) -> 1.2 | KI31: =interpolate_look_up(KI2,25:25,26:26) -> 1.2 | KJ31: =interpolate_look_up(KJ2,25:25,26:26) -> 1.2 | KK31: =interpolate_look_up(KK2,25:25,26:26) -> 1.2 | KL31: =interpolate_look_up(KL2,25:25,26:26) -> 1.2 | KM31: =interpolate_look_up(KM2,25:25,26:26) -> 1.2 | KN31: =interpolate_look_up(KN2,25:25,26:26) -> 1.2 | KO31: =interpolate_look_up(KO2,25:25,26:26) -> 1.2 | KP31: =interpolate_look_up(KP2,25:25,26:26) -> 1.2 | KQ31: =interpolate_look_up(KQ2,25:25,26:26) -> 1.2 | KR31: =interpolate_look_up(KR2,25:25,26:26) -> 1.2 | KS31: =interpolate_look_up(KS2,25:25,26:26) -> 1.2 | KT31: =interpolate_look_up(KT2,25:25,26:26) -> 1.2
D32: Base CFADS | G32: =100/12 -> 8.333333333 | H32: =G32 -> 8.333333333 | I32: =H32 -> 8.333333333 | J32: 8.333333333 | K32: 8.333333333 | L32: 8.333333333 | M32: 8.333333333 | N32: 8.333333333 | O32: 8.333333333 | P32: 8.333333333 | Q32: 8.333333333 | R32: 8.333333333 | S32: 8.333333333 | T32: 8.333333333 | U32: 8.333333333 | V32: 8.333333333 | W32: 8.333333333 | X32: 8.333333333 | Y32: 8.333333333 | Z32: 8.333333333 | AA32: 8.333333333 | AB32: 8.333333333 | AC32: 8.333333333 | AD32: =AC32 -> 8.333333333 | AE32: =AD32 -> 8.333333333 | AF32: =AE32 -> 8.333333333 | AG32: =AF32 -> 8.333333333 | AH32: =AG32 -> 8.333333333 | AI32: =AH32 -> 8.333333333 | AJ32: =AI32 -> 8.333333333 | AK32: =AJ32 -> 8.333333333 | AL32: =AK32 -> 8.333333333 | AM32: =AL32 -> 8.333333333 | AN32: =AM32 -> 8.333333333 | AO32: =AN32 -> 8.333333333 | AP32: =AO32 -> 8.333333333 | AQ32: =AP32 -> 8.333333333 | AR32: =AQ32 -> 8.333333333 | AS32: =AR32 -> 8.333333333 | AT32: =AS32 -> 8.333333333 | AU32: =AT32 -> 8.333333333 | AV32: =AU32 -> 8.333333333 | AW32: =AV32 -> 8.333333333 | AX32: =AW32 -> 8.333333333 | AY32: =AX32 -> 8.333333333 | AZ32: =AY32 -> 8.333333333 | BA32: =AZ32 -> 8.333333333 | BB32: =BA32 -> 8.333333333 | BC32: =BB32 -> 8.333333333 | BD32: =BC32 -> 8.333333333 | BE32: =BD32 -> 8.333333333 | BF32: =BE32 -> 8.333333333 | BG32: =BF32 -> 8.333333333 | BH32: =BG32 -> 8.333333333 | BI32: =BH32 -> 8.333333333 | BJ32: =BI32 -> 8.333333333 | BK32: =BJ32 -> 8.333333333 | BL32: =BK32 -> 8.333333333 | BM32: =BL32 -> 8.333333333 | BN32: =BM32 -> 8.333333333 | BO32: =BN32 -> 8.333333333 | BP32: =BO32 -> 8.333333333 | BQ32: =BP32 -> 8.333333333 | BR32: =BQ32 -> 8.333333333 | BS32: =BR32 -> 8.333333333 | BT32: =BS32 -> 8.333333333 | BU32: =BT32 -> 8.333333333 | BV32: =BU32 -> 8.333333333 | BW32: =BV32 -> 8.333333333 | BX32: =BW32 -> 8.333333333 | BY32: =BX32 -> 8.333333333 | BZ32: =BY32 -> 8.333333333 | CA32: =BZ32 -> 8.333333333 | CB32: =CA32 -> 8.333333333 | CC32: =CB32 -> 8.333333333 | CD32: =CC32 -> 8.333333333 | CE32: =CD32 -> 8.333333333 | CF32: =CE32 -> 8.333333333 | CG32: =CF32 -> 8.333333333 | CH32: =CG32 -> 8.333333333 | CI32: =CH32 -> 8.333333333 | CJ32: =CI32 -> 8.333333333 | CK32: =CJ32 -> 8.333333333 | CL32: =CK32 -> 8.333333333 | CM32: =CL32 -> 8.333333333 | CN32: =CM32 -> 8.333333333 | CO32: =CN32 -> 8.333333333 | CP32: =CO32 -> 8.333333333 | CQ32: =CP32 -> 8.333333333 | CR32: =CQ32 -> 8.333333333 | CS32: =CR32 -> 8.333333333 | CT32: =CS32 -> 8.333333333 | CU32: =CT32 -> 8.333333333 | CV32: =CU32 -> 8.333333333 | CW32: =CV32 -> 8.333333333 | CX32: =CW32 -> 8.333333333 | CY32: =CX32 -> 8.333333333 | CZ32: =CY32 -> 8.333333333 | DA32: =CZ32 -> 8.333333333 | DB32: =DA32 -> 8.333333333 | DC32: =DB32 -> 8.333333333 | DD32: =DC32 -> 8.333333333 | DE32: =DD32 -> 8.333333333 | DF32: =DE32 -> 8.333333333 | DG32: =DF32 -> 8.333333333 | DH32: =DG32 -> 8.333333333 | DI32: =DH32 -> 8.333333333 | DJ32: =DI32 -> 8.333333333 | DK32: =DJ32 -> 8.333333333 | DL32: =DK32 -> 8.333333333 | DM32: =DL32 -> 8.333333333 | DN32: =DM32 -> 8.333333333 | DO32: =DN32 -> 8.333333333 | DP32: =DO32 -> 8.333333333 | DQ32: =DP32 -> 8.333333333 | DR32: =DQ32 -> 8.333333333 | DS32: =DR32 -> 8.333333333 | DT32: =DS32 -> 8.333333333 | DU32: =DT32 -> 8.333333333 | DV32: =DU32 -> 8.333333333 | DW32: =DV32 -> 8.333333333 | DX32: =DW32 -> 8.333333333 | DY32: =DX32 -> 8.333333333 | DZ32: =DY32 -> 8.333333333 | EA32: =DZ32 -> 8.333333333 | EB32: =EA32 -> 8.333333333 | EC32: =EB32 -> 8.333333333 | ED32: =EC32 -> 8.333333333 | EE32: =ED32 -> 8.333333333 | EF32: =EE32 -> 8.333333333 | EG32: =EF32 -> 8.333333333 | EH32: =EG32 -> 8.333333333 | EI32: =EH32 -> 8.333333333 | EJ32: =EI32 -> 8.333333333 | EK32: =EJ32 -> 8.333333333 | EL32: =EK32 -> 8.333333333 | EM32: =EL32 -> 8.333333333 | EN32: =EM32 -> 8.333333333 | EO32: =EN32 -> 8.333333333 | EP32: =EO32 -> 8.333333333 | EQ32: =EP32 -> 8.333333333 | ER32: =EQ32 -> 8.333333333 | ES32: =ER32 -> 8.333333333 | ET32: =ES32 -> 8.333333333 | EU32: =ET32 -> 8.333333333 | EV32: =EU32 -> 8.333333333 | EW32: =EV32 -> 8.333333333 | EX32: =EW32 -> 8.333333333 | EY32: =EX32 -> 8.333333333 | EZ32: =EY32 -> 8.333333333 | FA32: =EZ32 -> 8.333333333 | FB32: =FA32 -> 8.333333333 | FC32: =FB32 -> 8.333333333 | FD32: =FC32 -> 8.333333333 | FE32: =FD32 -> 8.333333333 | FF32: =FE32 -> 8.333333333 | FG32: =FF32 -> 8.333333333 | FH32: =FG32 -> 8.333333333 | FI32: =FH32 -> 8.333333333 | FJ32: =FI32 -> 8.333333333 | FK32: =FJ32 -> 8.333333333 | FL32: =FK32 -> 8.333333333 | FM32: =FL32 -> 8.333333333 | FN32: =FM32 -> 8.333333333 | FO32: =FN32 -> 8.333333333 | FP32: =FO32 -> 8.333333333 | FQ32: =FP32 -> 8.333333333 | FR32: =FQ32 -> 8.333333333 | FS32: =FR32 -> 8.333333333 | FT32: =FS32 -> 8.333333333 | FU32: =FT32 -> 8.333333333 | FV32: =FU32 -> 8.333333333 | FW32: =FV32 -> 8.333333333 | FX32: =FW32 -> 8.333333333 | FY32: =FX32 -> 8.333333333 | FZ32: =FY32 -> 8.333333333 | GA32: =FZ32 -> 8.333333333 | GB32: =GA32 -> 8.333333333 | GC32: =GB32 -> 8.333333333 | GD32: =GC32 -> 8.333333333 | GE32: =GD32 -> 8.333333333 | GF32: =GE32 -> 8.333333333 | GG32: =GF32 -> 8.333333333 | GH32: =GG32 -> 8.333333333 | GI32: =GH32 -> 8.333333333 | GJ32: =GI32 -> 8.333333333 | GK32: =GJ32 -> 8.333333333 | GL32: =GK32 -> 8.333333333 | GM32: =GL32 -> 8.333333333 | GN32: =GM32 -> 8.333333333 | GO32: =GN32 -> 8.333333333 | GP32: =GO32 -> 8.333333333 | GQ32: =GP32 -> 8.333333333 | GR32: =GQ32 -> 8.333333333 | GS32: =GR32 -> 8.333333333 | GT32: =GS32 -> 8.333333333 | GU32: =GT32 -> 8.333333333 | GV32: =GU32 -> 8.333333333 | GW32: =GV32 -> 8.333333333 | GX32: =GW32 -> 8.333333333 | GY32: =GX32 -> 8.333333333 | GZ32: =GY32 -> 8.333333333 | HA32: =GZ32 -> 8.333333333 | HB32: =HA32 -> 8.333333333 | HC32: =HB32 -> 8.333333333 | HD32: =HC32 -> 8.333333333 | HE32: =HD32 -> 8.333333333 | HF32: =HE32 -> 8.333333333 | HG32: =HF32 -> 8.333333333 | HH32: =HG32 -> 8.333333333 | HI32: =HH32 -> 8.333333333 | HJ32: =HI32 -> 8.333333333 | HK32: =HJ32 -> 8.333333333 | HL32: =HK32 -> 8.333333333 | HM32: =HL32 -> 8.333333333 | HN32: =HM32 -> 8.333333333 | HO32: =HN32 -> 8.333333333 | HP32: =HO32 -> 8.333333333 | HQ32: =HP32 -> 8.333333333 | HR32: =HQ32 -> 8.333333333 | HS32: =HR32 -> 8.333333333 | HT32: =HS32 -> 8.333333333 | HU32: =HT32 -> 8.333333333 | HV32: =HU32 -> 8.333333333 | HW32: =HV32 -> 8.333333333 | HX32: =HW32 -> 8.333333333 | HY32: =HX32 -> 8.333333333 | HZ32: =HY32 -> 8.333333333 | IA32: =HZ32 -> 8.333333333 | IB32: =IA32 -> 8.333333333 | IC32: =IB32 -> 8.333333333 | ID32: =IC32 -> 8.333333333 | IE32: =ID32 -> 8.333333333 | IF32: =IE32 -> 8.333333333 | IG32: =IF32 -> 8.333333333 | IH32: =IG32 -> 8.333333333 | II32: =IH32 -> 8.333333333 | IJ32: =II32 -> 8.333333333 | IK32: =IJ32 -> 8.333333333 | IL32: =IK32 -> 8.333333333 | IM32: =IL32 -> 8.333333333 | IN32: =IM32 -> 8.333333333 | IO32: =IN32 -> 8.333333333 | IP32: =IO32 -> 8.333333333 | IQ32: =IP32 -> 8.333333333 | IR32: =IQ32 -> 8.333333333 | IS32: =IR32 -> 8.333333333 | IT32: =IS32 -> 8.333333333 | IU32: =IT32 -> 8.333333333 | IV32: =IU32 -> 8.333333333 | IW32: =IV32 -> 8.333333333 | IX32: =IW32 -> 8.333333333 | IY32: =IX32 -> 8.333333333 | IZ32: =IY32 -> 8.333333333 | JA32: =IZ32 -> 8.333333333 | JB32: =JA32 -> 8.333333333 | JC32: =JB32 -> 8.333333333 | JD32: =JC32 -> 8.333333333 | JE32: =JD32 -> 8.333333333 | JF32: =JE32 -> 8.333333333 | JG32: =JF32 -> 8.333333333 | JH32: =JG32 -> 8.333333333 | JI32: =JH32 -> 8.333333333 | JJ32: =JI32 -> 8.333333333 | JK32: =JJ32 -> 8.333333333 | JL32: =JK32 -> 8.333333333 | JM32: =JL32 -> 8.333333333 | JN32: =JM32 -> 8.333333333 | JO32: =JN32 -> 8.333333333 | JP32: =JO32 -> 8.333333333 | JQ32: =JP32 -> 8.333333333 | JR32: =JQ32 -> 8.333333333 | JS32: =JR32 -> 8.333333333 | JT32: =JS32 -> 8.333333333 | JU32: =JT32 -> 8.333333333 | JV32: =JU32 -> 8.333333333 | JW32: =JV32 -> 8.333333333 | JX32: =JW32 -> 8.333333333 | JY32: =JX32 -> 8.333333333 | JZ32: =JY32 -> 8.333333333 | KA32: =JZ32 -> 8.333333333 | KB32: =KA32 -> 8.333333333 | KC32: =KB32 -> 8.333333333 | KD32: =KC32 -> 8.333333333 | KE32: =KD32 -> 8.333333333 | KF32: =KE32 -> 8.333333333 | KG32: =KF32 -> 8.333333333 | KH32: =KG32 -> 8.333333333 | KI32: =KH32 -> 8.333333333 | KJ32: =KI32 -> 8.333333333 | KK32: =KJ32 -> 8.333333333 | KL32: =KK32 -> 8.333333333 | KM32: =KL32 -> 8.333333333 | KN32: =KM32 -> 8.333333333 | KO32: =KN32 -> 8.333333333 | KP32: =KO32 -> 8.333333333 | KQ32: =KP32 -> 8.333333333 | KR32: =KQ32 -> 8.333333333 | KS32: =KR32 -> 8.333333333 | KT32: =KS32 -> 8.333333333
B34: CFADS
D35: Growth Rate | G35: =(LOOKUP(G2,17:17,18:18)+1)^(1/12)-1 -> 0.007207323316 | H35: 0.007207323316 | I35: 0.00643403011 | J35: 0.00643403011 | K35: 0.00643403011 | L35: 0.00643403011 | M35: 0.002466269772 | N35: 0.002466269772 | O35: 0.002466269772 | P35: 0.001651581302 | Q35: 0.001651581302 | R35: 0.001651581302 | S35: 0.001651581302 | T35: 0.001651581302 | U35: 0.001651581302 | V35: 0.001651581302 | W35: 0.001651581302 | X35: 0.001651581302 | Y35: 0.001651581302 | Z35: 0.001651581302 | AA35: 0.001651581302 | AB35: 0.001651581302 | AC35: 0.001651581302 | AD35: 0.001651581302 | AE35: 0.001651581302 | AF35: 0.001651581302 | AG35: 0.001651581302 | AH35: 0.001651581302 | AI35: 0.001651581302 | AJ35: 0.001651581302 | AK35: 0.001651581302 | AL35: 0.001651581302 | AM35: 0.001651581302 | AN35: 0.001651581302 | AO35: 0.001651581302 | AP35: 0.001651581302 | AQ35: 0.001651581302 | AR35: 0.001651581302 | AS35: 0.001651581302 | AT35: 0.001651581302 | AU35: 0.001651581302 | AV35: 0.001651581302 | AW35: 0.001651581302 | AX35: 0.001651581302 | AY35: 0.001651581302 | AZ35: 0.001651581302 | BA35: 0.001651581302 | BB35: 0.001651581302 | BC35: 0.001651581302 | BD35: 0.001651581302 | BE35: 0.001651581302 | BF35: 0.001651581302 | BG35: 0.001651581302 | BH35: 0.001651581302 | BI35: 0.001651581302 | BJ35: 0.001651581302 | BK35: 0.001651581302 | BL35: 0.001651581302 | BM35: 0.001651581302 | BN35: 0.001651581302 | BO35: 0.001651581302 | BP35: 0.001651581302 | BQ35: 0.001651581302 | BR35: 0.001651581302 | BS35: =(LOOKUP(BS2,17:17,18:18)+1)^(1/12)-1 -> 0.001651581302 | BT35: 0.001651581302 | BU35: 0.001651581302 | BV35: 0.001651581302 | BW35: 0.001651581302 | BX35: 0.001651581302 | BY35: 0.001651581302 | BZ35: 0.001651581302 | CA35: 0.001651581302 | CB35: 0.001651581302 | CC35: 0.001651581302 | CD35: 0.001651581302 | CE35: 0.001651581302 | CF35: 0.001651581302 | CG35: 0.001651581302 | CH35: 0.001651581302 | CI35: 0.001651581302 | CJ35: 0.001651581302 | CK35: 0.001651581302 | CL35: 0.001651581302 | CM35: 0.001651581302 | CN35: 0.001651581302 | CO35: 0.001651581302 | CP35: 0.001651581302 | CQ35: 0.001651581302 | CR35: 0.001651581302 | CS35: 0.001651581302 | CT35: 0.001651581302 | CU35: 0.001651581302 | CV35: 0.001651581302 | CW35: 0.001651581302 | CX35: 0.001651581302 | CY35: 0.001651581302 | CZ35: 0.001651581302 | DA35: 0.001651581302 | DB35: 0.001651581302 | DC35: 0.001651581302 | DD35: 0.001651581302 | DE35: 0.001651581302 | DF35: 0.001651581302 | DG35: 0.001651581302 | DH35: 0.001651581302 | DI35: 0.001651581302 | DJ35: 0.001651581302 | DK35: 0.001651581302 | DL35: 0.001651581302 | DM35: 0.001651581302 | DN35: 0.001651581302 | DO35: 0.001651581302 | DP35: 0.001651581302 | DQ35: 0.001651581302 | DR35: 0.001651581302 | DS35: 0.001651581302 | DT35: 0.001651581302 | DU35: 0.001651581302 | DV35: 0.001651581302 | DW35: 0.001651581302 | DX35: 0.001651581302 | DY35: 0.001651581302 | DZ35: 0.001651581302 | EA35: 0.001651581302 | EB35: 0.001651581302 | EC35: 0.001651581302 | ED35: 0.001651581302 | EE35: =(LOOKUP(EE2,17:17,18:18)+1)^(1/12)-1 -> 0.001651581302 | EF35: 0.001651581302 | EG35: 0.001651581302 | EH35: 0.001651581302 | EI35: 0.001651581302 | EJ35: 0.001651581302 | EK35: 0.001651581302 | EL35: 0.001651581302 | EM35: 0.001651581302 | EN35: 0.001651581302 | EO35: 0.001651581302 | EP35: 0.001651581302 | EQ35: 0.001651581302 | ER35: 0.001651581302 | ES35: 0.001651581302 | ET35: 0.001651581302 | EU35: 0.001651581302 | EV35: 0.001651581302 | EW35: 0.001651581302 | EX35: 0.001651581302 | EY35: 0.001651581302 | EZ35: 0.001651581302 | FA35: 0.001651581302 | FB35: 0.001651581302 | FC35: 0.001651581302 | FD35: 0.001651581302 | FE35: 0.001651581302 | FF35: 0.001651581302 | FG35: 0.001651581302 | FH35: 0.001651581302 | FI35: 0.001651581302 | FJ35: 0.001651581302 | FK35: 0.001651581302 | FL35: 0.001651581302 | FM35: 0.001651581302 | FN35: 0.001651581302 | FO35: 0.001651581302 | FP35: 0.001651581302 | FQ35: 0.001651581302 | FR35: 0.001651581302 | FS35: 0.001651581302 | FT35: 0.001651581302 | FU35: 0.001651581302 | FV35: 0.001651581302 | FW35: 0.001651581302 | FX35: 0.001651581302 | FY35: 0.001651581302 | FZ35: 0.001651581302 | GA35: 0.001651581302 | GB35: 0.001651581302 | GC35: 0.001651581302 | GD35: 0.001651581302 | GE35: 0.001651581302 | GF35: 0.001651581302 | GG35: 0.001651581302 | GH35: 0.001651581302 | GI35: 0.001651581302 | GJ35: 0.001651581302 | GK35: 0.001651581302 | GL35: 0.001651581302 | GM35: 0.001651581302 | GN35: 0.001651581302 | GO35: 0.001651581302 | GP35: 0.001651581302 | GQ35: =(LOOKUP(GQ2,17:17,18:18)+1)^(1/12)-1 -> 0.001651581302 | GR35: 0.001651581302 | GS35: 0.001651581302 | GT35: 0.001651581302 | GU35: 0.001651581302 | GV35: 0.001651581302 | GW35: 0.001651581302 | GX35: 0.001651581302 | GY35: 0.001651581302 | GZ35: 0.001651581302 | HA35: 0.001651581302 | HB35: 0.001651581302 | HC35: 0.001651581302 | HD35: 0.001651581302 | HE35: 0.001651581302 | HF35: 0.001651581302 | HG35: 0.001651581302 | HH35: 0.001651581302 | HI35: 0.001651581302 | HJ35: 0.001651581302 | HK35: 0.001651581302 | HL35: 0.001651581302 | HM35: 0.001651581302 | HN35: 0.001651581302 | HO35: 0.001651581302 | HP35: 0.001651581302 | HQ35: 0.001651581302 | HR35: 0.001651581302 | HS35: 0.001651581302 | HT35: 0.001651581302 | HU35: 0.001651581302 | HV35: 0.001651581302 | HW35: 0.001651581302 | HX35: 0.001651581302 | HY35: 0.001651581302 | HZ35: 0.001651581302 | IA35: 0.001651581302 | IB35: 0.001651581302 | IC35: 0.001651581302 | ID35: 0.001651581302 | IE35: 0.001651581302 | IF35: 0.001651581302 | IG35: 0.001651581302 | IH35: 0.001651581302 | II35: 0.001651581302 | IJ35: 0.001651581302 | IK35: 0.001651581302 | IL35: 0.001651581302 | IM35: 0.001651581302 | IN35: 0.001651581302 | IO35: 0.001651581302 | IP35: 0.001651581302 | IQ35: 0.001651581302 | IR35: 0.001651581302 | IS35: 0.001651581302 | IT35: 0.001651581302 | IU35: 0.001651581302 | IV35: 0.001651581302 | IW35: 0.001651581302 | IX35: 0.001651581302 | IY35: 0.001651581302 | IZ35: 0.001651581302 | JA35: 0.001651581302 | JB35: 0.001651581302 | JC35: =(LOOKUP(JC2,17:17,18:18)+1)^(1/12)-1 -> 0.001651581302 | JD35: 0.001651581302 | JE35: 0.001651581302 | JF35: 0.001651581302 | JG35: 0.001651581302 | JH35: 0.001651581302 | JI35: 0.001651581302 | JJ35: 0.001651581302 | JK35: 0.001651581302 | JL35: 0.001651581302 | JM35: 0.001651581302 | JN35: 0.001651581302 | JO35: 0.001651581302 | JP35: 0.001651581302 | JQ35: 0.001651581302 | JR35: 0.001651581302 | JS35: 0.001651581302 | JT35: 0.001651581302 | JU35: 0.001651581302 | JV35: 0.001651581302 | JW35: 0.001651581302 | JX35: 0.001651581302 | JY35: 0.001651581302 | JZ35: 0.001651581302 | KA35: 0.001651581302 | KB35: 0.001651581302 | KC35: 0.001651581302 | KD35: 0.001651581302 | KE35: 0.001651581302 | KF35: 0.001651581302 | KG35: 0.001651581302 | KH35: 0.001651581302 | KI35: 0.001651581302 | KJ35: 0.001651581302 | KK35: 0.001651581302 | KL35: 0.001651581302 | KM35: 0.001651581302 | KN35: 0.001651581302 | KO35: 0.001651581302 | KP35: 0.001651581302 | KQ35: 0.001651581302 | KR35: 0.001651581302 | KS35: 0.001651581302 | KT35: 0.001651581302
D36: CFADS Index - Lookup | F36: 1 | G36: =F36*(1+G35) -> 1.007207323 | H36: =G36*(1+H35) -> 1.014466592 | I36: 1.020993701 | J36: 1.027562805 | K36: 1.034174175 | L36: 1.040828083 | M36: 1.043395046 | N36: 1.045968339 | O36: 1.048547979 | P36: 1.050279742 | Q36: 1.052014364 | R36: 1.053751851 | S36: 1.055492208 | T36: 1.057235439 | U36: 1.05898155 | V36: 1.060730544 | W36: 1.062482426 | X36: 1.064237203 | Y36: 1.065994877 | Z36: 1.067755454 | AA36: 1.069518939 | AB36: 1.071285336 | AC36: 1.073054651 | AD36: =AC36*(1+AD35) -> 1.074826888 | AE36: =AD36*(1+AE35) -> 1.076602052 | AF36: =AE36*(1+AF35) -> 1.078380148 | AG36: =AF36*(1+AG35) -> 1.080161181 | AH36: =AG36*(1+AH35) -> 1.081945155 | AI36: =AH36*(1+AI35) -> 1.083732075 | AJ36: =AI36*(1+AJ35) -> 1.085521947 | AK36: =AJ36*(1+AK35) -> 1.087314774 | AL36: =AK36*(1+AL35) -> 1.089110563 | AM36: =AL36*(1+AM35) -> 1.090909318 | AN36: =AM36*(1+AN35) -> 1.092711043 | AO36: =AN36*(1+AO35) -> 1.094515744 | AP36: =AO36*(1+AP35) -> 1.096323426 | AQ36: =AP36*(1+AQ35) -> 1.098134093 | AR36: =AQ36*(1+AR35) -> 1.099947751 | AS36: =AR36*(1+AS35) -> 1.101764404 | AT36: =AS36*(1+AT35) -> 1.103584058 | AU36: =AT36*(1+AU35) -> 1.105406716 | AV36: =AU36*(1+AV35) -> 1.107232386 | AW36: =AV36*(1+AW35) -> 1.10906107 | AX36: =AW36*(1+AX35) -> 1.110892774 | AY36: =AX36*(1+AY35) -> 1.112727504 | AZ36: =AY36*(1+AZ35) -> 1.114565264 | BA36: =AZ36*(1+BA35) -> 1.116406059 | BB36: =BA36*(1+BB35) -> 1.118249895 | BC36: =BB36*(1+BC35) -> 1.120096775 | BD36: =BC36*(1+BD35) -> 1.121946706 | BE36: =BD36*(1+BE35) -> 1.123799692 | BF36: =BE36*(1+BF35) -> 1.125655739 | BG36: =BF36*(1+BG35) -> 1.127514851 | BH36: =BG36*(1+BH35) -> 1.129377033 | BI36: =BH36*(1+BI35) -> 1.131242291 | BJ36: =BI36*(1+BJ35) -> 1.13311063 | BK36: =BJ36*(1+BK35) -> 1.134982054 | BL36: =BK36*(1+BL35) -> 1.136856569 | BM36: =BL36*(1+BM35) -> 1.13873418 | BN36: =BM36*(1+BN35) -> 1.140614892 | BO36: =BN36*(1+BO35) -> 1.142498711 | BP36: =BO36*(1+BP35) -> 1.14438564 | BQ36: =BP36*(1+BQ35) -> 1.146275686 | BR36: =BQ36*(1+BR35) -> 1.148168854 | BS36: =BR36*(1+BS35) -> 1.150065148 | BT36: =BS36*(1+BT35) -> 1.151964574 | BU36: =BT36*(1+BU35) -> 1.153867137 | BV36: =BU36*(1+BV35) -> 1.155772842 | BW36: =BV36*(1+BW35) -> 1.157681695 | BX36: =BW36*(1+BX35) -> 1.159593701 | BY36: =BX36*(1+BY35) -> 1.161508864 | BZ36: =BY36*(1+BZ35) -> 1.16342719 | CA36: =BZ36*(1+CA35) -> 1.165348685 | CB36: =CA36*(1+CB35) -> 1.167273353 | CC36: =CB36*(1+CC35) -> 1.1692012 | CD36: =CC36*(1+CD35) -> 1.171132231 | CE36: =CD36*(1+CE35) -> 1.173066451 | CF36: =CE36*(1+CF35) -> 1.175003865 | CG36: =CF36*(1+CG35) -> 1.17694448 | CH36: =CG36*(1+CH35) -> 1.178888299 | CI36: =CH36*(1+CI35) -> 1.180835329 | CJ36: =CI36*(1+CJ35) -> 1.182785575 | CK36: =CJ36*(1+CK35) -> 1.184739041 | CL36: =CK36*(1+CL35) -> 1.186695734 | CM36: =CL36*(1+CM35) -> 1.188655659 | CN36: =CM36*(1+CN35) -> 1.19061882 | CO36: =CN36*(1+CO35) -> 1.192585224 | CP36: =CO36*(1+CP35) -> 1.194554875 | CQ36: =CP36*(1+CQ35) -> 1.19652778 | CR36: =CQ36*(1+CR35) -> 1.198503943 | CS36: =CR36*(1+CS35) -> 1.200483369 | CT36: =CS36*(1+CT35) -> 1.202466065 | CU36: =CT36*(1+CU35) -> 1.204452036 | CV36: =CU36*(1+CV35) -> 1.206441286 | CW36: =CV36*(1+CW35) -> 1.208433822 | CX36: =CW36*(1+CX35) -> 1.210429649 | CY36: =CX36*(1+CY35) -> 1.212428772 | CZ36: =CY36*(1+CZ35) -> 1.214431196 | DA36: =CZ36*(1+DA35) -> 1.216436928 | DB36: =DA36*(1+DB35) -> 1.218445973 | DC36: =DB36*(1+DC35) -> 1.220458335 | DD36: =DC36*(1+DD35) -> 1.222474022 | DE36: =DD36*(1+DE35) -> 1.224493037 | DF36: =DE36*(1+DF35) -> 1.226515387 | DG36: =DF36*(1+DG35) -> 1.228541076 | DH36: =DG36*(1+DH35) -> 1.230570112 | DI36: =DH36*(1+DI35) -> 1.232602499 | DJ36: =DI36*(1+DJ35) -> 1.234638242 | DK36: =DJ36*(1+DK35) -> 1.236677347 | DL36: =DK36*(1+DL35) -> 1.23871982 | DM36: =DL36*(1+DM35) -> 1.240765667 | DN36: =DM36*(1+DN35) -> 1.242814892 | DO36: =DN36*(1+DO35) -> 1.244867502 | DP36: =DO36*(1+DP35) -> 1.246923502 | DQ36: =DP36*(1+DQ35) -> 1.248982898 | DR36: =DQ36*(1+DR35) -> 1.251045694 | DS36: =DR36*(1+DS35) -> 1.253111898 | DT36: =DS36*(1+DT35) -> 1.255181514 | DU36: =DT36*(1+DU35) -> 1.257254548 | DV36: =DU36*(1+DV35) -> 1.259331007 | DW36: =DV36*(1+DW35) -> 1.261410894 | DX36: =DW36*(1+DX35) -> 1.263494217 | DY36: =DX36*(1+DY35) -> 1.26558098 | DZ36: =DY36*(1+DZ35) -> 1.26767119 | EA36: =DZ36*(1+EA35) -> 1.269764852 | EB36: =EA36*(1+EB35) -> 1.271861972 | EC36: =EB36*(1+EC35) -> 1.273962555 | ED36: =EC36*(1+ED35) -> 1.276066608 | EE36: =ED36*(1+EE35) -> 1.278174136 | EF36: =EE36*(1+EF35) -> 1.280285144 | EG36: =EF36*(1+EG35) -> 1.282399639 | EH36: =EG36*(1+EH35) -> 1.284517627 | EI36: =EH36*(1+EI35) -> 1.286639112 | EJ36: =EI36*(1+EJ35) -> 1.288764101 | EK36: =EJ36*(1+EK35) -> 1.2908926 | EL36: =EK36*(1+EL35) -> 1.293024614 | EM36: =EL36*(1+EM35) -> 1.295160149 | EN36: =EM36*(1+EN35) -> 1.297299211 | EO36: =EN36*(1+EO35) -> 1.299441807 | EP36: =EO36*(1+EP35) -> 1.30158794 | EQ36: =EP36*(1+EQ35) -> 1.303737619 | ER36: =EQ36*(1+ER35) -> 1.305890847 | ES36: =ER36*(1+ES35) -> 1.308047632 | ET36: =ES36*(1+ET35) -> 1.310207979 | EU36: =ET36*(1+EU35) -> 1.312371894 | EV36: =EU36*(1+EV35) -> 1.314539383 | EW36: =EV36*(1+EW35) -> 1.316710452 | EX36: =EW36*(1+EX35) -> 1.318885106 | EY36: =EX36*(1+EY35) -> 1.321063352 | EZ36: =EY36*(1+EZ35) -> 1.323245196 | FA36: =EZ36*(1+FA35) -> 1.325430643 | FB36: =FA36*(1+FB35) -> 1.327619699 | FC36: =FB36*(1+FC35) -> 1.329812371 | FD36: =FC36*(1+FD35) -> 1.332008664 | FE36: =FD36*(1+FE35) -> 1.334208585 | FF36: =FE36*(1+FF35) -> 1.336412139 | FG36: =FF36*(1+FG35) -> 1.338619332 | FH36: =FG36*(1+FH35) -> 1.340830171 | FI36: =FH36*(1+FI35) -> 1.343044661 | FJ36: =FI36*(1+FJ35) -> 1.345262808 | FK36: =FJ36*(1+FK35) -> 1.347484619 | FL36: =FK36*(1+FL35) -> 1.3497101 | FM36: =FL36*(1+FM35) -> 1.351939256 | FN36: =FM36*(1+FN35) -> 1.354172093 | FO36: =FN36*(1+FO35) -> 1.356408618 | FP36: =FO36*(1+FP35) -> 1.358648838 | FQ36: =FP36*(1+FQ35) -> 1.360892757 | FR36: =FQ36*(1+FR35) -> 1.363140382 | FS36: =FR36*(1+FS35) -> 1.365391719 | FT36: =FS36*(1+FT35) -> 1.367646774 | FU36: =FT36*(1+FU35) -> 1.369905554 | FV36: =FU36*(1+FV35) -> 1.372168064 | FW36: =FV36*(1+FW35) -> 1.374434312 | FX36: =FW36*(1+FX35) -> 1.376704302 | FY36: =FX36*(1+FY35) -> 1.378978041 | FZ36: =FY36*(1+FZ35) -> 1.381255535 | GA36: =FZ36*(1+GA35) -> 1.383536791 | GB36: =GA36*(1+GB35) -> 1.385821814 | GC36: =GB36*(1+GC35) -> 1.388110612 | GD36: =GC36*(1+GD35) -> 1.390403189 | GE36: =GD36*(1+GE35) -> 1.392699553 | GF36: =GE36*(1+GF35) -> 1.39499971 | GG36: =GF36*(1+GG35) -> 1.397303665 | GH36: =GG36*(1+GH35) -> 1.399611426 | GI36: =GH36*(1+GI35) -> 1.401922998 | GJ36: =GI36*(1+GJ35) -> 1.404238388 | GK36: =GJ36*(1+GK35) -> 1.406557601 | GL36: =GK36*(1+GL35) -> 1.408880646 | GM36: =GL36*(1+GM35) -> 1.411207527 | GN36: =GM36*(1+GN35) -> 1.413538251 | GO36: =GN36*(1+GO35) -> 1.415872824 | GP36: =GO36*(1+GP35) -> 1.418211253 | GQ36: =GP36*(1+GQ35) -> 1.420553544 | GR36: =GQ36*(1+GR35) -> 1.422899704 | GS36: =GR36*(1+GS35) -> 1.425249738 | GT36: =GS36*(1+GT35) -> 1.427603654 | GU36: =GT36*(1+GU35) -> 1.429961458 | GV36: =GU36*(1+GV35) -> 1.432323155 | GW36: =GV36*(1+GW35) -> 1.434688753 | GX36: =GW36*(1+GX35) -> 1.437058259 | GY36: =GX36*(1+GY35) -> 1.439431677 | GZ36: =GY36*(1+GZ35) -> 1.441809016 | HA36: =GZ36*(1+HA35) -> 1.44419028 | HB36: =HA36*(1+HB35) -> 1.446575478 | HC36: =HB36*(1+HC35) -> 1.448964615 | HD36: =HC36*(1+HD35) -> 1.451357698 | HE36: =HD36*(1+HE35) -> 1.453754733 | HF36: =HE36*(1+HF35) -> 1.456155727 | HG36: =HF36*(1+HG35) -> 1.458560687 | HH36: =HG36*(1+HH35) -> 1.460969618 | HI36: =HH36*(1+HI35) -> 1.463382529 | HJ36: =HI36*(1+HJ35) -> 1.465799424 | HK36: =HJ36*(1+HK35) -> 1.468220311 | HL36: =HK36*(1+HL35) -> 1.470645196 | HM36: =HL36*(1+HM35) -> 1.473074086 | HN36: =HM36*(1+HN35) -> 1.475506988 | HO36: =HN36*(1+HO35) -> 1.477943907 | HP36: =HO36*(1+HP35) -> 1.480384852 | HQ36: =HP36*(1+HQ35) -> 1.482829828 | HR36: =HQ36*(1+HR35) -> 1.485278842 | HS36: =HR36*(1+HS35) -> 1.487731901 | HT36: =HS36*(1+HT35) -> 1.490189011 | HU36: =HT36*(1+HU35) -> 1.492650179 | HV36: =HU36*(1+HV35) -> 1.495115412 | HW36: =HV36*(1+HW35) -> 1.497584717 | HX36: =HW36*(1+HX35) -> 1.5000581 | HY36: =HX36*(1+HY35) -> 1.502535568 | HZ36: =HY36*(1+HZ35) -> 1.505017127 | IA36: =HZ36*(1+IA35) -> 1.507502786 | IB36: =IA36*(1+IB35) -> 1.509992549 | IC36: =IB36*(1+IC35) -> 1.512486424 | ID36: =IC36*(1+ID35) -> 1.514984419 | IE36: =ID36*(1+IE35) -> 1.517486539 | IF36: =IE36*(1+IF35) -> 1.519992791 | IG36: =IF36*(1+IG35) -> 1.522503183 | IH36: =IG36*(1+IH35) -> 1.525017721 | II36: =IH36*(1+II35) -> 1.527536411 | IJ36: =II36*(1+IJ35) -> 1.530059262 | IK36: =IJ36*(1+IK35) -> 1.532586279 | IL36: =IK36*(1+IL35) -> 1.53511747 | IM36: =IL36*(1+IM35) -> 1.537652841 | IN36: =IM36*(1+IN35) -> 1.5401924 | IO36: =IN36*(1+IO35) -> 1.542736153 | IP36: =IO36*(1+IP35) -> 1.545284107 | IQ36: =IP36*(1+IQ35) -> 1.547836269 | IR36: =IQ36*(1+IR35) -> 1.550392647 | IS36: =IR36*(1+IS35) -> 1.552953246 | IT36: =IS36*(1+IT35) -> 1.555518075 | IU36: =IT36*(1+IU35) -> 1.558087139 | IV36: =IU36*(1+IV35) -> 1.560660447 | IW36: =IV36*(1+IW35) -> 1.563238005 | IX36: =IW36*(1+IX35) -> 1.565819819 | IY36: =IX36*(1+IY35) -> 1.568405898 | IZ36: =IY36*(1+IZ35) -> 1.570996248 | JA36: =IZ36*(1+JA35) -> 1.573590876 | JB36: =JA36*(1+JB35) -> 1.576189789 | JC36: =JB36*(1+JC35) -> 1.578792995 | JD36: =JC36*(1+JD35) -> 1.5814005 | JE36: =JD36*(1+JE35) -> 1.584012311 | JF36: =JE36*(1+JF35) -> 1.586628436 | JG36: =JF36*(1+JG35) -> 1.589248882 | JH36: =JG36*(1+JH35) -> 1.591873656 | JI36: =JH36*(1+JI35) -> 1.594502765 | JJ36: =JI36*(1+JJ35) -> 1.597136216 | JK36: =JJ36*(1+JK35) -> 1.599774016 | JL36: =JK36*(1+JL35) -> 1.602416173 | JM36: =JL36*(1+JM35) -> 1.605062693 | JN36: =JM36*(1+JN35) -> 1.607713585 | JO36: =JN36*(1+JO35) -> 1.610368855 | JP36: =JO36*(1+JP35) -> 1.61302851 | JQ36: =JP36*(1+JQ35) -> 1.615692558 | JR36: =JQ36*(1+JR35) -> 1.618361005 | JS36: =JR36*(1+JS35) -> 1.62103386 | JT36: =JS36*(1+JT35) -> 1.623711129 | JU36: =JT36*(1+JU35) -> 1.62639282 | JV36: =JU36*(1+JV35) -> 1.62907894 | JW36: =JV36*(1+JW35) -> 1.631769496 | JX36: =JW36*(1+JX35) -> 1.634464496 | JY36: =JX36*(1+JY35) -> 1.637163947 | JZ36: =JY36*(1+JZ35) -> 1.639867857 | KA36: =JZ36*(1+KA35) -> 1.642576232 | KB36: =KA36*(1+KB35) -> 1.64528908 | KC36: =KB36*(1+KC35) -> 1.648006409 | KD36: =KC36*(1+KD35) -> 1.650728225 | KE36: =KD36*(1+KE35) -> 1.653454537 | KF36: =KE36*(1+KF35) -> 1.656185352 | KG36: =KF36*(1+KG35) -> 1.658920676 | KH36: =KG36*(1+KH35) -> 1.661660519 | KI36: =KH36*(1+KI35) -> 1.664404886 | KJ36: =KI36*(1+KJ35) -> 1.667153786 | KK36: =KJ36*(1+KK35) -> 1.669907226 | KL36: =KK36*(1+KL35) -> 1.672665214 | KM36: =KL36*(1+KM35) -> 1.675427756 | KN36: =KM36*(1+KN35) -> 1.678194862 | KO36: =KN36*(1+KO35) -> 1.680966537 | KP36: =KO36*(1+KP35) -> 1.68374279 | KQ36: =KP36*(1+KQ35) -> 1.686523628 | KR36: =KQ36*(1+KR35) -> 1.689309059 | KS36: =KR36*(1+KS35) -> 1.69209909 | KT36: =KS36*(1+KT35) -> 1.694893729
D37: Growth Rate Interpolate | G37: =(1+interpolate_look_up(G4,17:17,18:18))^(1/12)-1 -> 0.007207323316 | H37: =(1+interpolate_look_up(H4,17:17,18:18))^(1/12)-1 -> 0.007207323316 | I37: =(1+interpolate_look_up(I4,17:17,18:18))^(1/12)-1 -> 0.007207323316 | J37: =(1+interpolate_look_up(J4,17:17,18:18))^(1/12)-1 -> 0.007207323316 | K37: =(1+interpolate_look_up(K4,17:17,18:18))^(1/12)-1 -> 0.007207323316 | L37: =(1+interpolate_look_up(L4,17:17,18:18))^(1/12)-1 -> 0.007207323316 | M37: =(1+interpolate_look_up(M4,17:17,18:18))^(1/12)-1 -> 0.007207323316 | N37: =(1+interpolate_look_up(N4,17:17,18:18))^(1/12)-1 -> 0.007207323316 | O37: =(1+interpolate_look_up(O4,17:17,18:18))^(1/12)-1 -> 0.007207323316 | P37: =(1+interpolate_look_up(P4,17:17,18:18))^(1/12)-1 -> 0.007207323316 | Q37: =(1+interpolate_look_up(Q4,17:17,18:18))^(1/12)-1 -> 0.007207323316 | R37: =(1+interpolate_look_up(R4,17:17,18:18))^(1/12)-1 -> 0.007207323316 | S37: =(1+interpolate_look_up(S4,17:17,18:18))^(1/12)-1 -> 0.007207323316 | T37: =(1+interpolate_look_up(T4,17:17,18:18))^(1/12)-1 -> 0.007207323316 | U37: =(1+interpolate_look_up(U4,17:17,18:18))^(1/12)-1 -> 0.007207323316 | V37: =(1+interpolate_look_up(V4,17:17,18:18))^(1/12)-1 -> 0.007207323316 | W37: =(1+interpolate_look_up(W4,17:17,18:18))^(1/12)-1 -> 0.007207323316 | X37: =(1+interpolate_look_up(X4,17:17,18:18))^(1/12)-1 -> 0.007207323316 | Y37: =(1+interpolate_look_up(Y4,17:17,18:18))^(1/12)-1 -> 0.007207323316 | Z37: =(1+interpolate_look_up(Z4,17:17,18:18))^(1/12)-1 -> 0.007207323316 | AA37: =(1+interpolate_look_up(AA4,17:17,18:18))^(1/12)-1 -> 0.007207323316 | AB37: =(1+interpolate_look_up(AB4,17:17,18:18))^(1/12)-1 -> 0.007207323316 | AC37: =(1+interpolate_look_up(AC4,17:17,18:18))^(1/12)-1 -> 0.007207323316 | AD37: =(1+interpolate_look_up(AD4,17:17,18:18))^(1/12)-1 -> 0.007207323316 | AE37: =(1+interpolate_look_up(AE4,17:17,18:18))^(1/12)-1 -> 0.007207323316 | AF37: =(1+interpolate_look_up(AF4,17:17,18:18))^(1/12)-1 -> 0.007207323316 | AG37: =(1+interpolate_look_up(AG4,17:17,18:18))^(1/12)-1 -> 0.007207323316 | AH37: =(1+interpolate_look_up(AH4,17:17,18:18))^(1/12)-1 -> 0.007207323316 | AI37: =(1+interpolate_look_up(AI4,17:17,18:18))^(1/12)-1 -> 0.007207323316 | AJ37: =(1+interpolate_look_up(AJ4,17:17,18:18))^(1/12)-1 -> 0.007207323316 | AK37: =(1+interpolate_look_up(AK4,17:17,18:18))^(1/12)-1 -> 0.007207323316 | AL37: =(1+interpolate_look_up(AL4,17:17,18:18))^(1/12)-1 -> 0.007207323316 | AM37: =(1+interpolate_look_up(AM4,17:17,18:18))^(1/12)-1 -> 0.007207323316 | AN37: =(1+interpolate_look_up(AN4,17:17,18:18))^(1/12)-1 -> 0.007207323316 | AO37: =(1+interpolate_look_up(AO4,17:17,18:18))^(1/12)-1 -> 0.007207323316 | AP37: =(1+interpolate_look_up(AP4,17:17,18:18))^(1/12)-1 -> 0.007207323316 | AQ37: =(1+interpolate_look_up(AQ4,17:17,18:18))^(1/12)-1 -> 0.007207323316 | AR37: =(1+interpolate_look_up(AR4,17:17,18:18))^(1/12)-1 -> 0.007207323316 | AS37: =(1+interpolate_look_up(AS4,17:17,18:18))^(1/12)-1 -> 0.007207323316 | AT37: =(1+interpolate_look_up(AT4,17:17,18:18))^(1/12)-1 -> 0.007207323316 | AU37: =(1+interpolate_look_up(AU4,17:17,18:18))^(1/12)-1 -> 0.007207323316 | AV37: =(1+interpolate_look_up(AV4,17:17,18:18))^(1/12)-1 -> 0.007207323316 | AW37: =(1+interpolate_look_up(AW4,17:17,18:18))^(1/12)-1 -> 0.007207323316 | AX37: =(1+interpolate_look_up(AX4,17:17,18:18))^(1/12)-1 -> 0.007207323316 | AY37: =(1+interpolate_look_up(AY4,17:17,18:18))^(1/12)-1 -> 0.007207323316 | AZ37: =(1+interpolate_look_up(AZ4,17:17,18:18))^(1/12)-1 -> 0.007207323316 | BA37: =(1+interpolate_look_up(BA4,17:17,18:18))^(1/12)-1 -> 0.007207323316 | BB37: =(1+interpolate_look_up(BB4,17:17,18:18))^(1/12)-1 -> 0.007207323316 | BC37: =(1+interpolate_look_up(BC4,17:17,18:18))^(1/12)-1 -> 0.007207323316 | BD37: =(1+interpolate_look_up(BD4,17:17,18:18))^(1/12)-1 -> 0.007207323316 | BE37: =(1+interpolate_look_up(BE4,17:17,18:18))^(1/12)-1 -> 0.007207323316 | BF37: =(1+interpolate_look_up(BF4,17:17,18:18))^(1/12)-1 -> 0.007207323316 | BG37: =(1+interpolate_look_up(BG4,17:17,18:18))^(1/12)-1 -> 0.007207323316 | BH37: =(1+interpolate_look_up(BH4,17:17,18:18))^(1/12)-1 -> 0.007207323316 | BI37: =(1+interpolate_look_up(BI4,17:17,18:18))^(1/12)-1 -> 0.007207323316 | BJ37: =(1+interpolate_look_up(BJ4,17:17,18:18))^(1/12)-1 -> 0.007207323316 | BK37: =(1+interpolate_look_up(BK4,17:17,18:18))^(1/12)-1 -> 0.007207323316 | BL37: =(1+interpolate_look_up(BL4,17:17,18:18))^(1/12)-1 -> 0.007207323316 | BM37: =(1+interpolate_look_up(BM4,17:17,18:18))^(1/12)-1 -> 0.007207323316 | BN37: =(1+interpolate_look_up(BN4,17:17,18:18))^(1/12)-1 -> 0.007207323316 | BO37: =(1+interpolate_look_up(BO4,17:17,18:18))^(1/12)-1 -> 0.007207323316 | BP37: =(1+interpolate_look_up(BP4,17:17,18:18))^(1/12)-1 -> 0.007207323316 | BQ37: =(1+interpolate_look_up(BQ4,17:17,18:18))^(1/12)-1 -> 0.007207323316 | BR37: =(1+interpolate_look_up(BR4,17:17,18:18))^(1/12)-1 -> 0.007207323316 | BS37: =(1+interpolate_look_up(BS4,17:17,18:18))^(1/12)-1 -> 0.007207323316 | BT37: =(1+interpolate_look_up(BT4,17:17,18:18))^(1/12)-1 -> 0.007207323316 | BU37: =(1+interpolate_look_up(BU4,17:17,18:18))^(1/12)-1 -> 0.007207323316 | BV37: =(1+interpolate_look_up(BV4,17:17,18:18))^(1/12)-1 -> 0.007207323316 | BW37: =(1+interpolate_look_up(BW4,17:17,18:18))^(1/12)-1 -> 0.007207323316 | BX37: =(1+interpolate_look_up(BX4,17:17,18:18))^(1/12)-1 -> 0.007207323316 | BY37: =(1+interpolate_look_up(BY4,17:17,18:18))^(1/12)-1 -> 0.007207323316 | BZ37: =(1+interpolate_look_up(BZ4,17:17,18:18))^(1/12)-1 -> 0.007207323316 | CA37: =(1+interpolate_look_up(CA4,17:17,18:18))^(1/12)-1 -> 0.007207323316 | CB37: =(1+interpolate_look_up(CB4,17:17,18:18))^(1/12)-1 -> 0.007207323316 | CC37: =(1+interpolate_look_up(CC4,17:17,18:18))^(1/12)-1 -> 0.007207323316 | CD37: =(1+interpolate_look_up(CD4,17:17,18:18))^(1/12)-1 -> 0.007207323316 | CE37: =(1+interpolate_look_up(CE4,17:17,18:18))^(1/12)-1 -> 0.007207323316 | CF37: =(1+interpolate_look_up(CF4,17:17,18:18))^(1/12)-1 -> 0.007207323316 | CG37: =(1+interpolate_look_up(CG4,17:17,18:18))^(1/12)-1 -> 0.007207323316 | CH37: =(1+interpolate_look_up(CH4,17:17,18:18))^(1/12)-1 -> 0.007207323316 | CI37: =(1+interpolate_look_up(CI4,17:17,18:18))^(1/12)-1 -> 0.007207323316 | CJ37: =(1+interpolate_look_up(CJ4,17:17,18:18))^(1/12)-1 -> 0.007207323316 | CK37: =(1+interpolate_look_up(CK4,17:17,18:18))^(1/12)-1 -> 0.007207323316 | CL37: =(1+interpolate_look_up(CL4,17:17,18:18))^(1/12)-1 -> 0.007207323316 | CM37: =(1+interpolate_look_up(CM4,17:17,18:18))^(1/12)-1 -> 0.007207323316 | CN37: =(1+interpolate_look_up(CN4,17:17,18:18))^(1/12)-1 -> 0.007207323316 | CO37: =(1+interpolate_look_up(CO4,17:17,18:18))^(1/12)-1 -> 0.007207323316 | CP37: =(1+interpolate_look_up(CP4,17:17,18:18))^(1/12)-1 -> 0.007207323316 | CQ37: =(1+interpolate_look_up(CQ4,17:17,18:18))^(1/12)-1 -> 0.007207323316 | CR37: =(1+interpolate_look_up(CR4,17:17,18:18))^(1/12)-1 -> 0.007207323316 | CS37: =(1+interpolate_look_up(CS4,17:17,18:18))^(1/12)-1 -> 0.007207323316 | CT37: =(1+interpolate_look_up(CT4,17:17,18:18))^(1/12)-1 -> 0.007207323316 | CU37: =(1+interpolate_look_up(CU4,17:17,18:18))^(1/12)-1 -> 0.007207323316 | CV37: =(1+interpolate_look_up(CV4,17:17,18:18))^(1/12)-1 -> 0.007207323316 | CW37: =(1+interpolate_look_up(CW4,17:17,18:18))^(1/12)-1 -> 0.007207323316 | CX37: =(1+interpolate_look_up(CX4,17:17,18:18))^(1/12)-1 -> 0.007207323316 | CY37: =(1+interpolate_look_up(CY4,17:17,18:18))^(1/12)-1 -> 0.007207323316 | CZ37: =(1+interpolate_look_up(CZ4,17:17,18:18))^(1/12)-1 -> 0.007207323316 | DA37: =(1+interpolate_look_up(DA4,17:17,18:18))^(1/12)-1 -> 0.007207323316 | DB37: =(1+interpolate_look_up(DB4,17:17,18:18))^(1/12)-1 -> 0.007207323316 | DC37: =(1+interpolate_look_up(DC4,17:17,18:18))^(1/12)-1 -> 0.007207323316 | DD37: =(1+interpolate_look_up(DD4,17:17,18:18))^(1/12)-1 -> 0.007207323316 | DE37: =(1+interpolate_look_up(DE4,17:17,18:18))^(1/12)-1 -> 0.007207323316 | DF37: =(1+interpolate_look_up(DF4,17:17,18:18))^(1/12)-1 -> 0.007207323316 | DG37: =(1+interpolate_look_up(DG4,17:17,18:18))^(1/12)-1 -> 0.007207323316 | DH37: =(1+interpolate_look_up(DH4,17:17,18:18))^(1/12)-1 -> 0.007207323316 | DI37: =(1+interpolate_look_up(DI4,17:17,18:18))^(1/12)-1 -> 0.007207323316 | DJ37: =(1+interpolate_look_up(DJ4,17:17,18:18))^(1/12)-1 -> 0.007207323316 | DK37: =(1+interpolate_look_up(DK4,17:17,18:18))^(1/12)-1 -> 0.007207323316 | DL37: =(1+interpolate_look_up(DL4,17:17,18:18))^(1/12)-1 -> 0.007207323316 | DM37: =(1+interpolate_look_up(DM4,17:17,18:18))^(1/12)-1 -> 0.007207323316 | DN37: =(1+interpolate_look_up(DN4,17:17,18:18))^(1/12)-1 -> 0.007207323316 | DO37: =(1+interpolate_look_up(DO4,17:17,18:18))^(1/12)-1 -> 0.007207323316 | DP37: =(1+interpolate_look_up(DP4,17:17,18:18))^(1/12)-1 -> 0.007207323316 | DQ37: =(1+interpolate_look_up(DQ4,17:17,18:18))^(1/12)-1 -> 0.007207323316 | DR37: =(1+interpolate_look_up(DR4,17:17,18:18))^(1/12)-1 -> 0.007207323316 | DS37: =(1+interpolate_look_up(DS4,17:17,18:18))^(1/12)-1 -> 0.007207323316 | DT37: =(1+interpolate_look_up(DT4,17:17,18:18))^(1/12)-1 -> 0.007207323316 | DU37: =(1+interpolate_look_up(DU4,17:17,18:18))^(1/12)-1 -> 0.007207323316 | DV37: =(1+interpolate_look_up(DV4,17:17,18:18))^(1/12)-1 -> 0.007207323316 | DW37: =(1+interpolate_look_up(DW4,17:17,18:18))^(1/12)-1 -> 0.007207323316 | DX37: =(1+interpolate_look_up(DX4,17:17,18:18))^(1/12)-1 -> 0.007207323316 | DY37: =(1+interpolate_look_up(DY4,17:17,18:18))^(1/12)-1 -> 0.007207323316 | DZ37: =(1+interpolate_look_up(DZ4,17:17,18:18))^(1/12)-1 -> 0.007207323316 | EA37: =(1+interpolate_look_up(EA4,17:17,18:18))^(1/12)-1 -> 0.007207323316 | EB37: =(1+interpolate_look_up(EB4,17:17,18:18))^(1/12)-1 -> 0.007207323316 | EC37: =(1+interpolate_look_up(EC4,17:17,18:18))^(1/12)-1 -> 0.007207323316 | ED37: =(1+interpolate_look_up(ED4,17:17,18:18))^(1/12)-1 -> 0.007207323316 | EE37: =(1+interpolate_look_up(EE4,17:17,18:18))^(1/12)-1 -> 0.007207323316 | EF37: =(1+interpolate_look_up(EF4,17:17,18:18))^(1/12)-1 -> 0.007207323316 | EG37: =(1+interpolate_look_up(EG4,17:17,18:18))^(1/12)-1 -> 0.007207323316 | EH37: =(1+interpolate_look_up(EH4,17:17,18:18))^(1/12)-1 -> 0.007207323316 | EI37: =(1+interpolate_look_up(EI4,17:17,18:18))^(1/12)-1 -> 0.007207323316 | EJ37: =(1+interpolate_look_up(EJ4,17:17,18:18))^(1/12)-1 -> 0.007207323316 | EK37: =(1+interpolate_look_up(EK4,17:17,18:18))^(1/12)-1 -> 0.007207323316 | EL37: =(1+interpolate_look_up(EL4,17:17,18:18))^(1/12)-1 -> 0.007207323316 | EM37: =(1+interpolate_look_up(EM4,17:17,18:18))^(1/12)-1 -> 0.007207323316 | EN37: =(1+interpolate_look_up(EN4,17:17,18:18))^(1/12)-1 -> 0.007207323316 | EO37: =(1+interpolate_look_up(EO4,17:17,18:18))^(1/12)-1 -> 0.007207323316 | EP37: =(1+interpolate_look_up(EP4,17:17,18:18))^(1/12)-1 -> 0.007207323316 | EQ37: =(1+interpolate_look_up(EQ4,17:17,18:18))^(1/12)-1 -> 0.007207323316 | ER37: =(1+interpolate_look_up(ER4,17:17,18:18))^(1/12)-1 -> 0.007207323316 | ES37: =(1+interpolate_look_up(ES4,17:17,18:18))^(1/12)-1 -> 0.007207323316 | ET37: =(1+interpolate_look_up(ET4,17:17,18:18))^(1/12)-1 -> 0.007207323316 | EU37: =(1+interpolate_look_up(EU4,17:17,18:18))^(1/12)-1 -> 0.007207323316 | EV37: =(1+interpolate_look_up(EV4,17:17,18:18))^(1/12)-1 -> 0.007207323316 | EW37: =(1+interpolate_look_up(EW4,17:17,18:18))^(1/12)-1 -> 0.007207323316 | EX37: =(1+interpolate_look_up(EX4,17:17,18:18))^(1/12)-1 -> 0.007207323316 | EY37: =(1+interpolate_look_up(EY4,17:17,18:18))^(1/12)-1 -> 0.007207323316 | EZ37: =(1+interpolate_look_up(EZ4,17:17,18:18))^(1/12)-1 -> 0.007207323316 | FA37: =(1+interpolate_look_up(FA4,17:17,18:18))^(1/12)-1 -> 0.007207323316 | FB37: =(1+interpolate_look_up(FB4,17:17,18:18))^(1/12)-1 -> 0.007207323316 | FC37: =(1+interpolate_look_up(FC4,17:17,18:18))^(1/12)-1 -> 0.007207323316 | FD37: =(1+interpolate_look_up(FD4,17:17,18:18))^(1/12)-1 -> 0.007207323316 | FE37: =(1+interpolate_look_up(FE4,17:17,18:18))^(1/12)-1 -> 0.007207323316 | FF37: =(1+interpolate_look_up(FF4,17:17,18:18))^(1/12)-1 -> 0.007207323316 | FG37: =(1+interpolate_look_up(FG4,17:17,18:18))^(1/12)-1 -> 0.007207323316 | FH37: =(1+interpolate_look_up(FH4,17:17,18:18))^(1/12)-1 -> 0.007207323316 | FI37: =(1+interpolate_look_up(FI4,17:17,18:18))^(1/12)-1 -> 0.007207323316 | FJ37: =(1+interpolate_look_up(FJ4,17:17,18:18))^(1/12)-1 -> 0.007207323316 | FK37: =(1+interpolate_look_up(FK4,17:17,18:18))^(1/12)-1 -> 0.007207323316 | FL37: =(1+interpolate_look_up(FL4,17:17,18:18))^(1/12)-1 -> 0.007207323316 | FM37: =(1+interpolate_look_up(FM4,17:17,18:18))^(1/12)-1 -> 0.007207323316 | FN37: =(1+interpolate_look_up(FN4,17:17,18:18))^(1/12)-1 -> 0.007207323316 | FO37: =(1+interpolate_look_up(FO4,17:17,18:18))^(1/12)-1 -> 0.007207323316 | FP37: =(1+interpolate_look_up(FP4,17:17,18:18))^(1/12)-1 -> 0.007207323316 | FQ37: =(1+interpolate_look_up(FQ4,17:17,18:18))^(1/12)-1 -> 0.007207323316 | FR37: =(1+interpolate_look_up(FR4,17:17,18:18))^(1/12)-1 -> 0.007207323316 | FS37: =(1+interpolate_look_up(FS4,17:17,18:18))^(1/12)-1 -> 0.007207323316 | FT37: =(1+interpolate_look_up(FT4,17:17,18:18))^(1/12)-1 -> 0.007207323316 | FU37: =(1+interpolate_look_up(FU4,17:17,18:18))^(1/12)-1 -> 0.007207323316 | FV37: =(1+interpolate_look_up(FV4,17:17,18:18))^(1/12)-1 -> 0.007207323316 | FW37: =(1+interpolate_look_up(FW4,17:17,18:18))^(1/12)-1 -> 0.007207323316 | FX37: =(1+interpolate_look_up(FX4,17:17,18:18))^(1/12)-1 -> 0.007207323316 | FY37: =(1+interpolate_look_up(FY4,17:17,18:18))^(1/12)-1 -> 0.007207323316 | FZ37: =(1+interpolate_look_up(FZ4,17:17,18:18))^(1/12)-1 -> 0.007207323316 | GA37: =(1+interpolate_look_up(GA4,17:17,18:18))^(1/12)-1 -> 0.007207323316 | GB37: =(1+interpolate_look_up(GB4,17:17,18:18))^(1/12)-1 -> 0.007207323316 | GC37: =(1+interpolate_look_up(GC4,17:17,18:18))^(1/12)-1 -> 0.007207323316 | GD37: =(1+interpolate_look_up(GD4,17:17,18:18))^(1/12)-1 -> 0.007207323316 | GE37: =(1+interpolate_look_up(GE4,17:17,18:18))^(1/12)-1 -> 0.007207323316 | GF37: =(1+interpolate_look_up(GF4,17:17,18:18))^(1/12)-1 -> 0.007207323316 | GG37: =(1+interpolate_look_up(GG4,17:17,18:18))^(1/12)-1 -> 0.007207323316 | GH37: =(1+interpolate_look_up(GH4,17:17,18:18))^(1/12)-1 -> 0.007207323316 | GI37: =(1+interpolate_look_up(GI4,17:17,18:18))^(1/12)-1 -> 0.007207323316 | GJ37: =(1+interpolate_look_up(GJ4,17:17,18:18))^(1/12)-1 -> 0.007207323316 | GK37: =(1+interpolate_look_up(GK4,17:17,18:18))^(1/12)-1 -> 0.007207323316 | GL37: =(1+interpolate_look_up(GL4,17:17,18:18))^(1/12)-1 -> 0.007207323316 | GM37: =(1+interpolate_look_up(GM4,17:17,18:18))^(1/12)-1 -> 0.007207323316 | GN37: =(1+interpolate_look_up(GN4,17:17,18:18))^(1/12)-1 -> 0.007207323316 | GO37: =(1+interpolate_look_up(GO4,17:17,18:18))^(1/12)-1 -> 0.007207323316 | GP37: =(1+interpolate_look_up(GP4,17:17,18:18))^(1/12)-1 -> 0.007207323316 | GQ37: =(1+interpolate_look_up(GQ4,17:17,18:18))^(1/12)-1 -> 0.007207323316 | GR37: =(1+interpolate_look_up(GR4,17:17,18:18))^(1/12)-1 -> 0.007207323316 | GS37: =(1+interpolate_look_up(GS4,17:17,18:18))^(1/12)-1 -> 0.007207323316 | GT37: =(1+interpolate_look_up(GT4,17:17,18:18))^(1/12)-1 -> 0.007207323316 | GU37: =(1+interpolate_look_up(GU4,17:17,18:18))^(1/12)-1 -> 0.007207323316 | GV37: =(1+interpolate_look_up(GV4,17:17,18:18))^(1/12)-1 -> 0.007207323316 | GW37: =(1+interpolate_look_up(GW4,17:17,18:18))^(1/12)-1 -> 0.007207323316 | GX37: =(1+interpolate_look_up(GX4,17:17,18:18))^(1/12)-1 -> 0.007207323316 | GY37: =(1+interpolate_look_up(GY4,17:17,18:18))^(1/12)-1 -> 0.007207323316 | GZ37: =(1+interpolate_look_up(GZ4,17:17,18:18))^(1/12)-1 -> 0.007207323316 | HA37: =(1+interpolate_look_up(HA4,17:17,18:18))^(1/12)-1 -> 0.007207323316 | HB37: =(1+interpolate_look_up(HB4,17:17,18:18))^(1/12)-1 -> 0.007207323316 | HC37: =(1+interpolate_look_up(HC4,17:17,18:18))^(1/12)-1 -> 0.007207323316 | HD37: =(1+interpolate_look_up(HD4,17:17,18:18))^(1/12)-1 -> 0.007207323316 | HE37: =(1+interpolate_look_up(HE4,17:17,18:18))^(1/12)-1 -> 0.007207323316 | HF37: =(1+interpolate_look_up(HF4,17:17,18:18))^(1/12)-1 -> 0.007207323316 | HG37: =(1+interpolate_look_up(HG4,17:17,18:18))^(1/12)-1 -> 0.007207323316 | HH37: =(1+interpolate_look_up(HH4,17:17,18:18))^(1/12)-1 -> 0.007207323316 | HI37: =(1+interpolate_look_up(HI4,17:17,18:18))^(1/12)-1 -> 0.007207323316 | HJ37: =(1+interpolate_look_up(HJ4,17:17,18:18))^(1/12)-1 -> 0.007207323316 | HK37: =(1+interpolate_look_up(HK4,17:17,18:18))^(1/12)-1 -> 0.007207323316 | HL37: =(1+interpolate_look_up(HL4,17:17,18:18))^(1/12)-1 -> 0.007207323316 | HM37: =(1+interpolate_look_up(HM4,17:17,18:18))^(1/12)-1 -> 0.007207323316 | HN37: =(1+interpolate_look_up(HN4,17:17,18:18))^(1/12)-1 -> 0.007207323316 | HO37: =(1+interpolate_look_up(HO4,17:17,18:18))^(1/12)-1 -> 0.007207323316 | HP37: =(1+interpolate_look_up(HP4,17:17,18:18))^(1/12)-1 -> 0.007207323316 | HQ37: =(1+interpolate_look_up(HQ4,17:17,18:18))^(1/12)-1 -> 0.007207323316 | HR37: =(1+interpolate_look_up(HR4,17:17,18:18))^(1/12)-1 -> 0.007207323316 | HS37: =(1+interpolate_look_up(HS4,17:17,18:18))^(1/12)-1 -> 0.007207323316 | HT37: =(1+interpolate_look_up(HT4,17:17,18:18))^(1/12)-1 -> 0.007207323316 | HU37: =(1+interpolate_look_up(HU4,17:17,18:18))^(1/12)-1 -> 0.007207323316 | HV37: =(1+interpolate_look_up(HV4,17:17,18:18))^(1/12)-1 -> 0.007207323316 | HW37: =(1+interpolate_look_up(HW4,17:17,18:18))^(1/12)-1 -> 0.007207323316 | HX37: =(1+interpolate_look_up(HX4,17:17,18:18))^(1/12)-1 -> 0.007207323316 | HY37: =(1+interpolate_look_up(HY4,17:17,18:18))^(1/12)-1 -> 0.007207323316 | HZ37: =(1+interpolate_look_up(HZ4,17:17,18:18))^(1/12)-1 -> 0.007207323316 | IA37: =(1+interpolate_look_up(IA4,17:17,18:18))^(1/12)-1 -> 0.007207323316 | IB37: =(1+interpolate_look_up(IB4,17:17,18:18))^(1/12)-1 -> 0.007207323316 | IC37: =(1+interpolate_look_up(IC4,17:17,18:18))^(1/12)-1 -> 0.007207323316 | ID37: =(1+interpolate_look_up(ID4,17:17,18:18))^(1/12)-1 -> 0.007207323316 | IE37: =(1+interpolate_look_up(IE4,17:17,18:18))^(1/12)-1 -> 0.007207323316 | IF37: =(1+interpolate_look_up(IF4,17:17,18:18))^(1/12)-1 -> 0.007207323316 | IG37: =(1+interpolate_look_up(IG4,17:17,18:18))^(1/12)-1 -> 0.007207323316 | IH37: =(1+interpolate_look_up(IH4,17:17,18:18))^(1/12)-1 -> 0.007207323316 | II37: =(1+interpolate_look_up(II4,17:17,18:18))^(1/12)-1 -> 0.007207323316 | IJ37: =(1+interpolate_look_up(IJ4,17:17,18:18))^(1/12)-1 -> 0.007207323316 | IK37: =(1+interpolate_look_up(IK4,17:17,18:18))^(1/12)-1 -> 0.007207323316 | IL37: =(1+interpolate_look_up(IL4,17:17,18:18))^(1/12)-1 -> 0.007207323316 | IM37: =(1+interpolate_look_up(IM4,17:17,18:18))^(1/12)-1 -> 0.007207323316 | IN37: =(1+interpolate_look_up(IN4,17:17,18:18))^(1/12)-1 -> 0.007207323316 | IO37: =(1+interpolate_look_up(IO4,17:17,18:18))^(1/12)-1 -> 0.007207323316 | IP37: =(1+interpolate_look_up(IP4,17:17,18:18))^(1/12)-1 -> 0.007207323316 | IQ37: =(1+interpolate_look_up(IQ4,17:17,18:18))^(1/12)-1 -> 0.007207323316 | IR37: =(1+interpolate_look_up(IR4,17:17,18:18))^(1/12)-1 -> 0.007207323316 | IS37: =(1+interpolate_look_up(IS4,17:17,18:18))^(1/12)-1 -> 0.007207323316 | IT37: =(1+interpolate_look_up(IT4,17:17,18:18))^(1/12)-1 -> 0.007207323316 | IU37: =(1+interpolate_look_up(IU4,17:17,18:18))^(1/12)-1 -> 0.007207323316 | IV37: =(1+interpolate_look_up(IV4,17:17,18:18))^(1/12)-1 -> 0.007207323316 | IW37: =(1+interpolate_look_up(IW4,17:17,18:18))^(1/12)-1 -> 0.007207323316 | IX37: =(1+interpolate_look_up(IX4,17:17,18:18))^(1/12)-1 -> 0.007207323316 | IY37: =(1+interpolate_look_up(IY4,17:17,18:18))^(1/12)-1 -> 0.007207323316 | IZ37: =(1+interpolate_look_up(IZ4,17:17,18:18))^(1/12)-1 -> 0.007207323316 | JA37: =(1+interpolate_look_up(JA4,17:17,18:18))^(1/12)-1 -> 0.007207323316 | JB37: =(1+interpolate_look_up(JB4,17:17,18:18))^(1/12)-1 -> 0.007207323316 | JC37: =(1+interpolate_look_up(JC4,17:17,18:18))^(1/12)-1 -> 0.007207323316 | JD37: =(1+interpolate_look_up(JD4,17:17,18:18))^(1/12)-1 -> 0.007207323316 | JE37: =(1+interpolate_look_up(JE4,17:17,18:18))^(1/12)-1 -> 0.007207323316 | JF37: =(1+interpolate_look_up(JF4,17:17,18:18))^(1/12)-1 -> 0.007207323316 | JG37: =(1+interpolate_look_up(JG4,17:17,18:18))^(1/12)-1 -> 0.007207323316 | JH37: =(1+interpolate_look_up(JH4,17:17,18:18))^(1/12)-1 -> 0.007207323316 | JI37: =(1+interpolate_look_up(JI4,17:17,18:18))^(1/12)-1 -> 0.007207323316 | JJ37: =(1+interpolate_look_up(JJ4,17:17,18:18))^(1/12)-1 -> 0.007207323316 | JK37: =(1+interpolate_look_up(JK4,17:17,18:18))^(1/12)-1 -> 0.007207323316 | JL37: =(1+interpolate_look_up(JL4,17:17,18:18))^(1/12)-1 -> 0.007207323316 | JM37: =(1+interpolate_look_up(JM4,17:17,18:18))^(1/12)-1 -> 0.007207323316 | JN37: =(1+interpolate_look_up(JN4,17:17,18:18))^(1/12)-1 -> 0.007207323316 | JO37: =(1+interpolate_look_up(JO4,17:17,18:18))^(1/12)-1 -> 0.007207323316 | JP37: =(1+interpolate_look_up(JP4,17:17,18:18))^(1/12)-1 -> 0.007207323316 | JQ37: =(1+interpolate_look_up(JQ4,17:17,18:18))^(1/12)-1 -> 0.007207323316 | JR37: =(1+interpolate_look_up(JR4,17:17,18:18))^(1/12)-1 -> 0.007207323316 | JS37: =(1+interpolate_look_up(JS4,17:17,18:18))^(1/12)-1 -> 0.007207323316 | JT37: =(1+interpolate_look_up(JT4,17:17,18:18))^(1/12)-1 -> 0.007207323316 | JU37: =(1+interpolate_look_up(JU4,17:17,18:18))^(1/12)-1 -> 0.007207323316 | JV37: =(1+interpolate_look_up(JV4,17:17,18:18))^(1/12)-1 -> 0.007207323316 | JW37: =(1+interpolate_look_up(JW4,17:17,18:18))^(1/12)-1 -> 0.007207323316 | JX37: =(1+interpolate_look_up(JX4,17:17,18:18))^(1/12)-1 -> 0.007207323316 | JY37: =(1+interpolate_look_up(JY4,17:17,18:18))^(1/12)-1 -> 0.007207323316 | JZ37: =(1+interpolate_look_up(JZ4,17:17,18:18))^(1/12)-1 -> 0.007207323316 | KA37: =(1+interpolate_look_up(KA4,17:17,18:18))^(1/12)-1 -> 0.007207323316 | KB37: =(1+interpolate_look_up(KB4,17:17,18:18))^(1/12)-1 -> 0.007207323316 | KC37: =(1+interpolate_look_up(KC4,17:17,18:18))^(1/12)-1 -> 0.007207323316 | KD37: =(1+interpolate_look_up(KD4,17:17,18:18))^(1/12)-1 -> 0.007207323316 | KE37: =(1+interpolate_look_up(KE4,17:17,18:18))^(1/12)-1 -> 0.007207323316 | KF37: =(1+interpolate_look_up(KF4,17:17,18:18))^(1/12)-1 -> 0.007207323316 | KG37: =(1+interpolate_look_up(KG4,17:17,18:18))^(1/12)-1 -> 0.007207323316 | KH37: =(1+interpolate_look_up(KH4,17:17,18:18))^(1/12)-1 -> 0.007207323316 | KI37: =(1+interpolate_look_up(KI4,17:17,18:18))^(1/12)-1 -> 0.007207323316 | KJ37: =(1+interpolate_look_up(KJ4,17:17,18:18))^(1/12)-1 -> 0.007207323316 | KK37: =(1+interpolate_look_up(KK4,17:17,18:18))^(1/12)-1 -> 0.007207323316 | KL37: =(1+interpolate_look_up(KL4,17:17,18:18))^(1/12)-1 -> 0.007207323316 | KM37: =(1+interpolate_look_up(KM4,17:17,18:18))^(1/12)-1 -> 0.007207323316 | KN37: =(1+interpolate_look_up(KN4,17:17,18:18))^(1/12)-1 -> 0.007207323316 | KO37: =(1+interpolate_look_up(KO4,17:17,18:18))^(1/12)-1 -> 0.007207323316 | KP37: =(1+interpolate_look_up(KP4,17:17,18:18))^(1/12)-1 -> 0.007207323316 | KQ37: =(1+interpolate_look_up(KQ4,17:17,18:18))^(1/12)-1 -> 0.007207323316 | KR37: =(1+interpolate_look_up(KR4,17:17,18:18))^(1/12)-1 -> 0.007207323316 | KS37: =(1+interpolate_look_up(KS4,17:17,18:18))^(1/12)-1 -> 0.007207323316 | KT37: =(1+interpolate_look_up(KT4,17:17,18:18))^(1/12)-1 -> 0.007207323316
D38: CFADS Index - Interpolate | F38: 1 | G38: =F38*(1+G37) -> 1.007207323 | H38: =G38*(1+H37) -> 1.014466592 | I38: 1.021778181 | J38: 1.029142467 | K38: 1.036559829 | L38: 1.044030651 | M38: 1.051555317 | N38: 1.059134217 | O38: 1.066767739 | P38: 1.074456279 | Q38: 1.082200233 | R38: 1.09 | S38: 1.097855982 | T38: 1.105768585 | U38: 1.113738217 | V38: 1.121765289 | W38: 1.129850214 | X38: 1.137993409 | Y38: 1.146195296 | Z38: 1.154456296 | AA38: 1.162776836 | AB38: 1.171157344 | AC38: 1.179598254 | AD38: =AC38*(1+AD37) -> 1.1881 | AE38: =AD38*(1+AE37) -> 1.196663021 | AF38: =AE38*(1+AF37) -> 1.205287758 | AG38: =AF38*(1+AG37) -> 1.213974657 | AH38: =AG38*(1+AH37) -> 1.222724165 | AI38: =AH38*(1+AI37) -> 1.231536733 | AJ38: =AI38*(1+AJ37) -> 1.240412816 | AK38: =AJ38*(1+AK37) -> 1.249352873 | AL38: =AK38*(1+AL37) -> 1.258357363 | AM38: =AL38*(1+AM37) -> 1.267426751 | AN38: =AM38*(1+AN37) -> 1.276561505 | AO38: =AN38*(1+AO37) -> 1.285762097 | AP38: =AO38*(1+AP37) -> 1.295029 | AQ38: =AP38*(1+AQ37) -> 1.304362693 | AR38: =AQ38*(1+AR37) -> 1.313763656 | AS38: =AR38*(1+AS37) -> 1.323232376 | AT38: =AS38*(1+AT37) -> 1.332769339 | AU38: =AT38*(1+AU37) -> 1.342375039 | AV38: =AU38*(1+AV37) -> 1.35204997 | AW38: =AV38*(1+AW37) -> 1.361794631 | AX38: =AW38*(1+AX37) -> 1.371609525 | AY38: =AX38*(1+AY37) -> 1.381495159 | AZ38: =AY38*(1+AZ37) -> 1.391452041 | BA38: =AZ38*(1+BA37) -> 1.401480686 | BB38: =BA38*(1+BB37) -> 1.41158161 | BC38: =BB38*(1+BC37) -> 1.421755335 | BD38: =BC38*(1+BD37) -> 1.432002385 | BE38: =BD38*(1+BE37) -> 1.44232329 | BF38: =BE38*(1+BF37) -> 1.45271858 | BG38: =BF38*(1+BG37) -> 1.463188792 | BH38: =BG38*(1+BH37) -> 1.473734467 | BI38: =BH38*(1+BI37) -> 1.484356148 | BJ38: =BI38*(1+BJ37) -> 1.495054383 | BK38: =BJ38*(1+BK37) -> 1.505829723 | BL38: =BK38*(1+BL37) -> 1.516682725 | BM38: =BL38*(1+BM37) -> 1.527613947 | BN38: =BM38*(1+BN37) -> 1.538623955 | BO38: =BN38*(1+BO37) -> 1.549713315 | BP38: =BO38*(1+BP37) -> 1.5608826 | BQ38: =BP38*(1+BQ37) -> 1.572132386 | BR38: =BQ38*(1+BR37) -> 1.583463252 | BS38: =BR38*(1+BS37) -> 1.594875784 | BT38: =BS38*(1+BT37) -> 1.606370569 | BU38: =BT38*(1+BU37) -> 1.617948201 | BV38: =BU38*(1+BV37) -> 1.629609277 | BW38: =BV38*(1+BW37) -> 1.641354398 | BX38: =BW38*(1+BX37) -> 1.65318417 | BY38: =BX38*(1+BY37) -> 1.665099203 | BZ38: =BY38*(1+BZ37) -> 1.677100111 | CA38: =BZ38*(1+CA37) -> 1.689187514 | CB38: =CA38*(1+CB37) -> 1.701362034 | CC38: =CB38*(1+CC37) -> 1.7136243 | CD38: =CC38*(1+CD37) -> 1.725974945 | CE38: =CD38*(1+CE37) -> 1.738414604 | CF38: =CE38*(1+CF37) -> 1.75094392 | CG38: =CF38*(1+CG37) -> 1.763563539 | CH38: =CG38*(1+CH37) -> 1.776274112 | CI38: =CH38*(1+CI37) -> 1.789076294 | CJ38: =CI38*(1+CJ37) -> 1.801970745 | CK38: =CJ38*(1+CK37) -> 1.814958131 | CL38: =CK38*(1+CL37) -> 1.828039121 | CM38: =CL38*(1+CM37) -> 1.84121439 | CN38: =CM38*(1+CN37) -> 1.854484617 | CO38: =CN38*(1+CO37) -> 1.867850487 | CP38: =CO38*(1+CP37) -> 1.88131269 | CQ38: =CP38*(1+CQ37) -> 1.894871919 | CR38: =CQ38*(1+CR37) -> 1.908528873 | CS38: =CR38*(1+CS37) -> 1.922284258 | CT38: =CS38*(1+CT37) -> 1.936138782 | CU38: =CT38*(1+CU37) -> 1.95009316 | CV38: =CU38*(1+CV37) -> 1.964148112 | CW38: =CV38*(1+CW37) -> 1.978304363 | CX38: =CW38*(1+CX37) -> 1.992562642 | CY38: =CX38*(1+CY37) -> 2.006923685 | CZ38: =CY38*(1+CZ37) -> 2.021388233 | DA38: =CZ38*(1+DA37) -> 2.035957031 | DB38: =DA38*(1+DB37) -> 2.050630832 | DC38: =DB38*(1+DC37) -> 2.065410391 | DD38: =DC38*(1+DD37) -> 2.080296472 | DE38: =DD38*(1+DE37) -> 2.095289841 | DF38: =DE38*(1+DF37) -> 2.110391272 | DG38: =DF38*(1+DG37) -> 2.125601545 | DH38: =DG38*(1+DH37) -> 2.140921442 | DI38: =DH38*(1+DI37) -> 2.156351755 | DJ38: =DI38*(1+DJ37) -> 2.171893279 | DK38: =DJ38*(1+DK37) -> 2.187546817 | DL38: =DK38*(1+DL37) -> 2.203313174 | DM38: =DL38*(1+DM37) -> 2.219193164 | DN38: =DM38*(1+DN37) -> 2.235187607 | DO38: =DN38*(1+DO37) -> 2.251297326 | DP38: =DO38*(1+DP37) -> 2.267523154 | DQ38: =DP38*(1+DQ37) -> 2.283865927 | DR38: =DQ38*(1+DR37) -> 2.300326487 | DS38: =DR38*(1+DS37) -> 2.316905684 | DT38: =DS38*(1+DT37) -> 2.333604372 | DU38: =DT38*(1+DU37) -> 2.350423413 | DV38: =DU38*(1+DV37) -> 2.367363675 | DW38: =DV38*(1+DW37) -> 2.38442603 | DX38: =DW38*(1+DX37) -> 2.401611359 | DY38: =DX38*(1+DY37) -> 2.418920549 | DZ38: =DY38*(1+DZ37) -> 2.436354491 | EA38: =DZ38*(1+EA37) -> 2.453914086 | EB38: =EA38*(1+EB37) -> 2.471600238 | EC38: =EB38*(1+EC37) -> 2.48941386 | ED38: =EC38*(1+ED37) -> 2.507355871 | EE38: =ED38*(1+EE37) -> 2.525427195 | EF38: =EE38*(1+EF37) -> 2.543628765 | EG38: =EF38*(1+EG37) -> 2.56196152 | EH38: =EG38*(1+EH37) -> 2.580426405 | EI38: =EH38*(1+EI37) -> 2.599024373 | EJ38: =EI38*(1+EJ37) -> 2.617756382 | EK38: =EJ38*(1+EK37) -> 2.636623398 | EL38: =EK38*(1+EL37) -> 2.655626396 | EM38: =EL38*(1+EM37) -> 2.674766354 | EN38: =EM38*(1+EN37) -> 2.69404426 | EO38: =EN38*(1+EO37) -> 2.713461108 | EP38: =EO38*(1+EP37) -> 2.733017899 | EQ38: =EP38*(1+EQ37) -> 2.752715643 | ER38: =EQ38*(1+ER37) -> 2.772555354 | ES38: =ER38*(1+ES37) -> 2.792538057 | ET38: =ES38*(1+ET37) -> 2.812664782 | EU38: =ET38*(1+EU37) -> 2.832936566 | EV38: =EU38*(1+EV37) -> 2.853354456 | EW38: =EV38*(1+EW37) -> 2.873919504 | EX38: =EW38*(1+EX37) -> 2.894632771 | EY38: =EX38*(1+EY37) -> 2.915495325 | EZ38: =EY38*(1+EZ37) -> 2.936508243 | FA38: =EZ38*(1+FA37) -> 2.957672607 | FB38: =FA38*(1+FB37) -> 2.97898951 | FC38: =FB38*(1+FC37) -> 3.00046005 | FD38: =FC38*(1+FD37) -> 3.022085336 | FE38: =FD38*(1+FE37) -> 3.043866482 | FF38: =FE38*(1+FF37) -> 3.065804612 | FG38: =FF38*(1+FG37) -> 3.087900857 | FH38: =FG38*(1+FH37) -> 3.110156357 | FI38: =FH38*(1+FI37) -> 3.132572259 | FJ38: =FI38*(1+FJ37) -> 3.155149721 | FK38: =FJ38*(1+FK37) -> 3.177889905 | FL38: =FK38*(1+FL37) -> 3.200793985 | FM38: =FL38*(1+FM37) -> 3.223863142 | FN38: =FM38*(1+FN37) -> 3.247098566 | FO38: =FN38*(1+FO37) -> 3.270501455 | FP38: =FO38*(1+FP37) -> 3.294073016 | FQ38: =FP38*(1+FQ37) -> 3.317814466 | FR38: =FQ38*(1+FR37) -> 3.341727027 | FS38: =FR38*(1+FS37) -> 3.365811934 | FT38: =FS38*(1+FT37) -> 3.390070429 | FU38: =FT38*(1+FU37) -> 3.414503763 | FV38: =FU38*(1+FV37) -> 3.439113195 | FW38: =FV38*(1+FW37) -> 3.463899996 | FX38: =FW38*(1+FX37) -> 3.488865443 | FY38: =FX38*(1+FY37) -> 3.514010825 | FZ38: =FY38*(1+FZ37) -> 3.539337437 | GA38: =FZ38*(1+GA37) -> 3.564846586 | GB38: =GA38*(1+GB37) -> 3.590539588 | GC38: =GB38*(1+GC37) -> 3.616417768 | GD38: =GC38*(1+GD37) -> 3.64248246 | GE38: =GD38*(1+GE37) -> 3.668735008 | GF38: =GE38*(1+GF37) -> 3.695176768 | GG38: =GF38*(1+GG37) -> 3.721809101 | GH38: =GG38*(1+GH37) -> 3.748633383 | GI38: =GH38*(1+GI37) -> 3.775650996 | GJ38: =GI38*(1+GJ37) -> 3.802863333 | GK38: =GJ38*(1+GK37) -> 3.830271799 | GL38: =GK38*(1+GL37) -> 3.857877806 | GM38: =GL38*(1+GM37) -> 3.885682779 | GN38: =GM38*(1+GN37) -> 3.913688151 | GO38: =GN38*(1+GO37) -> 3.941895367 | GP38: =GO38*(1+GP37) -> 3.970305881 | GQ38: =GP38*(1+GQ37) -> 3.998921159 | GR38: =GQ38*(1+GR37) -> 4.027742677 | GS38: =GR38*(1+GS37) -> 4.056771921 | GT38: =GS38*(1+GT37) -> 4.086010387 | GU38: =GT38*(1+GU37) -> 4.115459585 | GV38: =GU38*(1+GV37) -> 4.145121033 | GW38: =GV38*(1+GW37) -> 4.174996261 | GX38: =GW38*(1+GX37) -> 4.205086809 | GY38: =GX38*(1+GY37) -> 4.235394229 | GZ38: =GY38*(1+GZ37) -> 4.265920084 | HA38: =GZ38*(1+HA37) -> 4.29666595 | HB38: =HA38*(1+HB37) -> 4.32763341 | HC38: =HB38*(1+HC37) -> 4.358824064 | HD38: =HC38*(1+HD37) -> 4.390239518 | HE38: =HD38*(1+HE37) -> 4.421881393 | HF38: =HE38*(1+HF37) -> 4.453751322 | HG38: =HF38*(1+HG37) -> 4.485850948 | HH38: =HG38*(1+HH37) -> 4.518181926 | HI38: =HH38*(1+HI37) -> 4.550745924 | HJ38: =HI38*(1+HJ37) -> 4.583544621 | HK38: =HJ38*(1+HK37) -> 4.616579709 | HL38: =HK38*(1+HL37) -> 4.649852892 | HM38: =HL38*(1+HM37) -> 4.683365885 | HN38: =HM38*(1+HN37) -> 4.717120417 | HO38: =HN38*(1+HO37) -> 4.751118229 | HP38: =HO38*(1+HP37) -> 4.785361074 | HQ38: =HP38*(1+HQ37) -> 4.819850719 | HR38: =HQ38*(1+HR37) -> 4.854588941 | HS38: =HR38*(1+HS37) -> 4.889577533 | HT38: =HS38*(1+HT37) -> 4.9248183 | HU38: =HT38*(1+HU37) -> 4.960313057 | HV38: =HU38*(1+HV37) -> 4.996063637 | HW38: =HV38*(1+HW37) -> 5.032071883 | HX38: =HW38*(1+HX37) -> 5.068339652 | HY38: =HX38*(1+HY37) -> 5.104868815 | HZ38: =HY38*(1+HZ37) -> 5.141661255 | IA38: =HZ38*(1+IA37) -> 5.17871887 | IB38: =IA38*(1+IB37) -> 5.216043571 | IC38: =IB38*(1+IC37) -> 5.253637284 | ID38: =IC38*(1+ID37) -> 5.291501946 | IE38: =ID38*(1+IE37) -> 5.329639511 | IF38: =IE38*(1+IF37) -> 5.368051947 | IG38: =IF38*(1+IG37) -> 5.406741233 | IH38: =IG38*(1+IH37) -> 5.445709365 | II38: =IH38*(1+II37) -> 5.484958353 | IJ38: =II38*(1+IJ37) -> 5.524490221 | IK38: =IJ38*(1+IK37) -> 5.564307008 | IL38: =IK38*(1+IL37) -> 5.604410768 | IM38: =IL38*(1+IM37) -> 5.644803568 | IN38: =IM38*(1+IN37) -> 5.685487493 | IO38: =IN38*(1+IO37) -> 5.726464639 | IP38: =IO38*(1+IP37) -> 5.767737121 | IQ38: =IP38*(1+IQ37) -> 5.809307067 | IR38: =IQ38*(1+IR37) -> 5.851176622 | IS38: =IR38*(1+IS37) -> 5.893347943 | IT38: =IS38*(1+IT37) -> 5.935823207 | IU38: =IT38*(1+IU37) -> 5.978604604 | IV38: =IU38*(1+IV37) -> 6.021694341 | IW38: =IV38*(1+IW37) -> 6.065094639 | IX38: =IW38*(1+IX37) -> 6.108807737 | IY38: =IX38*(1+IY37) -> 6.152835889 | IZ38: =IY38*(1+IZ37) -> 6.197181367 | JA38: =IZ38*(1+JA37) -> 6.241846457 | JB38: =JA38*(1+JB37) -> 6.286833462 | JC38: =JB38*(1+JC37) -> 6.332144704 | JD38: =JC38*(1+JD37) -> 6.377782518 | JE38: =JD38*(1+JE37) -> 6.423749258 | JF38: =JE38*(1+JF37) -> 6.470047296 | JG38: =JF38*(1+JG37) -> 6.516679019 | JH38: =JG38*(1+JH37) -> 6.563646832 | JI38: =JH38*(1+JI37) -> 6.610953156 | JJ38: =JI38*(1+JJ37) -> 6.658600433 | JK38: =JJ38*(1+JK37) -> 6.706591119 | JL38: =JK38*(1+JL37) -> 6.75492769 | JM38: =JL38*(1+JM37) -> 6.803612638 | JN38: =JM38*(1+JN37) -> 6.852648474 | JO38: =JN38*(1+JO37) -> 6.902037727 | JP38: =JO38*(1+JP37) -> 6.951782944 | JQ38: =JP38*(1+JQ37) -> 7.001886692 | JR38: =JQ38*(1+JR37) -> 7.052351553 | JS38: =JR38*(1+JS37) -> 7.103180131 | JT38: =JS38*(1+JT37) -> 7.154375046 | JU38: =JT38*(1+JU37) -> 7.20593894 | JV38: =JU38*(1+JV37) -> 7.257874472 | JW38: =JV38*(1+JW37) -> 7.31018432 | JX38: =JW38*(1+JX37) -> 7.362871182 | JY38: =JX38*(1+JY37) -> 7.415937775 | JZ38: =JY38*(1+JZ37) -> 7.469386836 | KA38: =JZ38*(1+KA37) -> 7.523221122 | KB38: =KA38*(1+KB37) -> 7.577443409 | KC38: =KB38*(1+KC37) -> 7.632056494 | KD38: =KC38*(1+KD37) -> 7.687063193 | KE38: =KD38*(1+KE37) -> 7.742466342 | KF38: =KE38*(1+KF37) -> 7.798268801 | KG38: =KF38*(1+KG37) -> 7.854473445 | KH38: =KG38*(1+KH37) -> 7.911083175 | KI38: =KH38*(1+KI37) -> 7.968100909 | KJ38: =KI38*(1+KJ37) -> 8.025529588 | KK38: =KJ38*(1+KK37) -> 8.083372175 | KL38: =KK38*(1+KL37) -> 8.141631652 | KM38: =KL38*(1+KM37) -> 8.200311023 | KN38: =KM38*(1+KN37) -> 8.259413316 | KO38: =KN38*(1+KO37) -> 8.318941578 | KP38: =KO38*(1+KP37) -> 8.37889888 | KQ38: =KP38*(1+KQ37) -> 8.439288313 | KR38: =KQ38*(1+KR37) -> 8.500112993 | KS38: =KR38*(1+KS37) -> 8.561376055 | KT38: =KS38*(1+KT37) -> 8.62308066
D39: Month | G39: =IF(MOD(G2,12)=0,12,MOD(G2,12)) -> 1 | H39: =IF(MOD(H2,12)=0,12,MOD(H2,12)) -> 2 | I39: 3 | J39: 4 | K39: 5 | L39: 6 | M39: 7 | N39: 8 | O39: 9 | P39: 10 | Q39: 11 | R39: 12 | S39: 1 | T39: 2 | U39: 3 | V39: 4 | W39: 5 | X39: 6 | Y39: 7 | Z39: 8 | AA39: 9 | AB39: 10 | AC39: 11 | AD39: 12 | AE39: 1 | AF39: 2 | AG39: 3 | AH39: 4 | AI39: 5 | AJ39: 6 | AK39: 7 | AL39: 8 | AM39: 9 | AN39: 10 | AO39: 11 | AP39: 12 | AQ39: 1 | AR39: 2 | AS39: 3 | AT39: 4 | AU39: 5 | AV39: 6 | AW39: 7 | AX39: 8 | AY39: 9 | AZ39: 10 | BA39: 11 | BB39: 12 | BC39: 1 | BD39: 2 | BE39: 3 | BF39: 4 | BG39: 5 | BH39: 6 | BI39: 7 | BJ39: 8 | BK39: 9 | BL39: 10 | BM39: 11 | BN39: 12 | BO39: 1 | BP39: 2 | BQ39: 3 | BR39: 4 | BS39: 5 | BT39: =IF(MOD(BT2,12)=0,12,MOD(BT2,12)) -> 6 | BU39: 7 | BV39: 8 | BW39: 9 | BX39: 10 | BY39: 11 | BZ39: 12 | CA39: 1 | CB39: 2 | CC39: 3 | CD39: 4 | CE39: 5 | CF39: 6 | CG39: 7 | CH39: 8 | CI39: 9 | CJ39: 10 | CK39: 11 | CL39: 12 | CM39: 1 | CN39: 2 | CO39: 3 | CP39: 4 | CQ39: 5 | CR39: 6 | CS39: 7 | CT39: 8 | CU39: 9 | CV39: 10 | CW39: 11 | CX39: 12 | CY39: 1 | CZ39: 2 | DA39: 3 | DB39: 4 | DC39: 5 | DD39: 6 | DE39: 7 | DF39: 8 | DG39: 9 | DH39: 10 | DI39: 11 | DJ39: 12 | DK39: 1 | DL39: 2 | DM39: 3 | DN39: 4 | DO39: 5 | DP39: 6 | DQ39: 7 | DR39: 8 | DS39: 9 | DT39: 10 | DU39: 11 | DV39: 12 | DW39: 1 | DX39: 2 | DY39: 3 | DZ39: 4 | EA39: 5 | EB39: 6 | EC39: 7 | ED39: 8 | EE39: 9 | EF39: =IF(MOD(EF2,12)=0,12,MOD(EF2,12)) -> 10 | EG39: 11 | EH39: 12 | EI39: 1 | EJ39: 2 | EK39: 3 | EL39: 4 | EM39: 5 | EN39: 6 | EO39: 7 | EP39: 8 | EQ39: 9 | ER39: 10 | ES39: 11 | ET39: 12 | EU39: 1 | EV39: 2 | EW39: 3 | EX39: 4 | EY39: 5 | EZ39: 6 | FA39: 7 | FB39: 8 | FC39: 9 | FD39: 10 | FE39: 11 | FF39: 12 | FG39: 1 | FH39: 2 | FI39: 3 | FJ39: 4 | FK39: 5 | FL39: 6 | FM39: 7 | FN39: 8 | FO39: 9 | FP39: 10 | FQ39: 11 | FR39: 12 | FS39: 1 | FT39: 2 | FU39: 3 | FV39: 4 | FW39: 5 | FX39: 6 | FY39: 7 | FZ39: 8 | GA39: 9 | GB39: 10 | GC39: 11 | GD39: 12 | GE39: 1 | GF39: 2 | GG39: 3 | GH39: 4 | GI39: 5 | GJ39: 6 | GK39: 7 | GL39: 8 | GM39: 9 | GN39: 10 | GO39: 11 | GP39: 12 | GQ39: 1 | GR39: =IF(MOD(GR2,12)=0,12,MOD(GR2,12)) -> 2 | GS39: 3 | GT39: 4 | GU39: 5 | GV39: 6 | GW39: 7 | GX39: 8 | GY39: 9 | GZ39: 10 | HA39: 11 | HB39: 12 | HC39: 1 | HD39: 2 | HE39: 3 | HF39: 4 | HG39: 5 | HH39: 6 | HI39: 7 | HJ39: 8 | HK39: 9 | HL39: 10 | HM39: 11 | HN39: 12 | HO39: 1 | HP39: 2 | HQ39: 3 | HR39: 4 | HS39: 5 | HT39: 6 | HU39: 7 | HV39: 8 | HW39: 9 | HX39: 10 | HY39: 11 | HZ39: 12 | IA39: 1 | IB39: 2 | IC39: 3 | ID39: 4 | IE39: 5 | IF39: 6 | IG39: 7 | IH39: 8 | II39: 9 | IJ39: 10 | IK39: 11 | IL39: 12 | IM39: 1 | IN39: 2 | IO39: 3 | IP39: 4 | IQ39: 5 | IR39: 6 | IS39: 7 | IT39: 8 | IU39: 9 | IV39: 10 | IW39: 11 | IX39: 12 | IY39: 1 | IZ39: 2 | JA39: 3 | JB39: 4 | JC39: 5 | JD39: =IF(MOD(JD2,12)=0,12,MOD(JD2,12)) -> 6 | JE39: 7 | JF39: 8 | JG39: 9 | JH39: 10 | JI39: 11 | JJ39: 12 | JK39: 1 | JL39: 2 | JM39: 3 | JN39: 4 | JO39: 5 | JP39: 6 | JQ39: 7 | JR39: 8 | JS39: 9 | JT39: 10 | JU39: 11 | JV39: 12 | JW39: 1 | JX39: 2 | JY39: 3 | JZ39: 4 | KA39: 5 | KB39: 6 | KC39: 7 | KD39: 8 | KE39: 9 | KF39: 10 | KG39: 11 | KH39: 12 | KI39: 1 | KJ39: 2 | KK39: 3 | KL39: 4 | KM39: 5 | KN39: 6 | KO39: 7 | KP39: 8 | KQ39: 9 | KR39: 10 | KS39: 11 | KT39: 12
D40: Seasonal Factor | G40: =LOOKUP(G39,22:22,23:23) -> 0.03331637671 | H40: =LOOKUP(H39,22:22,23:23) -> 0.05188048971 | I40: 0.07814291044 | J40: 0.1084070947 | K40: 0.1198969037 | L40: 0.1231118798 | M40: 0.1232610981 | N40: 0.108671618 | O40: 0.1052599451 | P40: 0.05841218164 | Q40: 0.05014413131 | R40: 0.03949537084 | S40: 0.03331637671 | T40: 0.05188048971 | U40: 0.07814291044 | V40: 0.1084070947 | W40: 0.1198969037 | X40: 0.1231118798 | Y40: 0.1232610981 | Z40: 0.108671618 | AA40: 0.1052599451 | AB40: 0.05841218164 | AC40: 0.05014413131 | AD40: 0.03949537084 | AE40: 0.03331637671 | AF40: 0.05188048971 | AG40: 0.07814291044 | AH40: 0.1084070947 | AI40: 0.1198969037 | AJ40: 0.1231118798 | AK40: 0.1232610981 | AL40: 0.108671618 | AM40: 0.1052599451 | AN40: 0.05841218164 | AO40: 0.05014413131 | AP40: 0.03949537084 | AQ40: 0.03331637671 | AR40: 0.05188048971 | AS40: 0.07814291044 | AT40: 0.1084070947 | AU40: 0.1198969037 | AV40: 0.1231118798 | AW40: 0.1232610981 | AX40: 0.108671618 | AY40: 0.1052599451 | AZ40: 0.05841218164 | BA40: 0.05014413131 | BB40: 0.03949537084 | BC40: 0.03331637671 | BD40: 0.05188048971 | BE40: 0.07814291044 | BF40: 0.1084070947 | BG40: 0.1198969037 | BH40: 0.1231118798 | BI40: 0.1232610981 | BJ40: 0.108671618 | BK40: 0.1052599451 | BL40: 0.05841218164 | BM40: 0.05014413131 | BN40: 0.03949537084 | BO40: 0.03331637671 | BP40: 0.05188048971 | BQ40: 0.07814291044 | BR40: 0.1084070947 | BS40: 0.1198969037 | BT40: =LOOKUP(BT39,22:22,23:23) -> 0.1231118798 | BU40: 0.1232610981 | BV40: 0.108671618 | BW40: 0.1052599451 | BX40: 0.05841218164 | BY40: 0.05014413131 | BZ40: 0.03949537084 | CA40: 0.03331637671 | CB40: 0.05188048971 | CC40: 0.07814291044 | CD40: 0.1084070947 | CE40: 0.1198969037 | CF40: 0.1231118798 | CG40: 0.1232610981 | CH40: 0.108671618 | CI40: 0.1052599451 | CJ40: 0.05841218164 | CK40: 0.05014413131 | CL40: 0.03949537084 | CM40: 0.03331637671 | CN40: 0.05188048971 | CO40: 0.07814291044 | CP40: 0.1084070947 | CQ40: 0.1198969037 | CR40: 0.1231118798 | CS40: 0.1232610981 | CT40: 0.108671618 | CU40: 0.1052599451 | CV40: 0.05841218164 | CW40: 0.05014413131 | CX40: 0.03949537084 | CY40: 0.03331637671 | CZ40: 0.05188048971 | DA40: 0.07814291044 | DB40: 0.1084070947 | DC40: 0.1198969037 | DD40: 0.1231118798 | DE40: 0.1232610981 | DF40: 0.108671618 | DG40: 0.1052599451 | DH40: 0.05841218164 | DI40: 0.05014413131 | DJ40: 0.03949537084 | DK40: 0.03331637671 | DL40: 0.05188048971 | DM40: 0.07814291044 | DN40: 0.1084070947 | DO40: 0.1198969037 | DP40: 0.1231118798 | DQ40: 0.1232610981 | DR40: 0.108671618 | DS40: 0.1052599451 | DT40: 0.05841218164 | DU40: 0.05014413131 | DV40: 0.03949537084 | DW40: 0.03331637671 | DX40: 0.05188048971 | DY40: 0.07814291044 | DZ40: 0.1084070947 | EA40: 0.1198969037 | EB40: 0.1231118798 | EC40: 0.1232610981 | ED40: 0.108671618 | EE40: 0.1052599451 | EF40: =LOOKUP(EF39,22:22,23:23) -> 0.05841218164 | EG40: 0.05014413131 | EH40: 0.03949537084 | EI40: 0.03331637671 | EJ40: 0.05188048971 | EK40: 0.07814291044 | EL40: 0.1084070947 | EM40: 0.1198969037 | EN40: 0.1231118798 | EO40: 0.1232610981 | EP40: 0.108671618 | EQ40: 0.1052599451 | ER40: 0.05841218164 | ES40: 0.05014413131 | ET40: 0.03949537084 | EU40: 0.03331637671 | EV40: 0.05188048971 | EW40: 0.07814291044 | EX40: 0.1084070947 | EY40: 0.1198969037 | EZ40: 0.1231118798 | FA40: 0.1232610981 | FB40: 0.108671618 | FC40: 0.1052599451 | FD40: 0.05841218164 | FE40: 0.05014413131 | FF40: 0.03949537084 | FG40: 0.03331637671 | FH40: 0.05188048971 | FI40: 0.07814291044 | FJ40: 0.1084070947 | FK40: 0.1198969037 | FL40: 0.1231118798 | FM40: 0.1232610981 | FN40: 0.108671618 | FO40: 0.1052599451 | FP40: 0.05841218164 | FQ40: 0.05014413131 | FR40: 0.03949537084 | FS40: 0.03331637671 | FT40: 0.05188048971 | FU40: 0.07814291044 | FV40: 0.1084070947 | FW40: 0.1198969037 | FX40: 0.1231118798 | FY40: 0.1232610981 | FZ40: 0.108671618 | GA40: 0.1052599451 | GB40: 0.05841218164 | GC40: 0.05014413131 | GD40: 0.03949537084 | GE40: 0.03331637671 | GF40: 0.05188048971 | GG40: 0.07814291044 | GH40: 0.1084070947 | GI40: 0.1198969037 | GJ40: 0.1231118798 | GK40: 0.1232610981 | GL40: 0.108671618 | GM40: 0.1052599451 | GN40: 0.05841218164 | GO40: 0.05014413131 | GP40: 0.03949537084 | GQ40: 0.03331637671 | GR40: =LOOKUP(GR39,22:22,23:23) -> 0.05188048971 | GS40: 0.07814291044 | GT40: 0.1084070947 | GU40: 0.1198969037 | GV40: 0.1231118798 | GW40: 0.1232610981 | GX40: 0.108671618 | GY40: 0.1052599451 | GZ40: 0.05841218164 | HA40: 0.05014413131 | HB40: 0.03949537084 | HC40: 0.03331637671 | HD40: 0.05188048971 | HE40: 0.07814291044 | HF40: 0.1084070947 | HG40: 0.1198969037 | HH40: 0.1231118798 | HI40: 0.1232610981 | HJ40: 0.108671618 | HK40: 0.1052599451 | HL40: 0.05841218164 | HM40: 0.05014413131 | HN40: 0.03949537084 | HO40: 0.03331637671 | HP40: 0.05188048971 | HQ40: 0.07814291044 | HR40: 0.1084070947 | HS40: 0.1198969037 | HT40: 0.1231118798 | HU40: 0.1232610981 | HV40: 0.108671618 | HW40: 0.1052599451 | HX40: 0.05841218164 | HY40: 0.05014413131 | HZ40: 0.03949537084 | IA40: 0.03331637671 | IB40: 0.05188048971 | IC40: 0.07814291044 | ID40: 0.1084070947 | IE40: 0.1198969037 | IF40: 0.1231118798 | IG40: 0.1232610981 | IH40: 0.108671618 | II40: 0.1052599451 | IJ40: 0.05841218164 | IK40: 0.05014413131 | IL40: 0.03949537084 | IM40: 0.03331637671 | IN40: 0.05188048971 | IO40: 0.07814291044 | IP40: 0.1084070947 | IQ40: 0.1198969037 | IR40: 0.1231118798 | IS40: 0.1232610981 | IT40: 0.108671618 | IU40: 0.1052599451 | IV40: 0.05841218164 | IW40: 0.05014413131 | IX40: 0.03949537084 | IY40: 0.03331637671 | IZ40: 0.05188048971 | JA40: 0.07814291044 | JB40: 0.1084070947 | JC40: 0.1198969037 | JD40: =LOOKUP(JD39,22:22,23:23) -> 0.1231118798 | JE40: 0.1232610981 | JF40: 0.108671618 | JG40: 0.1052599451 | JH40: 0.05841218164 | JI40: 0.05014413131 | JJ40: 0.03949537084 | JK40: 0.03331637671 | JL40: 0.05188048971 | JM40: 0.07814291044 | JN40: 0.1084070947 | JO40: 0.1198969037 | JP40: 0.1231118798 | JQ40: 0.1232610981 | JR40: 0.108671618 | JS40: 0.1052599451 | JT40: 0.05841218164 | JU40: 0.05014413131 | JV40: 0.03949537084 | JW40: 0.03331637671 | JX40: 0.05188048971 | JY40: 0.07814291044 | JZ40: 0.1084070947 | KA40: 0.1198969037 | KB40: 0.1231118798 | KC40: 0.1232610981 | KD40: 0.108671618 | KE40: 0.1052599451 | KF40: 0.05841218164 | KG40: 0.05014413131 | KH40: 0.03949537084 | KI40: 0.03331637671 | KJ40: 0.05188048971 | KK40: 0.07814291044 | KL40: 0.1084070947 | KM40: 0.1198969037 | KN40: 0.1231118798 | KO40: 0.1232610981 | KP40: 0.108671618 | KQ40: 0.1052599451 | KR40: 0.05841218164 | KS40: 0.05014413131 | KT40: 0.03949537084
D41: CFADS per Month | G41: =G32*G38*12*G40 -> 3.355649861 | H41: =H32*H38*12*H40 -> 5.263102359 | I41: 7.984472087 | J41: 11.15663448 | K41: 12.4280314 | L41: 12.8532576 | M41: 12.96158631 | N41: 11.5097829 | O41: 11.22879136 | P41: 6.276133535 | Q41: 5.426599059 | R41: 4.304995422 | S41: 3.657658348 | T41: 5.736781572 | U41: 8.703074575 | V41: 12.16073158 | W41: 13.54655423 | X41: 14.01005079 | Y41: 14.12812908 | Z41: 12.54566336 | AA41: 12.23938259 | AB41: 6.840985553 | AC41: 5.914992974 | AD41: 4.69244501 | AE41: 3.9868476 | AF41: 6.253091913 | AG41: 9.486351287 | AH41: 13.25519742 | AI41: 14.76574411 | AJ41: 15.27095536 | AK41: 15.3996607 | AL41: 13.67477306 | AM41: 13.34092702 | AN41: 7.456674252 | AO41: 6.447342342 | AP41: 5.114765061 | AQ41: 4.345663883 | AR41: 6.815870185 | AS41: 10.3401229 | AT41: 14.44816519 | AU41: 16.09466108 | AV41: 16.64534134 | AW41: 16.78563016 | AX41: 14.90550264 | AY41: 14.54161045 | AZ41: 8.127774935 | BA41: 7.027603153 | BB41: 5.575093916 | BC41: 4.736773633 | BD41: 7.429298502 | BE41: 11.27073396 | BF41: 15.74850006 | BG41: 17.54318058 | BH41: 18.14342206 | BI41: 18.29633688 | BJ41: 16.24699787 | BK41: 15.85035539 | BL41: 8.859274679 | BM41: 7.660087437 | BN41: 6.076852368 | BO41: 5.16308326 | BP41: 8.097935367 | BQ41: 12.28510002 | BR41: 17.16586506 | BS41: 19.12206683 | BT41: =BT32*BT38*12*BT40 -> 19.77633004 | BU41: 19.9430072 | BV41: 17.70922768 | BW41: 17.27688737 | BX41: 9.656609401 | BY41: 8.349495306 | BZ41: 6.623769082 | CA41: 5.627760753 | CB41: 8.82674955 | CC41: 13.39075902 | CD41: 18.71079292 | CE41: 20.84305284 | CF41: 21.55619975 | CG41: 21.73787784 | CH41: 19.30305818 | CI41: 18.83180724 | CJ41: 10.52570425 | CK41: 9.100949883 | CL41: 7.219908299 | CM41: 6.134259221 | CN41: 9.621157009 | CO41: 14.59592733 | CP41: 20.39476428 | CQ41: 22.7189276 | CR41: 23.49625772 | CS41: 23.69428685 | CT41: 21.04033341 | CU41: 20.52666989 | CV41: 11.47301763 | CW41: 9.920035373 | CX41: 7.869700046 | CY41: 6.686342551 | CZ41: 10.48706114 | DA41: 15.90956079 | DB41: 22.23029307 | DC41: 24.76363108 | DD41: 25.61092092 | DE41: 25.82677267 | DF41: 22.93396342 | DG41: 22.37407018 | DH41: 12.50558922 | DI41: 10.81283856 | DJ41: 8.57797305 | DK41: 7.288113381 | DL41: 11.43089664 | DM41: 17.34142127 | DN41: 24.23101944 | DO41: 26.99235788 | DP41: 27.9159038 | DQ41: 28.15118221 | DR41: 24.99802013 | DS41: 24.3877365 | DT41: 13.63109224 | DU41: 11.78599403 | DV41: 9.349990624 | DW41: 7.944043585 | DX41: 12.45967734 | DY41: 18.90214918 | DZ41: 26.41181119 | EA41: 29.42167009 | EB41: 30.42833515 | EC41: 30.6847886 | ED41: 27.24784194 | EE41: 26.58263278 | EF41: =EF32*EF38*12*EF40 -> 14.85789055 | EG41: 12.84673349 | EH41: 10.19148978 | EI41: 8.659007508 | EJ41: 13.5810483 | EK41: 20.60334261 | EL41: 28.7888742 | EM41: 32.0696204 | EN41: 33.16688531 | EO41: 33.44641958 | EP41: 29.70014771 | EQ41: 28.97506973 | ER41: 16.1951007 | ES41: 14.0029395 | ET41: 11.10872386 | EU41: 9.438318183 | EV41: 14.80334265 | EW41: 22.45764344 | EX41: 31.37987288 | EY41: 34.95588623 | EZ41: 36.15190499 | FA41: 36.45659734 | FB41: 32.37316101 | FC41: 31.58282601 | FD41: 17.65265976 | FE41: 15.26320406 | FF41: 12.10850901 | FG41: 10.28776682 | FH41: 16.13564349 | FI41: 24.47883135 | FJ41: 34.20406144 | FK41: 38.10191599 | FL41: 39.40557643 | FM41: 39.7376911 | FN41: 35.2867455 | FO41: 34.42528035 | FP41: 19.24139914 | FQ41: 16.63689242 | FR41: 13.19827482 | FS41: 11.21366583 | FT41: 17.5878514 | FU41: 26.68192617 | FV41: 37.28242697 | FW41: 41.53108843 | FX41: 42.95207831 | FY41: 43.3140833 | FZ41: 38.46255259 | GA41: 37.52355558 | GB41: 20.97312506 | GC41: 18.13421274 | GD41: 14.38611955 | GE41: 12.22289576 | GF41: 19.17075803 | GG41: 29.08329953 | GH41: 40.6378454 | GI41: 45.26888639 | GJ41: 46.81776536 | GK41: 47.2123508 | GL41: 41.92418232 | GM41: 40.90067558 | GN41: 22.86070631 | GO41: 19.76629189 | GP41: 15.68087031 | GQ41: 13.32295638 | GR41: =GR32*GR38*12*GR40 -> 20.89612625 | GS41: 31.70079648 | GT41: 44.29525148 | GU41: 49.34308617 | GV41: 51.03136424 | GW41: 51.46146237 | GX41: 45.69735873 | GY41: 44.58173638 | GZ41: 24.91816988 | HA41: 21.54525816 | HB41: 17.09214864 | HC41: 14.52202245 | HD41: 22.77677761 | HE41: 34.55386817 | HF41: 48.28182412 | HG41: 53.78396392 | HH41: 55.62418703 | HI41: 56.09299398 | HJ41: 49.81012102 | HK41: 48.59409266 | HL41: 27.16080517 | HM41: 23.48433139 | HN41: 18.63044202 | HO41: 15.82900447 | HP41: 24.8266876 | HQ41: 37.6637163 | HR41: 52.62718829 | HS41: 58.62452068 | HT41: 60.63036386 | HU41: 61.14136344 | HV41: 54.29303191 | HW41: 52.967561 | HX41: 29.60527764 | HY41: 25.59792122 | HZ41: 20.3071818 | IA41: 17.25361487 | IB41: 27.06108948 | IC41: 41.05345077 | ID41: 57.36363523 | IE41: 63.90072754 | IF41: 66.08709661 | IG41: 66.64408615 | IH41: 59.17940478 | II41: 57.73464149 | IJ41: 32.26975263 | IK41: 27.90173413 | IL41: 22.13482816 | IM41: 18.80644021 | IN41: 29.49658753 | IO41: 44.74826134 | IP41: 62.5263624 | IQ41: 69.65179301 | IR41: 72.0349353 | IS41: 72.64205391 | IT41: 64.50555121 | IU41: 62.93075922 | IV41: 35.17403036 | IW41: 30.4128902 | IX41: 24.1269627 | IY41: 20.49901983 | IZ41: 32.15128041 | JA41: 48.77560486 | JB41: 68.15373502 | JC41: 75.92045439 | JD41: =JD32*JD38*12*JD40 -> 78.51807948 | JE41: 79.17983876 | JF41: 70.31105082 | JG41: 68.59452755 | JH41: 38.33969309 | JI41: 33.15005032 | JJ41: 26.29838934 | JK41: 22.34393162 | JL41: 35.04489565 | JM41: 53.1654093 | JN41: 74.28757117 | JO41: 82.75329528 | JP41: 85.58470663 | JQ41: 86.30602425 | JR41: 76.6390454 | JS41: 74.76803503 | JT41: 41.79026547 | JU41: 36.13355485 | JV41: 28.66524438 | JW41: 24.35488546 | JX41: 38.19893626 | JY41: 57.95029614 | JZ41: 80.97345258 | KA41: 90.20109186 | KB41: 93.28733023 | KC41: 94.07356643 | KD41: 83.53655948 | KE41: 81.49715818 | KF41: 45.55138936 | KG41: 39.38557478 | KH41: 31.24511637 | KI41: 26.54682515 | KJ41: 41.63684052 | KK41: 63.16582279 | KL41: 88.26106331 | KM41: 98.31919012 | KN41: 101.6831899 | KO41: 102.5401874 | KP41: 91.05484983 | KQ41: 88.83190242 | KR41: 49.65101441 | KS41: 42.93027651 | KT41: 34.05717685
D42: Adjusted Counter
D43: Sum of CFADS for Semi-Annual Period
D44: Semi-Annual CFADS
D46: Interest Rate | G46: =LOOKUP(G2,17:17,20:20)/2 -> 0.02125 | H46: 0.02125 | I46: 0.0225 | J46: 0.0225 | K46: 0.0225 | L46: 0.0225 | M46: 0.025 | N46: 0.025 | O46: 0.025 | P46: 0.02625 | Q46: 0.02625 | R46: 0.02625 | S46: 0.02625 | T46: 0.02625 | U46: 0.02625 | V46: 0.02625 | W46: 0.02625 | X46: 0.02625 | Y46: 0.02625 | Z46: 0.02625 | AA46: 0.02625 | AB46: 0.02625 | AC46: 0.02625 | AD46: 0.02625 | AE46: 0.02625 | AF46: 0.02625 | AG46: 0.02625 | AH46: 0.02625 | AI46: 0.02625 | AJ46: 0.02625 | AK46: 0.02625 | AL46: 0.02625 | AM46: 0.02625 | AN46: 0.02625 | AO46: 0.02625 | AP46: 0.02625 | AQ46: 0.02625 | AR46: 0.02625 | AS46: 0.02625 | AT46: 0.02625 | AU46: 0.02625 | AV46: 0.02625 | AW46: 0.02625 | AX46: 0.02625 | AY46: 0.02625 | AZ46: 0.02625 | BA46: 0.02625 | BB46: 0.02625 | BC46: 0.02625 | BD46: 0.02625 | BE46: 0.02625 | BF46: 0.02625 | BG46: 0.02625 | BH46: 0.02625 | BI46: 0.02625 | BJ46: 0.02625 | BK46: 0.02625 | BL46: 0.02625 | BM46: 0.02625 | BN46: 0.02625 | BO46: 0.02625 | BP46: 0.02625 | BQ46: 0.02625 | BR46: 0.02625 | BS46: =LOOKUP(BS2,17:17,20:20)/2 -> 0.02625 | BT46: 0.02625 | BU46: 0.02625 | BV46: 0.02625 | BW46: 0.02625 | BX46: 0.02625 | BY46: 0.02625 | BZ46: 0.02625 | CA46: 0.02625 | CB46: 0.02625 | CC46: 0.02625 | CD46: 0.02625 | CE46: 0.02625 | CF46: 0.02625 | CG46: 0.02625 | CH46: 0.02625 | CI46: 0.02625 | CJ46: 0.02625 | CK46: 0.02625 | CL46: 0.02625 | CM46: 0.02625 | CN46: 0.02625 | CO46: 0.02625 | CP46: 0.02625 | CQ46: 0.02625 | CR46: 0.02625 | CS46: 0.02625 | CT46: 0.02625 | CU46: 0.02625 | CV46: 0.02625 | CW46: 0.02625 | CX46: 0.02625 | CY46: 0.02625 | CZ46: 0.02625 | DA46: 0.02625 | DB46: 0.02625 | DC46: 0.02625 | DD46: 0.02625 | DE46: 0.02625 | DF46: 0.02625 | DG46: 0.02625 | DH46: 0.02625 | DI46: 0.02625 | DJ46: 0.02625 | DK46: 0.02625 | DL46: 0.02625 | DM46: 0.02625 | DN46: 0.02625 | DO46: 0.02625 | DP46: 0.02625 | DQ46: 0.02625 | DR46: 0.02625 | DS46: 0.02625 | DT46: 0.02625 | DU46: 0.02625 | DV46: 0.02625 | DW46: 0.02625 | DX46: 0.02625 | DY46: 0.02625 | DZ46: 0.02625 | EA46: 0.02625 | EB46: 0.02625 | EC46: 0.02625 | ED46: 0.02625 | EE46: =LOOKUP(EE2,17:17,20:20)/2 -> 0.02625 | EF46: 0.02625 | EG46: 0.02625 | EH46: 0.02625 | EI46: 0.02625 | EJ46: 0.02625 | EK46: 0.02625 | EL46: 0.02625 | EM46: 0.02625 | EN46: 0.02625 | EO46: 0.02625 | EP46: 0.02625 | EQ46: 0.02625 | ER46: 0.02625 | ES46: 0.02625 | ET46: 0.02625 | EU46: 0.02625 | EV46: 0.02625 | EW46: 0.02625 | EX46: 0.02625 | EY46: 0.02625 | EZ46: 0.02625 | FA46: 0.02625 | FB46: 0.02625 | FC46: 0.02625 | FD46: 0.02625 | FE46: 0.02625 | FF46: 0.02625 | FG46: 0.02625 | FH46: 0.02625 | FI46: 0.02625 | FJ46: 0.02625 | FK46: 0.02625 | FL46: 0.02625 | FM46: 0.02625 | FN46: 0.02625 | FO46: 0.02625 | FP46: 0.02625 | FQ46: 0.02625 | FR46: 0.02625 | FS46: 0.02625 | FT46: 0.02625 | FU46: 0.02625 | FV46: 0.02625 | FW46: 0.02625 | FX46: 0.02625 | FY46: 0.02625 | FZ46: 0.02625 | GA46: 0.02625 | GB46: 0.02625 | GC46: 0.02625 | GD46: 0.02625 | GE46: 0.02625 | GF46: 0.02625 | GG46: 0.02625 | GH46: 0.02625 | GI46: 0.02625 | GJ46: 0.02625 | GK46: 0.02625 | GL46: 0.02625 | GM46: 0.02625 | GN46: 0.02625 | GO46: 0.02625 | GP46: 0.02625 | GQ46: =LOOKUP(GQ2,17:17,20:20)/2 -> 0.02625 | GR46: 0.02625 | GS46: 0.02625 | GT46: 0.02625 | GU46: 0.02625 | GV46: 0.02625 | GW46: 0.02625 | GX46: 0.02625 | GY46: 0.02625 | GZ46: 0.02625 | HA46: 0.02625 | HB46: 0.02625 | HC46: 0.02625 | HD46: 0.02625 | HE46: 0.02625 | HF46: 0.02625 | HG46: 0.02625 | HH46: 0.02625 | HI46: 0.02625 | HJ46: 0.02625 | HK46: 0.02625 | HL46: 0.02625 | HM46: 0.02625 | HN46: 0.02625 | HO46: 0.02625 | HP46: 0.02625 | HQ46: 0.02625 | HR46: 0.02625 | HS46: 0.02625 | HT46: 0.02625 | HU46: 0.02625 | HV46: 0.02625 | HW46: 0.02625 | HX46: 0.02625 | HY46: 0.02625 | HZ46: 0.02625 | IA46: 0.02625 | IB46: 0.02625 | IC46: 0.02625 | ID46: 0.02625 | IE46: 0.02625 | IF46: 0.02625 | IG46: 0.02625 | IH46: 0.02625 | II46: 0.02625 | IJ46: 0.02625 | IK46: 0.02625 | IL46: 0.02625 | IM46: 0.02625 | IN46: 0.02625 | IO46: 0.02625 | IP46: 0.02625 | IQ46: 0.02625 | IR46: 0.02625 | IS46: 0.02625 | IT46: 0.02625 | IU46: 0.02625 | IV46: 0.02625 | IW46: 0.02625 | IX46: 0.02625 | IY46: 0.02625 | IZ46: 0.02625 | JA46: 0.02625 | JB46: 0.02625 | JC46: =LOOKUP(JC2,17:17,20:20)/2 -> 0.02625 | JD46: 0.02625 | JE46: 0.02625 | JF46: 0.02625 | JG46: 0.02625 | JH46: 0.02625 | JI46: 0.02625 | JJ46: 0.02625 | JK46: 0.02625 | JL46: 0.02625 | JM46: 0.02625 | JN46: 0.02625 | JO46: 0.02625 | JP46: 0.02625 | JQ46: 0.02625 | JR46: 0.02625 | JS46: 0.02625 | JT46: 0.02625 | JU46: 0.02625 | JV46: 0.02625 | JW46: 0.02625 | JX46: 0.02625 | JY46: 0.02625 | JZ46: 0.02625 | KA46: 0.02625 | KB46: 0.02625 | KC46: 0.02625 | KD46: 0.02625 | KE46: 0.02625 | KF46: 0.02625 | KG46: 0.02625 | KH46: 0.02625 | KI46: 0.02625 | KJ46: 0.02625 | KK46: 0.02625 | KL46: 0.02625 | KM46: 0.02625 | KN46: 0.02625 | KO46: 0.02625 | KP46: 0.02625 | KQ46: 0.02625 | KR46: 0.02625 | KS46: 0.02625 | KT46: 0.02625
D47: Interest Rate Index | F47: 1
D49: PV of CFADS | F49: =SUMPRODUCT(G44:KT44/G47:KT47) -> 
D50: Debt | F50: =F13 -> 1190
D51: LLCR | F51: =F49/F50 -> 
D53: Target DSCR | G53: =$F$51 ->  | H53: =$F$51 ->  | BT53: =$F$51 ->  | EF53: =$F$51 ->  | GR53: =$F$51 ->  | JD53: =$F$51 -> 
D54: Target Debt Service with Periodic
D55: Target Debt Service Applied | E55: =F15 -> TRUE | G55: =G54 -> 0 | H55: =H54 -> 0 | I55: 0 | J55: 0 | K55: 0 | L55: 0 | M55: 0 | N55: 0 | O55: 0 | P55: 0 | Q55: 0 | R55: 0 | S55: 0 | T55: 0 | U55: 0 | V55: 0 | W55: 0 | X55: 0 | Y55: 0 | Z55: 0 | AA55: 0 | AB55: 0 | AC55: 0 | AD55: 0 | AE55: 0 | AF55: 0 | AG55: 0 | AH55: 0 | AI55: 0 | AJ55: 0 | AK55: 0 | AL55: 0 | AM55: 0 | AN55: 0 | AO55: 0 | AP55: 0 | AQ55: 0 | AR55: 0 | AS55: 0 | AT55: 0 | AU55: 0 | AV55: 0 | AW55: 0 | AX55: 0 | AY55: 0 | AZ55: 0 | BA55: 0 | BB55: 0 | BC55: 0 | BD55: 0 | BE55: 0 | BF55: 0 | BG55: 0 | BH55: 0 | BI55: 0 | BJ55: 0 | BK55: 0 | BL55: 0 | BM55: 0 | BN55: 0 | BO55: 0 | BP55: 0 | BQ55: 0 | BR55: 0 | BS55: 0 | BT55: =BT54 -> 0 | BU55: 0 | BV55: 0 | BW55: 0 | BX55: 0 | BY55: 0 | BZ55: 0 | CA55: 0 | CB55: 0 | CC55: 0 | CD55: 0 | CE55: 0 | CF55: 0 | CG55: 0 | CH55: 0 | CI55: 0 | CJ55: 0 | CK55: 0 | CL55: 0 | CM55: 0 | CN55: 0 | CO55: 0 | CP55: 0 | CQ55: 0 | CR55: 0 | CS55: 0 | CT55: 0 | CU55: 0 | CV55: 0 | CW55: 0 | CX55: 0 | CY55: 0 | CZ55: 0 | DA55: 0 | DB55: 0 | DC55: 0 | DD55: 0 | DE55: 0 | DF55: 0 | DG55: 0 | DH55: 0 | DI55: 0 | DJ55: 0 | DK55: 0 | DL55: 0 | DM55: 0 | DN55: 0 | DO55: 0 | DP55: 0 | DQ55: 0 | DR55: 0 | DS55: 0 | DT55: 0 | DU55: 0 | DV55: 0 | DW55: 0 | DX55: 0 | DY55: 0 | DZ55: 0 | EA55: 0 | EB55: 0 | EC55: 0 | ED55: 0 | EE55: 0 | EF55: =EF54 -> 0 | EG55: 0 | EH55: 0 | EI55: 0 | EJ55: 0 | EK55: 0 | EL55: 0 | EM55: 0 | EN55: 0 | EO55: 0 | EP55: 0 | EQ55: 0 | ER55: 0 | ES55: 0 | ET55: 0 | EU55: 0 | EV55: 0 | EW55: 0 | EX55: 0 | EY55: 0 | EZ55: 0 | FA55: 0 | FB55: 0 | FC55: 0 | FD55: 0 | FE55: 0 | FF55: 0 | FG55: 0 | FH55: 0 | FI55: 0 | FJ55: 0 | FK55: 0 | FL55: 0 | FM55: 0 | FN55: 0 | FO55: 0 | FP55: 0 | FQ55: 0 | FR55: 0 | FS55: 0 | FT55: 0 | FU55: 0 | FV55: 0 | FW55: 0 | FX55: 0 | FY55: 0 | FZ55: 0 | GA55: 0 | GB55: 0 | GC55: 0 | GD55: 0 | GE55: 0 | GF55: 0 | GG55: 0 | GH55: 0 | GI55: 0 | GJ55: 0 | GK55: 0 | GL55: 0 | GM55: 0 | GN55: 0 | GO55: 0 | GP55: 0 | GQ55: 0 | GR55: =GR54 -> 0 | GS55: 0 | GT55: 0 | GU55: 0 | GV55: 0 | GW55: 0 | GX55: 0 | GY55: 0 | GZ55: 0 | HA55: 0 | HB55: 0 | HC55: 0 | HD55: 0 | HE55: 0 | HF55: 0 | HG55: 0 | HH55: 0 | HI55: 0 | HJ55: 0 | HK55: 0 | HL55: 0 | HM55: 0 | HN55: 0 | HO55: 0 | HP55: 0 | HQ55: 0 | HR55: 0 | HS55: 0 | HT55: 0 | HU55: 0 | HV55: 0 | HW55: 0 | HX55: 0 | HY55: 0 | HZ55: 0 | IA55: 0 | IB55: 0 | IC55: 0 | ID55: 0 | IE55: 0 | IF55: 0 | IG55: 0 | IH55: 0 | II55: 0 | IJ55: 0 | IK55: 0 | IL55: 0 | IM55: 0 | IN55: 0 | IO55: 0 | IP55: 0 | IQ55: 0 | IR55: 0 | IS55: 0 | IT55: 0 | IU55: 0 | IV55: 0 | IW55: 0 | IX55: 0 | IY55: 0 | IZ55: 0 | JA55: 0 | JB55: 0 | JC55: 0 | JD55: =JD54 -> 0 | JE55: 0 | JF55: 0 | JG55: 0 | JH55: 0 | JI55: 0 | JJ55: 0 | JK55: 0 | JL55: 0 | JM55: 0 | JN55: 0 | JO55: 0 | JP55: 0 | JQ55: 0 | JR55: 0 | JS55: 0 | JT55: 0 | JU55: 0 | JV55: 0 | JW55: 0 | JX55: 0 | JY55: 0 | JZ55: 0 | KA55: 0 | KB55: 0 | KC55: 0 | KD55: 0 | KE55: 0 | KF55: 0 | KG55: 0 | KH55: 0 | KI55: 0 | KJ55: 0 | KK55: 0 | KL55: 0 | KM55: 0 | KN55: 0 | KO55: 0 | KP55: 0 | KQ55: 0 | KR55: 0 | KS55: 0 | KT55: 0
D57: PV of Debt Service | E57: =SUMPRODUCT(G55:KT55/G47:KT47) -> 
B59: Results
C60: Debt Balance
D61: Opening Balance | G61: =F63 -> 1190 | H61: 1190 | I61: 1190 | J61: 1190 | K61: 1190 | L61: 1190 | M61: 1190 | N61: 1190 | O61: 1190 | P61: 1190 | Q61: 1190 | R61: 1190 | S61: 1190 | T61: 1190 | U61: 1190 | V61: 1190 | W61: 1190 | X61: 1190 | Y61: 1190 | Z61: 1190 | AA61: 1190 | AB61: 1190 | AC61: 1190 | AD61: =AC63 -> 1190 | AE61: 1190 | AF61: 1190 | AG61: 1190 | AH61: 1190 | AI61: 1190 | AJ61: 1190 | AK61: 1190 | AL61: 1190 | AM61: 1190 | AN61: 1190 | AO61: 1190 | AP61: 1190 | AQ61: 1190 | AR61: 1190 | AS61: 1190 | AT61: 1190 | AU61: 1190 | AV61: 1190 | AW61: 1190 | AX61: 1190 | AY61: 1190 | AZ61: 1190 | BA61: 1190 | BB61: 1190 | BC61: 1190 | BD61: 1190 | BE61: 1190 | BF61: 1190 | BG61: 1190 | BH61: 1190 | BI61: 1190 | BJ61: 1190 | BK61: 1190 | BL61: 1190 | BM61: 1190 | BN61: 1190 | BO61: 1190 | BP61: 1190 | BQ61: 1190 | BR61: 1190 | BS61: 1190 | BT61: 1190 | BU61: 1190 | BV61: 1190 | BW61: 1190 | BX61: 1190 | BY61: 1190 | BZ61: 1190 | CA61: 1190 | CB61: 1190 | CC61: 1190 | CD61: 1190 | CE61: 1190 | CF61: 1190 | CG61: 1190 | CH61: 1190 | CI61: 1190 | CJ61: 1190 | CK61: 1190 | CL61: 1190 | CM61: 1190 | CN61: 1190 | CO61: 1190 | CP61: =CO63 -> 1190 | CQ61: 1190 | CR61: 1190 | CS61: 1190 | CT61: 1190 | CU61: 1190 | CV61: 1190 | CW61: 1190 | CX61: 1190 | CY61: 1190 | CZ61: 1190 | DA61: 1190 | DB61: 1190 | DC61: 1190 | DD61: 1190 | DE61: 1190 | DF61: 1190 | DG61: 1190 | DH61: 1190 | DI61: 1190 | DJ61: 1190 | DK61: 1190 | DL61: 1190 | DM61: 1190 | DN61: 1190 | DO61: 1190 | DP61: 1190 | DQ61: 1190 | DR61: 1190 | DS61: 1190 | DT61: 1190 | DU61: 1190 | DV61: 1190 | DW61: 1190 | DX61: 1190 | DY61: 1190 | DZ61: 1190 | EA61: 1190 | EB61: 1190 | EC61: 1190 | ED61: 1190 | EE61: 1190 | EF61: 1190 | EG61: 1190 | EH61: 1190 | EI61: 1190 | EJ61: 1190 | EK61: 1190 | EL61: 1190 | EM61: 1190 | EN61: 1190 | EO61: 1190 | EP61: 1190 | EQ61: 1190 | ER61: 1190 | ES61: 1190 | ET61: 1190 | EU61: 1190 | EV61: 1190 | EW61: 1190 | EX61: 1190 | EY61: 1190 | EZ61: 1190 | FA61: 1190 | FB61: =FA63 -> 1190 | FC61: 1190 | FD61: 1190 | FE61: 1190 | FF61: 1190 | FG61: 1190 | FH61: 1190 | FI61: 1190 | FJ61: 1190 | FK61: 1190 | FL61: 1190 | FM61: 1190 | FN61: 1190 | FO61: 1190 | FP61: 1190 | FQ61: 1190 | FR61: 1190 | FS61: 1190 | FT61: 1190 | FU61: 1190 | FV61: 1190 | FW61: 1190 | FX61: 1190 | FY61: 1190 | FZ61: 1190 | GA61: 1190 | GB61: 1190 | GC61: 1190 | GD61: 1190 | GE61: 1190 | GF61: 1190 | GG61: 1190 | GH61: 1190 | GI61: 1190 | GJ61: 1190 | GK61: 1190 | GL61: 1190 | GM61: 1190 | GN61: 1190 | GO61: 1190 | GP61: 1190 | GQ61: 1190 | GR61: 1190 | GS61: 1190 | GT61: 1190 | GU61: 1190 | GV61: 1190 | GW61: 1190 | GX61: 1190 | GY61: 1190 | GZ61: 1190 | HA61: 1190 | HB61: 1190 | HC61: 1190 | HD61: 1190 | HE61: 1190 | HF61: 1190 | HG61: 1190 | HH61: 1190 | HI61: 1190 | HJ61: 1190 | HK61: 1190 | HL61: 1190 | HM61: 1190 | HN61: =HM63 -> 1190 | HO61: 1190 | HP61: 1190 | HQ61: 1190 | HR61: 1190 | HS61: 1190 | HT61: 1190 | HU61: 1190 | HV61: 1190 | HW61: 1190 | HX61: 1190 | HY61: 1190 | HZ61: 1190 | IA61: 1190 | IB61: 1190 | IC61: 1190 | ID61: 1190 | IE61: 1190 | IF61: 1190 | IG61: 1190 | IH61: 1190 | II61: 1190 | IJ61: 1190 | IK61: 1190 | IL61: 1190 | IM61: 1190 | IN61: 1190 | IO61: 1190 | IP61: 1190 | IQ61: 1190 | IR61: 1190 | IS61: 1190 | IT61: 1190 | IU61: 1190 | IV61: 1190 | IW61: 1190 | IX61: 1190 | IY61: 1190 | IZ61: 1190 | JA61: 1190 | JB61: 1190 | JC61: 1190 | JD61: 1190 | JE61: 1190 | JF61: 1190 | JG61: 1190 | JH61: 1190 | JI61: 1190 | JJ61: 1190 | JK61: 1190 | JL61: 1190 | JM61: 1190 | JN61: 1190 | JO61: 1190 | JP61: 1190 | JQ61: 1190 | JR61: 1190 | JS61: 1190 | JT61: 1190 | JU61: 1190 | JV61: 1190 | JW61: =JV63 -> 1190 | JX61: 1190 | JY61: 1190 | JZ61: 1190 | KA61: 1190 | KB61: 1190 | KC61: 1190 | KD61: 1190 | KE61: 1190 | KF61: 1190 | KG61: 1190 | KH61: 1190 | KI61: 1190 | KJ61: 1190 | KK61: 1190 | KL61: 1190 | KM61: 1190 | KN61: 1190 | KO61: 1190 | KP61: 1190 | KQ61: 1190 | KR61: 1190 | KS61: 1190 | KT61: 1190
D62: Repayments | G62: =G55-G64 -> 0 | H62: 0 | I62: 0 | J62: 0 | K62: 0 | L62: 0 | M62: 0 | N62: 0 | O62: 0 | P62: 0 | Q62: 0 | R62: 0 | S62: 0 | T62: 0 | U62: 0 | V62: 0 | W62: 0 | X62: 0 | Y62: 0 | Z62: 0 | AA62: 0 | AB62: 0 | AC62: 0 | AD62: 0 | AE62: 0 | AF62: 0 | AG62: 0 | AH62: 0 | AI62: 0 | AJ62: 0 | AK62: 0 | AL62: 0 | AM62: 0 | AN62: 0 | AO62: 0 | AP62: 0 | AQ62: 0 | AR62: 0 | AS62: 0 | AT62: 0 | AU62: 0 | AV62: 0 | AW62: 0 | AX62: 0 | AY62: 0 | AZ62: 0 | BA62: 0 | BB62: 0 | BC62: 0 | BD62: 0 | BE62: 0 | BF62: 0 | BG62: 0 | BH62: 0 | BI62: 0 | BJ62: 0 | BK62: 0 | BL62: 0 | BM62: 0 | BN62: 0 | BO62: 0 | BP62: 0 | BQ62: 0 | BR62: 0 | BS62: =BS55-BS64 -> 0 | BT62: 0 | BU62: 0 | BV62: 0 | BW62: 0 | BX62: 0 | BY62: 0 | BZ62: 0 | CA62: 0 | CB62: 0 | CC62: 0 | CD62: 0 | CE62: 0 | CF62: 0 | CG62: 0 | CH62: 0 | CI62: 0 | CJ62: 0 | CK62: 0 | CL62: 0 | CM62: 0 | CN62: 0 | CO62: 0 | CP62: 0 | CQ62: 0 | CR62: 0 | CS62: 0 | CT62: 0 | CU62: 0 | CV62: 0 | CW62: 0 | CX62: 0 | CY62: 0 | CZ62: 0 | DA62: 0 | DB62: 0 | DC62: 0 | DD62: 0 | DE62: 0 | DF62: 0 | DG62: 0 | DH62: 0 | DI62: 0 | DJ62: 0 | DK62: 0 | DL62: 0 | DM62: 0 | DN62: 0 | DO62: 0 | DP62: 0 | DQ62: 0 | DR62: 0 | DS62: 0 | DT62: 0 | DU62: 0 | DV62: 0 | DW62: 0 | DX62: 0 | DY62: 0 | DZ62: 0 | EA62: 0 | EB62: 0 | EC62: 0 | ED62: 0 | EE62: =EE55-EE64 -> 0 | EF62: 0 | EG62: 0 | EH62: 0 | EI62: 0 | EJ62: 0 | EK62: 0 | EL62: 0 | EM62: 0 | EN62: 0 | EO62: 0 | EP62: 0 | EQ62: 0 | ER62: 0 | ES62: 0 | ET62: 0 | EU62: 0 | EV62: 0 | EW62: 0 | EX62: 0 | EY62: 0 | EZ62: 0 | FA62: 0 | FB62: 0 | FC62: 0 | FD62: 0 | FE62: 0 | FF62: 0 | FG62: 0 | FH62: 0 | FI62: 0 | FJ62: 0 | FK62: 0 | FL62: 0 | FM62: 0 | FN62: 0 | FO62: 0 | FP62: 0 | FQ62: 0 | FR62: 0 | FS62: 0 | FT62: 0 | FU62: 0 | FV62: 0 | FW62: 0 | FX62: 0 | FY62: 0 | FZ62: 0 | GA62: 0 | GB62: 0 | GC62: 0 | GD62: 0 | GE62: 0 | GF62: 0 | GG62: 0 | GH62: 0 | GI62: 0 | GJ62: 0 | GK62: 0 | GL62: 0 | GM62: 0 | GN62: 0 | GO62: 0 | GP62: 0 | GQ62: =GQ55-GQ64 -> 0 | GR62: 0 | GS62: 0 | GT62: 0 | GU62: 0 | GV62: 0 | GW62: 0 | GX62: 0 | GY62: 0 | GZ62: 0 | HA62: 0 | HB62: 0 | HC62: 0 | HD62: 0 | HE62: 0 | HF62: 0 | HG62: 0 | HH62: 0 | HI62: 0 | HJ62: 0 | HK62: 0 | HL62: 0 | HM62: 0 | HN62: 0 | HO62: 0 | HP62: 0 | HQ62: 0 | HR62: 0 | HS62: 0 | HT62: 0 | HU62: 0 | HV62: 0 | HW62: 0 | HX62: 0 | HY62: 0 | HZ62: 0 | IA62: 0 | IB62: 0 | IC62: 0 | ID62: 0 | IE62: 0 | IF62: 0 | IG62: 0 | IH62: 0 | II62: 0 | IJ62: 0 | IK62: 0 | IL62: 0 | IM62: 0 | IN62: 0 | IO62: 0 | IP62: 0 | IQ62: 0 | IR62: 0 | IS62: 0 | IT62: 0 | IU62: 0 | IV62: 0 | IW62: 0 | IX62: 0 | IY62: 0 | IZ62: 0 | JA62: 0 | JB62: 0 | JC62: =JC55-JC64 -> 0 | JD62: 0 | JE62: 0 | JF62: 0 | JG62: 0 | JH62: 0 | JI62: 0 | JJ62: 0 | JK62: 0 | JL62: 0 | JM62: 0 | JN62: 0 | JO62: 0 | JP62: 0 | JQ62: 0 | JR62: 0 | JS62: 0 | JT62: 0 | JU62: 0 | JV62: 0 | JW62: 0 | JX62: 0 | JY62: 0 | JZ62: 0 | KA62: 0 | KB62: 0 | KC62: 0 | KD62: 0 | KE62: 0 | KF62: 0 | KG62: 0 | KH62: 0 | KI62: 0 | KJ62: 0 | KK62: 0 | KL62: 0 | KM62: 0 | KN62: 0 | KO62: 0 | KP62: 0 | KQ62: 0 | KR62: 0 | KS62: 0 | KT62: 0
D63: Closing Balance | F63: =F13 -> 1190 | G63: =G61-G62 -> 1190 | H63: 1190 | I63: 1190 | J63: 1190 | K63: 1190 | L63: 1190 | M63: 1190 | N63: 1190 | O63: 1190 | P63: 1190 | Q63: 1190 | R63: 1190 | S63: 1190 | T63: 1190 | U63: 1190 | V63: 1190 | W63: 1190 | X63: 1190 | Y63: 1190 | Z63: 1190 | AA63: 1190 | AB63: 1190 | AC63: 1190 | AD63: =AD61-AD62 -> 1190 | AE63: =AE61-AE62 -> 1190 | AF63: =AF61-AF62 -> 1190 | AG63: =AG61-AG62 -> 1190 | AH63: =AH61-AH62 -> 1190 | AI63: =AI61-AI62 -> 1190 | AJ63: =AJ61-AJ62 -> 1190 | AK63: =AK61-AK62 -> 1190 | AL63: =AL61-AL62 -> 1190 | AM63: =AM61-AM62 -> 1190 | AN63: =AN61-AN62 -> 1190 | AO63: =AO61-AO62 -> 1190 | AP63: =AP61-AP62 -> 1190 | AQ63: =AQ61-AQ62 -> 1190 | AR63: =AR61-AR62 -> 1190 | AS63: =AS61-AS62 -> 1190 | AT63: =AT61-AT62 -> 1190 | AU63: =AU61-AU62 -> 1190 | AV63: =AV61-AV62 -> 1190 | AW63: =AW61-AW62 -> 1190 | AX63: =AX61-AX62 -> 1190 | AY63: =AY61-AY62 -> 1190 | AZ63: =AZ61-AZ62 -> 1190 | BA63: =BA61-BA62 -> 1190 | BB63: =BB61-BB62 -> 1190 | BC63: =BC61-BC62 -> 1190 | BD63: =BD61-BD62 -> 1190 | BE63: =BE61-BE62 -> 1190 | BF63: =BF61-BF62 -> 1190 | BG63: =BG61-BG62 -> 1190 | BH63: =BH61-BH62 -> 1190 | BI63: =BI61-BI62 -> 1190 | BJ63: =BJ61-BJ62 -> 1190 | BK63: =BK61-BK62 -> 1190 | BL63: =BL61-BL62 -> 1190 | BM63: =BM61-BM62 -> 1190 | BN63: =BN61-BN62 -> 1190 | BO63: =BO61-BO62 -> 1190 | BP63: =BP61-BP62 -> 1190 | BQ63: =BQ61-BQ62 -> 1190 | BR63: =BR61-BR62 -> 1190 | BS63: =BS61-BS62 -> 1190 | BT63: =BT61-BT62 -> 1190 | BU63: =BU61-BU62 -> 1190 | BV63: =BV61-BV62 -> 1190 | BW63: =BW61-BW62 -> 1190 | BX63: =BX61-BX62 -> 1190 | BY63: =BY61-BY62 -> 1190 | BZ63: =BZ61-BZ62 -> 1190 | CA63: =CA61-CA62 -> 1190 | CB63: =CB61-CB62 -> 1190 | CC63: =CC61-CC62 -> 1190 | CD63: =CD61-CD62 -> 1190 | CE63: =CE61-CE62 -> 1190 | CF63: =CF61-CF62 -> 1190 | CG63: =CG61-CG62 -> 1190 | CH63: =CH61-CH62 -> 1190 | CI63: =CI61-CI62 -> 1190 | CJ63: =CJ61-CJ62 -> 1190 | CK63: =CK61-CK62 -> 1190 | CL63: =CL61-CL62 -> 1190 | CM63: =CM61-CM62 -> 1190 | CN63: =CN61-CN62 -> 1190 | CO63: =CO61-CO62 -> 1190 | CP63: =CP61-CP62 -> 1190 | CQ63: =CQ61-CQ62 -> 1190 | CR63: =CR61-CR62 -> 1190 | CS63: =CS61-CS62 -> 1190 | CT63: =CT61-CT62 -> 1190 | CU63: =CU61-CU62 -> 1190 | CV63: =CV61-CV62 -> 1190 | CW63: =CW61-CW62 -> 1190 | CX63: =CX61-CX62 -> 1190 | CY63: =CY61-CY62 -> 1190 | CZ63: =CZ61-CZ62 -> 1190 | DA63: =DA61-DA62 -> 1190 | DB63: =DB61-DB62 -> 1190 | DC63: =DC61-DC62 -> 1190 | DD63: =DD61-DD62 -> 1190 | DE63: =DE61-DE62 -> 1190 | DF63: =DF61-DF62 -> 1190 | DG63: =DG61-DG62 -> 1190 | DH63: =DH61-DH62 -> 1190 | DI63: =DI61-DI62 -> 1190 | DJ63: =DJ61-DJ62 -> 1190 | DK63: =DK61-DK62 -> 1190 | DL63: =DL61-DL62 -> 1190 | DM63: =DM61-DM62 -> 1190 | DN63: =DN61-DN62 -> 1190 | DO63: =DO61-DO62 -> 1190 | DP63: =DP61-DP62 -> 1190 | DQ63: =DQ61-DQ62 -> 1190 | DR63: =DR61-DR62 -> 1190 | DS63: =DS61-DS62 -> 1190 | DT63: =DT61-DT62 -> 1190 | DU63: =DU61-DU62 -> 1190 | DV63: =DV61-DV62 -> 1190 | DW63: =DW61-DW62 -> 1190 | DX63: =DX61-DX62 -> 1190 | DY63: =DY61-DY62 -> 1190 | DZ63: =DZ61-DZ62 -> 1190 | EA63: =EA61-EA62 -> 1190 | EB63: =EB61-EB62 -> 1190 | EC63: =EC61-EC62 -> 1190 | ED63: =ED61-ED62 -> 1190 | EE63: =EE61-EE62 -> 1190 | EF63: =EF61-EF62 -> 1190 | EG63: =EG61-EG62 -> 1190 | EH63: =EH61-EH62 -> 1190 | EI63: =EI61-EI62 -> 1190 | EJ63: =EJ61-EJ62 -> 1190 | EK63: =EK61-EK62 -> 1190 | EL63: =EL61-EL62 -> 1190 | EM63: =EM61-EM62 -> 1190 | EN63: =EN61-EN62 -> 1190 | EO63: =EO61-EO62 -> 1190 | EP63: =EP61-EP62 -> 1190 | EQ63: =EQ61-EQ62 -> 1190 | ER63: =ER61-ER62 -> 1190 | ES63: =ES61-ES62 -> 1190 | ET63: =ET61-ET62 -> 1190 | EU63: =EU61-EU62 -> 1190 | EV63: =EV61-EV62 -> 1190 | EW63: =EW61-EW62 -> 1190 | EX63: =EX61-EX62 -> 1190 | EY63: =EY61-EY62 -> 1190 | EZ63: =EZ61-EZ62 -> 1190 | FA63: =FA61-FA62 -> 1190 | FB63: =FB61-FB62 -> 1190 | FC63: =FC61-FC62 -> 1190 | FD63: =FD61-FD62 -> 1190 | FE63: =FE61-FE62 -> 1190 | FF63: =FF61-FF62 -> 1190 | FG63: =FG61-FG62 -> 1190 | FH63: =FH61-FH62 -> 1190 | FI63: =FI61-FI62 -> 1190 | FJ63: =FJ61-FJ62 -> 1190 | FK63: =FK61-FK62 -> 1190 | FL63: =FL61-FL62 -> 1190 | FM63: =FM61-FM62 -> 1190 | FN63: =FN61-FN62 -> 1190 | FO63: =FO61-FO62 -> 1190 | FP63: =FP61-FP62 -> 1190 | FQ63: =FQ61-FQ62 -> 1190 | FR63: =FR61-FR62 -> 1190 | FS63: =FS61-FS62 -> 1190 | FT63: =FT61-FT62 -> 1190 | FU63: =FU61-FU62 -> 1190 | FV63: =FV61-FV62 -> 1190 | FW63: =FW61-FW62 -> 1190 | FX63: =FX61-FX62 -> 1190 | FY63: =FY61-FY62 -> 1190 | FZ63: =FZ61-FZ62 -> 1190 | GA63: =GA61-GA62 -> 1190 | GB63: =GB61-GB62 -> 1190 | GC63: =GC61-GC62 -> 1190 | GD63: =GD61-GD62 -> 1190 | GE63: =GE61-GE62 -> 1190 | GF63: =GF61-GF62 -> 1190 | GG63: =GG61-GG62 -> 1190 | GH63: =GH61-GH62 -> 1190 | GI63: =GI61-GI62 -> 1190 | GJ63: =GJ61-GJ62 -> 1190 | GK63: =GK61-GK62 -> 1190 | GL63: =GL61-GL62 -> 1190 | GM63: =GM61-GM62 -> 1190 | GN63: =GN61-GN62 -> 1190 | GO63: =GO61-GO62 -> 1190 | GP63: =GP61-GP62 -> 1190 | GQ63: =GQ61-GQ62 -> 1190 | GR63: =GR61-GR62 -> 1190 | GS63: =GS61-GS62 -> 1190 | GT63: =GT61-GT62 -> 1190 | GU63: =GU61-GU62 -> 1190 | GV63: =GV61-GV62 -> 1190 | GW63: =GW61-GW62 -> 1190 | GX63: =GX61-GX62 -> 1190 | GY63: =GY61-GY62 -> 1190 | GZ63: =GZ61-GZ62 -> 1190 | HA63: =HA61-HA62 -> 1190 | HB63: =HB61-HB62 -> 1190 | HC63: =HC61-HC62 -> 1190 | HD63: =HD61-HD62 -> 1190 | HE63: =HE61-HE62 -> 1190 | HF63: =HF61-HF62 -> 1190 | HG63: =HG61-HG62 -> 1190 | HH63: =HH61-HH62 -> 1190 | HI63: =HI61-HI62 -> 1190 | HJ63: =HJ61-HJ62 -> 1190 | HK63: =HK61-HK62 -> 1190 | HL63: =HL61-HL62 -> 1190 | HM63: =HM61-HM62 -> 1190 | HN63: =HN61-HN62 -> 1190 | HO63: =HO61-HO62 -> 1190 | HP63: =HP61-HP62 -> 1190 | HQ63: =HQ61-HQ62 -> 1190 | HR63: =HR61-HR62 -> 1190 | HS63: =HS61-HS62 -> 1190 | HT63: =HT61-HT62 -> 1190 | HU63: =HU61-HU62 -> 1190 | HV63: =HV61-HV62 -> 1190 | HW63: =HW61-HW62 -> 1190 | HX63: =HX61-HX62 -> 1190 | HY63: =HY61-HY62 -> 1190 | HZ63: =HZ61-HZ62 -> 1190 | IA63: =IA61-IA62 -> 1190 | IB63: =IB61-IB62 -> 1190 | IC63: =IC61-IC62 -> 1190 | ID63: =ID61-ID62 -> 1190 | IE63: =IE61-IE62 -> 1190 | IF63: =IF61-IF62 -> 1190 | IG63: =IG61-IG62 -> 1190 | IH63: =IH61-IH62 -> 1190 | II63: =II61-II62 -> 1190 | IJ63: =IJ61-IJ62 -> 1190 | IK63: =IK61-IK62 -> 1190 | IL63: =IL61-IL62 -> 1190 | IM63: =IM61-IM62 -> 1190 | IN63: =IN61-IN62 -> 1190 | IO63: =IO61-IO62 -> 1190 | IP63: =IP61-IP62 -> 1190 | IQ63: =IQ61-IQ62 -> 1190 | IR63: =IR61-IR62 -> 1190 | IS63: =IS61-IS62 -> 1190 | IT63: =IT61-IT62 -> 1190 | IU63: =IU61-IU62 -> 1190 | IV63: =IV61-IV62 -> 1190 | IW63: =IW61-IW62 -> 1190 | IX63: =IX61-IX62 -> 1190 | IY63: =IY61-IY62 -> 1190 | IZ63: =IZ61-IZ62 -> 1190 | JA63: =JA61-JA62 -> 1190 | JB63: =JB61-JB62 -> 1190 | JC63: =JC61-JC62 -> 1190 | JD63: =JD61-JD62 -> 1190 | JE63: =JE61-JE62 -> 1190 | JF63: =JF61-JF62 -> 1190 | JG63: =JG61-JG62 -> 1190 | JH63: =JH61-JH62 -> 1190 | JI63: =JI61-JI62 -> 1190 | JJ63: =JJ61-JJ62 -> 1190 | JK63: =JK61-JK62 -> 1190 | JL63: =JL61-JL62 -> 1190 | JM63: =JM61-JM62 -> 1190 | JN63: =JN61-JN62 -> 1190 | JO63: =JO61-JO62 -> 1190 | JP63: =JP61-JP62 -> 1190 | JQ63: =JQ61-JQ62 -> 1190 | JR63: =JR61-JR62 -> 1190 | JS63: =JS61-JS62 -> 1190 | JT63: =JT61-JT62 -> 1190 | JU63: =JU61-JU62 -> 1190 | JV63: =JV61-JV62 -> 1190 | JW63: =JW61-JW62 -> 1190 | JX63: =JX61-JX62 -> 1190 | JY63: =JY61-JY62 -> 1190 | JZ63: =JZ61-JZ62 -> 1190 | KA63: =KA61-KA62 -> 1190 | KB63: =KB61-KB62 -> 1190 | KC63: =KC61-KC62 -> 1190 | KD63: =KD61-KD62 -> 1190 | KE63: =KE61-KE62 -> 1190 | KF63: =KF61-KF62 -> 1190 | KG63: =KG61-KG62 -> 1190 | KH63: =KH61-KH62 -> 1190 | KI63: =KI61-KI62 -> 1190 | KJ63: =KJ61-KJ62 -> 1190 | KK63: =KK61-KK62 -> 1190 | KL63: =KL61-KL62 -> 1190 | KM63: =KM61-KM62 -> 1190 | KN63: =KN61-KN62 -> 1190 | KO63: =KO61-KO62 -> 1190 | KP63: =KP61-KP62 -> 1190 | KQ63: =KQ61-KQ62 -> 1190 | KR63: =KR61-KR62 -> 1190 | KS63: =KS61-KS62 -> 1190 | KT63: =KT61-KT62 -> 1190
D64: Interest | G64: =G61*G46*G5 -> 0 | H64: 0 | I64: 0 | J64: 0 | K64: 0 | L64: 0 | M64: 0 | N64: 0 | O64: 0 | P64: 0 | Q64: 0 | R64: 0 | S64: 0 | T64: 0 | U64: 0 | V64: 0 | W64: 0 | X64: 0 | Y64: 0 | Z64: 0 | AA64: 0 | AB64: 0 | AC64: 0 | AD64: 0 | AE64: 0 | AF64: 0 | AG64: 0 | AH64: 0 | AI64: 0 | AJ64: 0 | AK64: 0 | AL64: 0 | AM64: 0 | AN64: 0 | AO64: 0 | AP64: 0 | AQ64: 0 | AR64: 0 | AS64: 0 | AT64: 0 | AU64: 0 | AV64: 0 | AW64: 0 | AX64: 0 | AY64: 0 | AZ64: 0 | BA64: 0 | BB64: 0 | BC64: 0 | BD64: 0 | BE64: 0 | BF64: 0 | BG64: 0 | BH64: 0 | BI64: 0 | BJ64: 0 | BK64: 0 | BL64: 0 | BM64: 0 | BN64: 0 | BO64: 0 | BP64: 0 | BQ64: 0 | BR64: 0 | BS64: =BS61*BS46*BS5 -> 0 | BT64: 0 | BU64: 0 | BV64: 0 | BW64: 0 | BX64: 0 | BY64: 0 | BZ64: 0 | CA64: 0 | CB64: 0 | CC64: 0 | CD64: 0 | CE64: 0 | CF64: 0 | CG64: 0 | CH64: 0 | CI64: 0 | CJ64: 0 | CK64: 0 | CL64: 0 | CM64: 0 | CN64: 0 | CO64: 0 | CP64: 0 | CQ64: 0 | CR64: 0 | CS64: 0 | CT64: 0 | CU64: 0 | CV64: 0 | CW64: 0 | CX64: 0 | CY64: 0 | CZ64: 0 | DA64: 0 | DB64: 0 | DC64: 0 | DD64: 0 | DE64: 0 | DF64: 0 | DG64: 0 | DH64: 0 | DI64: 0 | DJ64: 0 | DK64: 0 | DL64: 0 | DM64: 0 | DN64: 0 | DO64: 0 | DP64: 0 | DQ64: 0 | DR64: 0 | DS64: 0 | DT64: 0 | DU64: 0 | DV64: 0 | DW64: 0 | DX64: 0 | DY64: 0 | DZ64: 0 | EA64: 0 | EB64: 0 | EC64: 0 | ED64: 0 | EE64: =EE61*EE46*EE5 -> 0 | EF64: 0 | EG64: 0 | EH64: 0 | EI64: 0 | EJ64: 0 | EK64: 0 | EL64: 0 | EM64: 0 | EN64: 0 | EO64: 0 | EP64: 0 | EQ64: 0 | ER64: 0 | ES64: 0 | ET64: 0 | EU64: 0 | EV64: 0 | EW64: 0 | EX64: 0 | EY64: 0 | EZ64: 0 | FA64: 0 | FB64: 0 | FC64: 0 | FD64: 0 | FE64: 0 | FF64: 0 | FG64: 0 | FH64: 0 | FI64: 0 | FJ64: 0 | FK64: 0 | FL64: 0 | FM64: 0 | FN64: 0 | FO64: 0 | FP64: 0 | FQ64: 0 | FR64: 0 | FS64: 0 | FT64: 0 | FU64: 0 | FV64: 0 | FW64: 0 | FX64: 0 | FY64: 0 | FZ64: 0 | GA64: 0 | GB64: 0 | GC64: 0 | GD64: 0 | GE64: 0 | GF64: 0 | GG64: 0 | GH64: 0 | GI64: 0 | GJ64: 0 | GK64: 0 | GL64: 0 | GM64: 0 | GN64: 0 | GO64: 0 | GP64: 0 | GQ64: =GQ61*GQ46*GQ5 -> 0 | GR64: 0 | GS64: 0 | GT64: 0 | GU64: 0 | GV64: 0 | GW64: 0 | GX64: 0 | GY64: 0 | GZ64: 0 | HA64: 0 | HB64: 0 | HC64: 0 | HD64: 0 | HE64: 0 | HF64: 0 | HG64: 0 | HH64: 0 | HI64: 0 | HJ64: 0 | HK64: 0 | HL64: 0 | HM64: 0 | HN64: 0 | HO64: 0 | HP64: 0 | HQ64: 0 | HR64: 0 | HS64: 0 | HT64: 0 | HU64: 0 | HV64: 0 | HW64: 0 | HX64: 0 | HY64: 0 | HZ64: 0 | IA64: 0 | IB64: 0 | IC64: 0 | ID64: 0 | IE64: 0 | IF64: 0 | IG64: 0 | IH64: 0 | II64: 0 | IJ64: 0 | IK64: 0 | IL64: 0 | IM64: 0 | IN64: 0 | IO64: 0 | IP64: 0 | IQ64: 0 | IR64: 0 | IS64: 0 | IT64: 0 | IU64: 0 | IV64: 0 | IW64: 0 | IX64: 0 | IY64: 0 | IZ64: 0 | JA64: 0 | JB64: 0 | JC64: =JC61*JC46*JC5 -> 0 | JD64: 0 | JE64: 0 | JF64: 0 | JG64: 0 | JH64: 0 | JI64: 0 | JJ64: 0 | JK64: 0 | JL64: 0 | JM64: 0 | JN64: 0 | JO64: 0 | JP64: 0 | JQ64: 0 | JR64: 0 | JS64: 0 | JT64: 0 | JU64: 0 | JV64: 0 | JW64: 0 | JX64: 0 | JY64: 0 | JZ64: 0 | KA64: 0 | KB64: 0 | KC64: 0 | KD64: 0 | KE64: 0 | KF64: 0 | KG64: 0 | KH64: 0 | KI64: 0 | KJ64: 0 | KK64: 0 | KL64: 0 | KM64: 0 | KN64: 0 | KO64: 0 | KP64: 0 | KQ64: 0 | KR64: 0 | KS64: 0 | KT64: 0
D66: Check | E66: =ROUND(LOOKUP(E10,2:2,63:63),0)=0 -> FALSE
D68: DSCR | E68: =MIN(G68:AC68) -> 0 | G68: =IF(G55>1,G44/G55) -> FALSE | H68: =IF(H55>1,H44/H55) -> FALSE | I68: FALSE | J68: FALSE | K68: FALSE | L68: FALSE | M68: FALSE | N68: FALSE | O68: FALSE | P68: FALSE | Q68: FALSE | R68: FALSE | S68: FALSE | T68: FALSE | U68: FALSE | V68: FALSE | W68: FALSE | X68: FALSE | Y68: FALSE | Z68: FALSE | AA68: FALSE | AB68: FALSE | AC68: FALSE | AD68: FALSE | AE68: FALSE | AF68: FALSE | AG68: FALSE | AH68: FALSE | AI68: FALSE | AJ68: FALSE | AK68: FALSE | AL68: FALSE | AM68: FALSE | AN68: FALSE | AO68: FALSE | AP68: FALSE | AQ68: FALSE | AR68: FALSE | AS68: FALSE | AT68: FALSE | AU68: FALSE | AV68: FALSE | AW68: FALSE | AX68: FALSE | AY68: FALSE | AZ68: FALSE | BA68: FALSE | BB68: FALSE | BC68: FALSE | BD68: FALSE | BE68: FALSE | BF68: FALSE | BG68: FALSE | BH68: FALSE | BI68: FALSE | BJ68: FALSE | BK68: FALSE | BL68: FALSE | BM68: FALSE | BN68: FALSE | BO68: FALSE | BP68: FALSE | BQ68: FALSE | BR68: FALSE | BS68: FALSE | BT68: =IF(BT55>1,BT44/BT55) -> FALSE | BU68: FALSE | BV68: FALSE | BW68: FALSE | BX68: FALSE | BY68: FALSE | BZ68: FALSE | CA68: FALSE | CB68: FALSE | CC68: FALSE | CD68: FALSE | CE68: FALSE | CF68: FALSE | CG68: FALSE | CH68: FALSE | CI68: FALSE | CJ68: FALSE | CK68: FALSE | CL68: FALSE | CM68: FALSE | CN68: FALSE | CO68: FALSE | CP68: FALSE | CQ68: FALSE | CR68: FALSE | CS68: FALSE | CT68: FALSE | CU68: FALSE | CV68: FALSE | CW68: FALSE | CX68: FALSE | CY68: FALSE | CZ68: FALSE | DA68: FALSE | DB68: FALSE | DC68: FALSE | DD68: FALSE | DE68: FALSE | DF68: FALSE | DG68: FALSE | DH68: FALSE | DI68: FALSE | DJ68: FALSE | DK68: FALSE | DL68: FALSE | DM68: FALSE | DN68: FALSE | DO68: FALSE | DP68: FALSE | DQ68: FALSE | DR68: FALSE | DS68: FALSE | DT68: FALSE | DU68: FALSE | DV68: FALSE | DW68: FALSE | DX68: FALSE | DY68: FALSE | DZ68: FALSE | EA68: FALSE | EB68: FALSE | EC68: FALSE | ED68: FALSE | EE68: FALSE | EF68: =IF(EF55>1,EF44/EF55) -> FALSE | EG68: FALSE | EH68: FALSE | EI68: FALSE | EJ68: FALSE | EK68: FALSE | EL68: FALSE | EM68: FALSE | EN68: FALSE | EO68: FALSE | EP68: FALSE | EQ68: FALSE | ER68: FALSE | ES68: FALSE | ET68: FALSE | EU68: FALSE | EV68: FALSE | EW68: FALSE | EX68: FALSE | EY68: FALSE | EZ68: FALSE | FA68: FALSE | FB68: FALSE | FC68: FALSE | FD68: FALSE | FE68: FALSE | FF68: FALSE | FG68: FALSE | FH68: FALSE | FI68: FALSE | FJ68: FALSE | FK68: FALSE | FL68: FALSE | FM68: FALSE | FN68: FALSE | FO68: FALSE | FP68: FALSE | FQ68: FALSE | FR68: FALSE | FS68: FALSE | FT68: FALSE | FU68: FALSE | FV68: FALSE | FW68: FALSE | FX68: FALSE | FY68: FALSE | FZ68: FALSE | GA68: FALSE | GB68: FALSE | GC68: FALSE | GD68: FALSE | GE68: FALSE | GF68: FALSE | GG68: FALSE | GH68: FALSE | GI68: FALSE | GJ68: FALSE | GK68: FALSE | GL68: FALSE | GM68: FALSE | GN68: FALSE | GO68: FALSE | GP68: FALSE | GQ68: FALSE | GR68: =IF(GR55>1,GR44/GR55) -> FALSE | GS68: FALSE | GT68: FALSE | GU68: FALSE | GV68: FALSE | GW68: FALSE | GX68: FALSE | GY68: FALSE | GZ68: FALSE | HA68: FALSE | HB68: FALSE | HC68: FALSE | HD68: FALSE | HE68: FALSE | HF68: FALSE | HG68: FALSE | HH68: FALSE | HI68: FALSE | HJ68: FALSE | HK68: FALSE | HL68: FALSE | HM68: FALSE | HN68: FALSE | HO68: FALSE | HP68: FALSE | HQ68: FALSE | HR68: FALSE | HS68: FALSE | HT68: FALSE | HU68: FALSE | HV68: FALSE | HW68: FALSE | HX68: FALSE | HY68: FALSE | HZ68: FALSE | IA68: FALSE | IB68: FALSE | IC68: FALSE | ID68: FALSE | IE68: FALSE | IF68: FALSE | IG68: FALSE | IH68: FALSE | II68: FALSE | IJ68: FALSE | IK68: FALSE | IL68: FALSE | IM68: FALSE | IN68: FALSE | IO68: FALSE | IP68: FALSE | IQ68: FALSE | IR68: FALSE | IS68: FALSE | IT68: FALSE | IU68: FALSE | IV68: FALSE | IW68: FALSE | IX68: FALSE | IY68: FALSE | IZ68: FALSE | JA68: FALSE | JB68: FALSE | JC68: FALSE | JD68: =IF(JD55>1,JD44/JD55) -> FALSE | JE68: FALSE | JF68: FALSE | JG68: FALSE | JH68: FALSE | JI68: FALSE | JJ68: FALSE | JK68: FALSE | JL68: FALSE | JM68: FALSE | JN68: FALSE | JO68: FALSE | JP68: FALSE | JQ68: FALSE | JR68: FALSE | JS68: FALSE | JT68: FALSE | JU68: FALSE | JV68: FALSE | JW68: FALSE | JX68: FALSE | JY68: FALSE | JZ68: FALSE | KA68: FALSE | KB68: FALSE | KC68: FALSE | KD68: FALSE | KE68: FALSE | KF68: FALSE | KG68: FALSE | KH68: FALSE | KI68: FALSE | KJ68: FALSE | KK68: FALSE | KL68: FALSE | KM68: FALSE | KN68: FALSE | KO68: FALSE | KP68: FALSE | KQ68: FALSE | KR68: FALSE | KS68: FALSE | KT68: FALSE
C72: IRR's
D73: Project Cash Flow | F73: =F41-F11 -> -1700 | G73: 3.355649861 | H73: 5.263102359 | I73: 7.984472087 | J73: 11.15663448 | K73: 12.4280314 | L73: 12.8532576 | M73: 12.96158631 | N73: 11.5097829 | O73: 11.22879136 | P73: 6.276133535 | Q73: 5.426599059 | R73: 4.304995422 | S73: 3.657658348 | T73: 5.736781572 | U73: 8.703074575 | V73: 12.16073158 | W73: 13.54655423 | X73: 14.01005079 | Y73: 14.12812908 | Z73: 12.54566336 | AA73: 12.23938259 | AB73: 6.840985553 | AC73: 5.914992974 | AD73: 4.69244501 | AE73: 3.9868476 | AF73: 6.253091913 | AG73: 9.486351287 | AH73: 13.25519742 | AI73: 14.76574411 | AJ73: 15.27095536 | AK73: 15.3996607 | AL73: 13.67477306 | AM73: 13.34092702 | AN73: 7.456674252 | AO73: 6.447342342 | AP73: 5.114765061 | AQ73: 4.345663883 | AR73: 6.815870185 | AS73: 10.3401229 | AT73: 14.44816519 | AU73: 16.09466108 | AV73: 16.64534134 | AW73: 16.78563016 | AX73: 14.90550264 | AY73: 14.54161045 | AZ73: 8.127774935 | BA73: 7.027603153 | BB73: 5.575093916 | BC73: 4.736773633 | BD73: 7.429298502 | BE73: 11.27073396 | BF73: 15.74850006 | BG73: 17.54318058 | BH73: 18.14342206 | BI73: 18.29633688 | BJ73: 16.24699787 | BK73: 15.85035539 | BL73: 8.859274679 | BM73: 7.660087437 | BN73: 6.076852368 | BO73: 5.16308326 | BP73: 8.097935367 | BQ73: 12.28510002 | BR73: =BR41-BR11 -> 17.16586506 | BS73: 19.12206683 | BT73: 19.77633004 | BU73: 19.9430072 | BV73: 17.70922768 | BW73: 17.27688737 | BX73: 9.656609401 | BY73: 8.349495306 | BZ73: 6.623769082 | CA73: 5.627760753 | CB73: 8.82674955 | CC73: 13.39075902 | CD73: 18.71079292 | CE73: 20.84305284 | CF73: 21.55619975 | CG73: 21.73787784 | CH73: 19.30305818 | CI73: 18.83180724 | CJ73: 10.52570425 | CK73: 9.100949883 | CL73: 7.219908299 | CM73: 6.134259221 | CN73: 9.621157009 | CO73: 14.59592733 | CP73: 20.39476428 | CQ73: 22.7189276 | CR73: 23.49625772 | CS73: 23.69428685 | CT73: 21.04033341 | CU73: 20.52666989 | CV73: 11.47301763 | CW73: 9.920035373 | CX73: 7.869700046 | CY73: 6.686342551 | CZ73: 10.48706114 | DA73: 15.90956079 | DB73: 22.23029307 | DC73: 24.76363108 | DD73: 25.61092092 | DE73: 25.82677267 | DF73: 22.93396342 | DG73: 22.37407018 | DH73: 12.50558922 | DI73: 10.81283856 | DJ73: 8.57797305 | DK73: 7.288113381 | DL73: 11.43089664 | DM73: 17.34142127 | DN73: 24.23101944 | DO73: 26.99235788 | DP73: 27.9159038 | DQ73: 28.15118221 | DR73: 24.99802013 | DS73: 24.3877365 | DT73: 13.63109224 | DU73: 11.78599403 | DV73: 9.349990624 | DW73: 7.944043585 | DX73: 12.45967734 | DY73: 18.90214918 | DZ73: 26.41181119 | EA73: 29.42167009 | EB73: 30.42833515 | EC73: 30.6847886 | ED73: =ED41-ED11 -> 27.24784194 | EE73: 26.58263278 | EF73: 14.85789055 | EG73: 12.84673349 | EH73: 10.19148978 | EI73: 8.659007508 | EJ73: 13.5810483 | EK73: 20.60334261 | EL73: 28.7888742 | EM73: 32.0696204 | EN73: 33.16688531 | EO73: 33.44641958 | EP73: 29.70014771 | EQ73: 28.97506973 | ER73: 16.1951007 | ES73: 14.0029395 | ET73: 11.10872386 | EU73: 9.438318183 | EV73: 14.80334265 | EW73: 22.45764344 | EX73: 31.37987288 | EY73: 34.95588623 | EZ73: 36.15190499 | FA73: 36.45659734 | FB73: 32.37316101 | FC73: 31.58282601 | FD73: 17.65265976 | FE73: 15.26320406 | FF73: 12.10850901 | FG73: 10.28776682 | FH73: 16.13564349 | FI73: 24.47883135 | FJ73: 34.20406144 | FK73: 38.10191599 | FL73: 39.40557643 | FM73: 39.7376911 | FN73: 35.2867455 | FO73: 34.42528035 | FP73: 19.24139914 | FQ73: 16.63689242 | FR73: 13.19827482 | FS73: 11.21366583 | FT73: 17.5878514 | FU73: 26.68192617 | FV73: 37.28242697 | FW73: 41.53108843 | FX73: 42.95207831 | FY73: 43.3140833 | FZ73: 38.46255259 | GA73: 37.52355558 | GB73: 20.97312506 | GC73: 18.13421274 | GD73: 14.38611955 | GE73: 12.22289576 | GF73: 19.17075803 | GG73: 29.08329953 | GH73: 40.6378454 | GI73: 45.26888639 | GJ73: 46.81776536 | GK73: 47.2123508 | GL73: 41.92418232 | GM73: 40.90067558 | GN73: 22.86070631 | GO73: 19.76629189 | GP73: =GP41-GP11 -> 15.68087031 | GQ73: 13.32295638 | GR73: 20.89612625 | GS73: 31.70079648 | GT73: 44.29525148 | GU73: 49.34308617 | GV73: 51.03136424 | GW73: 51.46146237 | GX73: 45.69735873 | GY73: 44.58173638 | GZ73: 24.91816988 | HA73: 21.54525816 | HB73: 17.09214864 | HC73: 14.52202245 | HD73: 22.77677761 | HE73: 34.55386817 | HF73: 48.28182412 | HG73: 53.78396392 | HH73: 55.62418703 | HI73: 56.09299398 | HJ73: 49.81012102 | HK73: 48.59409266 | HL73: 27.16080517 | HM73: 23.48433139 | HN73: 18.63044202 | HO73: 15.82900447 | HP73: 24.8266876 | HQ73: 37.6637163 | HR73: 52.62718829 | HS73: 58.62452068 | HT73: 60.63036386 | HU73: 61.14136344 | HV73: 54.29303191 | HW73: 52.967561 | HX73: 29.60527764 | HY73: 25.59792122 | HZ73: 20.3071818 | IA73: 17.25361487 | IB73: 27.06108948 | IC73: 41.05345077 | ID73: 57.36363523 | IE73: 63.90072754 | IF73: 66.08709661 | IG73: 66.64408615 | IH73: 59.17940478 | II73: 57.73464149 | IJ73: 32.26975263 | IK73: 27.90173413 | IL73: 22.13482816 | IM73: 18.80644021 | IN73: 29.49658753 | IO73: 44.74826134 | IP73: 62.5263624 | IQ73: 69.65179301 | IR73: 72.0349353 | IS73: 72.64205391 | IT73: 64.50555121 | IU73: 62.93075922 | IV73: 35.17403036 | IW73: 30.4128902 | IX73: 24.1269627 | IY73: 20.49901983 | IZ73: 32.15128041 | JA73: 48.77560486 | JB73: =JB41-JB11 -> 68.15373502 | JC73: 75.92045439 | JD73: 78.51807948 | JE73: 79.17983876 | JF73: 70.31105082 | JG73: 68.59452755 | JH73: 38.33969309 | JI73: 33.15005032 | JJ73: 26.29838934 | JK73: 22.34393162 | JL73: 35.04489565 | JM73: 53.1654093 | JN73: 74.28757117 | JO73: 82.75329528 | JP73: 85.58470663 | JQ73: 86.30602425 | JR73: 76.6390454 | JS73: 74.76803503 | JT73: 41.79026547 | JU73: 36.13355485 | JV73: 28.66524438 | JW73: 24.35488546 | JX73: 38.19893626 | JY73: 57.95029614 | JZ73: 80.97345258 | KA73: 90.20109186 | KB73: 93.28733023 | KC73: 94.07356643 | KD73: 83.53655948 | KE73: 81.49715818 | KF73: 45.55138936 | KG73: 39.38557478 | KH73: 31.24511637 | KI73: 26.54682515 | KJ73: 41.63684052 | KK73: 63.16582279 | KL73: 88.26106331 | KM73: 98.31919012 | KN73: 101.6831899 | KO73: 102.5401874 | KP73: 91.05484983 | KQ73: 88.83190242 | KR73: 49.65101441 | KS73: 42.93027651 | KT73: 34.05717685
D74: Project IRR | E74: =IRR(F73:KT73) -> 0.009982180143 | F74: =(1+E74)^(12)-1 -> 0.1265864807
D76: Equity Issued | F76: =F73+F63 -> -510
D77: Equity Cash Flow | F77: =F76 -> -510 | G77: =SUMIF(42:42,G42,41:41)*G5-G55 -> 0 | H77: =SUMIF(42:42,H42,41:41)*H5-H55 -> 0 | I77: 0 | J77: 0 | K77: 0 | L77: 0 | M77: 0 | N77: 0 | O77: 0 | P77: 0 | Q77: 0 | R77: 0 | S77: 0 | T77: 0 | U77: 0 | V77: 0 | W77: 0 | X77: 0 | Y77: 0 | Z77: 0 | AA77: 0 | AB77: 0 | AC77: 0 | AD77: 0 | AE77: 0 | AF77: 0 | AG77: 0 | AH77: 0 | AI77: 0 | AJ77: 0 | AK77: 0 | AL77: 0 | AM77: 0 | AN77: 0 | AO77: 0 | AP77: 0 | AQ77: 0 | AR77: 0 | AS77: 0 | AT77: 0 | AU77: 0 | AV77: 0 | AW77: 0 | AX77: 0 | AY77: 0 | AZ77: 0 | BA77: 0 | BB77: 0 | BC77: 0 | BD77: 0 | BE77: 0 | BF77: 0 | BG77: 0 | BH77: 0 | BI77: 0 | BJ77: 0 | BK77: 0 | BL77: 0 | BM77: 0 | BN77: 0 | BO77: 0 | BP77: 0 | BQ77: 0 | BR77: 0 | BS77: 0 | BT77: =SUMIF(42:42,BT42,41:41)*BT5-BT55 -> 0 | BU77: 0 | BV77: 0 | BW77: 0 | BX77: 0 | BY77: 0 | BZ77: 0 | CA77: 0 | CB77: 0 | CC77: 0 | CD77: 0 | CE77: 0 | CF77: 0 | CG77: 0 | CH77: 0 | CI77: 0 | CJ77: 0 | CK77: 0 | CL77: 0 | CM77: 0 | CN77: 0 | CO77: 0 | CP77: 0 | CQ77: 0 | CR77: 0 | CS77: 0 | CT77: 0 | CU77: 0 | CV77: 0 | CW77: 0 | CX77: 0 | CY77: 0 | CZ77: 0 | DA77: 0 | DB77: 0 | DC77: 0 | DD77: 0 | DE77: 0 | DF77: 0 | DG77: 0 | DH77: 0 | DI77: 0 | DJ77: 0 | DK77: 0 | DL77: 0 | DM77: 0 | DN77: 0 | DO77: 0 | DP77: 0 | DQ77: 0 | DR77: 0 | DS77: 0 | DT77: 0 | DU77: 0 | DV77: 0 | DW77: 0 | DX77: 0 | DY77: 0 | DZ77: 0 | EA77: 0 | EB77: 0 | EC77: 0 | ED77: 0 | EE77: 0 | EF77: =SUMIF(42:42,EF42,41:41)*EF5-EF55 -> 0 | EG77: 0 | EH77: 0 | EI77: 0 | EJ77: 0 | EK77: 0 | EL77: 0 | EM77: 0 | EN77: 0 | EO77: 0 | EP77: 0 | EQ77: 0 | ER77: 0 | ES77: 0 | ET77: 0 | EU77: 0 | EV77: 0 | EW77: 0 | EX77: 0 | EY77: 0 | EZ77: 0 | FA77: 0 | FB77: 0 | FC77: 0 | FD77: 0 | FE77: 0 | FF77: 0 | FG77: 0 | FH77: 0 | FI77: 0 | FJ77: 0 | FK77: 0 | FL77: 0 | FM77: 0 | FN77: 0 | FO77: 0 | FP77: 0 | FQ77: 0 | FR77: 0 | FS77: 0 | FT77: 0 | FU77: 0 | FV77: 0 | FW77: 0 | FX77: 0 | FY77: 0 | FZ77: 0 | GA77: 0 | GB77: 0 | GC77: 0 | GD77: 0 | GE77: 0 | GF77: 0 | GG77: 0 | GH77: 0 | GI77: 0 | GJ77: 0 | GK77: 0 | GL77: 0 | GM77: 0 | GN77: 0 | GO77: 0 | GP77: 0 | GQ77: 0 | GR77: =SUMIF(42:42,GR42,41:41)*GR5-GR55 -> 0 | GS77: 0 | GT77: 0 | GU77: 0 | GV77: 0 | GW77: 0 | GX77: 0 | GY77: 0 | GZ77: 0 | HA77: 0 | HB77: 0 | HC77: 0 | HD77: 0 | HE77: 0 | HF77: 0 | HG77: 0 | HH77: 0 | HI77: 0 | HJ77: 0 | HK77: 0 | HL77: 0 | HM77: 0 | HN77: 0 | HO77: 0 | HP77: 0 | HQ77: 0 | HR77: 0 | HS77: 0 | HT77: 0 | HU77: 0 | HV77: 0 | HW77: 0 | HX77: 0 | HY77: 0 | HZ77: 0 | IA77: 0 | IB77: 0 | IC77: 0 | ID77: 0 | IE77: 0 | IF77: 0 | IG77: 0 | IH77: 0 | II77: 0 | IJ77: 0 | IK77: 0 | IL77: 0 | IM77: 0 | IN77: 0 | IO77: 0 | IP77: 0 | IQ77: 0 | IR77: 0 | IS77: 0 | IT77: 0 | IU77: 0 | IV77: 0 | IW77: 0 | IX77: 0 | IY77: 0 | IZ77: 0 | JA77: 0 | JB77: 0 | JC77: 0 | JD77: =SUMIF(42:42,JD42,41:41)*JD5-JD55 -> 0 | JE77: 0 | JF77: 0 | JG77: 0 | JH77: 0 | JI77: 0 | JJ77: 0 | JK77: 0 | JL77: 0 | JM77: 0 | JN77: 0 | JO77: 0 | JP77: 0 | JQ77: 0 | JR77: 0 | JS77: 0 | JT77: 0 | JU77: 0 | JV77: 0 | JW77: 0 | JX77: 0 | JY77: 0 | JZ77: 0 | KA77: 0 | KB77: 0 | KC77: 0 | KD77: 0 | KE77: 0 | KF77: 0 | KG77: 0 | KH77: 0 | KI77: 0 | KJ77: 0 | KK77: 0 | KL77: 0 | KM77: 0 | KN77: 0 | KO77: 0 | KP77: 0 | KQ77: 0 | KR77: 0 | KS77: 0 | KT77: 0
D78: Equity IRR | E78: =IRR(F77:KTT77) ->  | F78: =(1+E78)^(12)-1 -> 
C80: Graph
C82: Semi-annual | G82: 0 | H82: 1 | I82: 2 | J82: 3 | K82: 4 | L82: 5 | M82: 6 | N82: 7 | O82: 8 | P82: 9 | Q82: 10 | R82: 11 | S82: 12 | T82: 13 | U82: 14 | V82: 15 | W82: 16 | X82: 17 | Y82: 18 | Z82: 19 | AA82: 20 | AB82: 21 | AC82: 22 | AD82: 23 | AE82: 24 | AF82: 25 | AG82: 26 | AH82: 27 | AI82: 28 | AJ82: 29 | AK82: 30 | AL82: 31 | AM82: 32 | AN82: 33 | AO82: 34 | AP82: 35 | AQ82: 36 | AR82: 37 | AS82: 38 | AT82: 39 | AU82: 40 | AV82: 41 | AW82: 42 | AX82: 43 | AY82: 44 | AZ82: 45 | BA82: 46 | BB82: 47 | BC82: 48 | BD82: 49 | BE82: 50
D83: CFADS | G83: =SUMIF(42:42,G82,41:41) -> 0 | H83: 0 | I83: 0 | J83: 0 | K83: 0 | L83: 0 | M83: 0 | N83: 0 | O83: 0 | P83: 0 | Q83: 0 | R83: 0 | S83: 0 | T83: 0 | U83: 0 | V83: 0 | W83: 0 | X83: 0 | Y83: 0 | Z83: 0 | AA83: 0 | AB83: 0 | AC83: 0 | AD83: 0 | AE83: 0 | AF83: 0 | AG83: 0 | AH83: 0 | AI83: 0 | AJ83: 0 | AK83: 0 | AL83: 0 | AM83: =SUMIF(42:42,AM82,41:41) -> 0 | AN83: 0 | AO83: 0 | AP83: 0 | AQ83: 0 | AR83: 0 | AS83: 0 | AT83: 0 | AU83: 0 | AV83: 0 | AW83: 0 | AX83: 0 | AY83: 0 | AZ83: 0 | BA83: 0 | BB83: 0 | BC83: 0 | BD83: =SUMIF(42:42,BD82,41:41) -> 0 | BE83: 0
D84: Debt Service | G84: =SUMIF(42:42,G82,55:55) -> 0 | H84: =SUMIF(42:42,H82,55:55) -> 0 | I84: 0 | J84: 0 | K84: 0 | L84: 0 | M84: 0 | N84: 0 | O84: 0 | P84: 0 | Q84: 0 | R84: 0 | S84: 0 | T84: 0 | U84: 0 | V84: 0 | W84: 0 | X84: 0 | Y84: 0 | Z84: 0 | AA84: 0 | AB84: 0 | AC84: 0 | AD84: 0 | AE84: 0 | AF84: 0 | AG84: 0 | AH84: 0 | AI84: 0 | AJ84: 0 | AK84: 0 | AL84: 0 | AM84: 0 | AN84: 0 | AO84: 0 | AP84: 0 | AQ84: 0 | AR84: 0 | AS84: 0 | AT84: 0 | AU84: 0 | AV84: 0 | AW84: 0 | AX84: 0 | AY84: 0 | AZ84: 0 | BA84: 0 | BB84: 0 | BC84: 0 | BD84: 0 | BE84: 0

Sheet Multiple Issues One Fixed
D1: DSCR =CFADS/(DS1 + DS2)
D2: DS1 + DS2 =CFADS /DSCR
D3: DS1 =CFADS/DSCR - DS2
F4: 0 | G4: 1 | H4: 2 | I4: 3 | J4: 4 | K4: 5 | L4: 6 | M4: 7 | N4: 8 | O4: 9 | P4: 10 | Q4: 11 | R4: 12 | S4: 13 | T4: 14 | U4: 15
B5: Step 1: Aggregate DSCR
D6: CFADS | G6: 100 | H6: =G6 * 102% -> 102 | I6: =H6 * 102% -> 104.04 | J6: 106.1208 | K6: 108.243216 | L6: 110.4080803 | M6: 112.6162419 | N6: 114.8685668 | O6: 117.1659381 | P6: 119.5092569 | Q6: 121.899442 | R6: 124.3374308 | S6: 126.8241795 | T6: 129.360663 | U6: 131.9478763
D7: Aggregate Debt Service | E7: 1.25 | G7: =G6 / $E7 -> 80 | H7: 81.6 | I7: 83.232 | J7: 84.89664 | K7: 86.5945728 | L7: 88.32646426 | M7: 90.09299354 | N7: 91.89485341 | O7: 93.73275048 | P7: 95.60740549 | Q7: 97.5195536 | R7: 99.46994467 | S7: 101.4593436 | T7: 103.4885304 | U7: 105.558301
D9: Debt IRR - fixed | E9: =Debt_IRR_fixed -> 0.06284658814
D10: Total NPV of Debt Service | E10: =NPV($E9, G7:U7) -> 859.9221822
B12: Step 2: Non-Flexible Portion with Fixed Debt
D13: Issue 2 - Fixed | E13: 0.4
D14: Target Fixed Debt | E14: =E13*E10 -> 343.9688729
D15: Interest rate | G15: 0.03 | H15: 0.03 | I15: 0.03 | J15: 0.03 | K15: 0.03 | L15: 0.03 | M15: 0.03 | N15: 0.03 | O15: 0.03 | P15: 0.03 | Q15: 0.03 | R15: 0.03 | S15: 0.03 | T15: 0.03 | U15: 0.03
D16: Repayment Percent | G16: =1/10 -> 0.1 | H16: =1/10 -> 0.1 | I16: =1/10 -> 0.1 | J16: =1/10 -> 0.1 | K16: 0.1 | L16: 0.1 | M16: 0.1 | N16: 0.1 | O16: 0.1 | P16: 0.1 | Q16: 0 | R16: 0
D17: Repayment | F17: =E14 -> 343.9688729
D19: Balance | F19: =F17 -> 343.9688729 | G19: =F19-G17 -> 343.9688729 | H19: =G19-H17 -> 343.9688729 | I19: 343.9688729 | J19: 343.9688729 | K19: 343.9688729 | L19: 343.9688729 | M19: 343.9688729 | N19: 343.9688729 | O19: 343.9688729 | P19: 343.9688729 | Q19: 343.9688729 | R19: 343.9688729 | S19: 343.9688729 | T19: 343.9688729 | U19: 343.9688729
D20: Interest | G20: =F19*G15 -> 10.31906619 | H20: =G19*H15 -> 10.31906619 | I20: 10.31906619 | J20: 10.31906619 | K20: 10.31906619 | L20: 10.31906619 | M20: 10.31906619 | N20: 10.31906619 | O20: 10.31906619 | P20: 10.31906619 | Q20: 10.31906619 | R20: 10.31906619 | S20: 10.31906619 | T20: 10.31906619 | U20: 10.31906619
D21: Debt Service | G21: =G20+G17 -> 10.31906619 | H21: =H20+H17 -> 10.31906619 | I21: 10.31906619 | J21: 10.31906619 | K21: 10.31906619 | L21: 10.31906619 | M21: 10.31906619 | N21: 10.31906619 | O21: 10.31906619 | P21: 10.31906619 | Q21: 10.31906619 | R21: 10.31906619 | S21: 10.31906619 | T21: 10.31906619 | U21: 10.31906619
D23: Debt Service for Non-Capture
B25: Step 3: Flexible or Capture Issue
D26: Issue 1 - Capture Issue
D27: Interest rate | F27: 0.08
D28: Debt Service
D29: PV of Debt Service | F29: =NPV(F27, G28:U28) -> 0
D31: Total Debt | F31: =E14 + F29 -> 343.9688729
D32: Difference | E32: =F31-E40 -> -515.9533093
B34: Step 4: Total Debt Service and IRR
D35: Total debt cash flow
D36: Debt IRR calculated | E36: =IRR(F35:U35) -> 
D37: Debt IRR fixed | E37: 0.06284658814
D38: Diff | E38: =Debt_IRR_calculated - Debt_IRR_fixed -> 
D40: Total Debt | E40: =E10 -> 859.9221822
D41: Target Debt | E41: =F29+F17 -> 343.9688729
B43: Graph
G44: =G4 -> 1 | H44: =H4 -> 2 | I44: 3 | J44: 4 | K44: 5 | L44: 6 | M44: 7 | N44: 8 | O44: 9 | P44: 10 | Q44: 11 | R44: 12 | S44: 13 | T44: 14 | U44: 15
D45: Debt Service 1 | G45: =G21 -> 10.31906619 | H45: =H21 -> 10.31906619 | I45: 10.31906619 | J45: 10.31906619 | K45: 10.31906619 | L45: 10.31906619 | M45: 10.31906619 | N45: 10.31906619 | O45: 10.31906619 | P45: 10.31906619 | Q45: 10.31906619 | R45: 10.31906619 | S45: 10.31906619 | T45: 10.31906619 | U45: 10.31906619
D46: Debt Service 2 | G46: =G28 -> 0 | H46: =H28 -> 0 | I46: 0 | J46: 0 | K46: 0 | L46: 0 | M46: 0 | N46: 0 | O46: 0 | P46: 0 | Q46: 0 | R46: 0 | S46: 0 | T46: 0 | U46: 0
D47: CFADS | G47: =G6-G45-G46 -> 89.68093381 | H47: =H6-H45-H46 -> 91.68093381 | I47: 93.72093381 | J47: 95.80173381 | K47: 97.92414981 | L47: 100.0890141 | M47: 102.2971757 | N47: 104.5495006 | O47: 106.8468719 | P47: 109.1901907 | Q47: 111.5803758 | R47: 114.0183647 | S47: 116.5051133 | T47: 119.0415969 | U47: 121.6288101

Sheet Multiple Issues Flexible
E2: 0 | F2: 1 | G2: 2 | H2: 3 | I2: 4 | J2: 5 | K2: 6 | L2: 7 | M2: 8 | N2: 9 | O2: 10 | P2: 11 | Q2: 12 | R2: 13 | S2: 14 | T2: 15 | U2: 16 | V2: 17 | W2: 18 | X2: 19 | Y2: 20 | Z2: 21 | AA2: 22 | AB2: 23 | AC2: 24 | AD2: 25 | AE2: 26 | AF2: 27
C3: Longest Tenor | D3: 20 | F3: =F2<=$D$3 -> TRUE | G3: =G2<=$D$3 -> TRUE | H3: TRUE | I3: TRUE | J3: TRUE | K3: TRUE | L3: TRUE | M3: TRUE | N3: TRUE | O3: TRUE | P3: TRUE | Q3: TRUE | R3: TRUE | S3: TRUE | T3: TRUE | U3: TRUE | V3: TRUE | W3: TRUE | X3: TRUE | Y3: TRUE | Z3: FALSE | AA3: FALSE | AB3: FALSE | AC3: FALSE | AD3: FALSE | AE3: FALSE | AF3: FALSE
C4: CFADS | D4: 0.01 | F4: 100 | G4: =F4*(1+$D$4) -> 101 | H4: =G4*(1+$D$4) -> 102.01 | I4: 103.0301 | J4: 104.060401 | K4: 105.101005 | L4: 106.1520151 | M4: 107.2135352 | N4: 108.2856706 | O4: 109.3685273 | P4: 110.4622125 | Q4: 111.5668347 | R4: 112.682503 | S4: 113.809328 | T4: 114.9474213 | U4: =T4*(1+$D$4) -> 116.0968955 | V4: =U4*(1+$D$4) -> 117.2578645 | W4: =V4*(1+$D$4) -> 118.4304431 | X4: =W4*(1+$D$4) -> 119.6147476 | Y4: =X4*(1+$D$4) -> 120.810895 | Z4: =Y4*(1+$D$4) -> 122.019004 | AA4: =Z4*(1+$D$4) -> 123.239194 | AB4: =AA4*(1+$D$4) -> 124.471586 | AC4: =AB4*(1+$D$4) -> 125.7163018 | AD4: =AC4*(1+$D$4) -> 126.9734649 | AE4: =AD4*(1+$D$4) -> 128.2431995 | AF4: =AE4*(1+$D$4) -> 129.5256315
B6: Step 1: Aggregate Debt Size at Overall Debt IRR
C7: Aggregate Debt Service over Tenor | D7: 1.5
F8: =F4 / $D7*F3 -> 66.66666667 | G8: =G4 / $D7*G3 -> 67.33333333 | H8: 68.00666667 | I8: 68.68673333 | J8: 69.37360067 | K8: 70.06733667 | L8: 70.76801004 | M8: 71.47569014 | N8: 72.19044704 | O8: 72.91235151 | P8: 73.64147503 | Q8: 74.37788978 | R8: 75.12166868 | S8: 75.87288536 | T8: 76.63161422 | U8: 77.39793036 | V8: 78.17190966 | W8: 78.95362876 | X8: 79.74316505 | Y8: 80.5405967 | Z8: 0 | AA8: 0 | AB8: 0 | AC8: 0 | AD8: 0 | AE8: 0 | AF8: 0
C9: Debt IRR - for PV from Below | D9: =Debt_IRR_fixed -> 0.02896919399
C10: PV Debt Service =Debt | E10: =NPV($D9, F8:TT8) -> 1092.103504
C11: Difference | D11: =E31 -> 1092.103504
B13: Step 2: All of the Non-Capture Issue
C14: Issue 2 - Non-Capture | E14: 0.4
C15: Debt Amount from Percent
C16: Tenor | E16: 13 | F16: =F2<=$E$16 -> TRUE | G16: =G2<=$E$16 -> TRUE | H16: TRUE | I16: TRUE | J16: TRUE | K16: TRUE | L16: TRUE | M16: TRUE | N16: TRUE | O16: TRUE | P16: TRUE | Q16: TRUE | R16: TRUE | S16: FALSE | T16: FALSE | U16: FALSE | V16: FALSE | W16: FALSE | X16: FALSE | Y16: FALSE | Z16: FALSE | AA16: FALSE | AB16: FALSE | AC16: FALSE | AD16: FALSE | AE16: FALSE | AF16: FALSE
C17: Interest rate | E17: 0.03 | F17: =E17 -> 0.03 | G17: =F17 -> 0.03 | H17: 0.03 | I17: 0.03 | J17: 0.03 | K17: 0.03 | L17: 0.03 | M17: 0.03 | N17: 0.03 | O17: 0.03 | P17: 0.03 | Q17: 0.03 | R17: 0.03 | S17: 0.03 | T17: 0.03 | U17: =T17 -> 0.03 | V17: =U17 -> 0.03 | W17: =V17 -> 0.03 | X17: =W17 -> 0.03 | Y17: =X17 -> 0.03 | Z17: =Y17 -> 0.03 | AA17: =Z17 -> 0.03 | AB17: =AA17 -> 0.03 | AC17: =AB17 -> 0.03 | AD17: =AC17 -> 0.03 | AE17: =AD17 -> 0.03 | AF17: =AE17 -> 0.03
C18: CFADS over Debt Tenor
C19: PV CFADS | E19: =NPV(E17, F18:TT18) -> 0
C20: LLCR for Issue 2
C21: DS for Issue 2 - Capture
B23: Step 3: Compute Capture Debt Service
C24: Issue 1 - Capturing
C25: Interest rate | E25: 0.07 | F25: =$E$25 -> 0.07 | G25: =$E$25 -> 0.07 | H25: 0.07 | I25: 0.07 | J25: 0.07 | K25: 0.07 | L25: 0.07 | M25: 0.07 | N25: 0.07 | O25: 0.07 | P25: 0.07 | Q25: 0.07 | R25: 0.07 | S25: 0.07 | T25: 0.07 | U25: 0.07 | V25: 0.07 | W25: 0.07 | X25: 0.07 | Y25: 0.07 | Z25: 0.07 | AA25: 0.07 | AB25: 0.07 | AC25: 0.07 | AD25: 0.07 | AE25: 0.07 | AF25: 0.07
C26: Debt Service - Issue 1 Capturing
C27: PV of DS | E27: =NPV(E25, F26:TT26) -> 0
C29: Total Debt Using PV | E29: =E15 + E27 -> 0
C30: Aggregate PV of Debt Service | E30: =E10 -> 1092.103504
C31: Diff | E31: =E10 - E29 -> 1092.103504
C33: Total debt cash flow Usin PV | E33: =-E29 -> 0 | F33: =F21 + F26 -> 0 | G33: 0 | H33: 0 | I33: 0 | J33: 0 | K33: 0 | L33: 0 | M33: 0 | N33: 0 | O33: 0 | P33: 0 | Q33: 0 | R33: 0 | S33: 0 | T33: 0 | U33: =U21 + U26 -> 0 | V33: 0 | W33: 0 | X33: 0 | Y33: 0 | Z33: 0 | AA33: 0 | AB33: 0 | AC33: 0 | AD33: 0 | AE33: 0 | AF33: 0
C34: Debt IRR | D34: =IRR(E33:T33) -> 
C35: Fixed Debt IRR | D35: 0.02896919399
C36: Difference | D36: =Debt_IRR_calculated - Debt_IRR_fixed -> 
C38: Capturing Debt | E38: DSCR =CFADS/(DS1 + DS2) | H38: DS1 + DS2 =CFADS /DSCR | K38: DS1 (capturing) =CFADS/DSCR - DS2
F40: =F2 -> 1 | G40: =G2 -> 2 | H40: 3 | I40: 4 | J40: 5 | K40: 6 | L40: 7 | M40: 8 | N40: 9 | O40: 10 | P40: 11 | Q40: 12 | R40: 13 | S40: 14 | T40: 15 | U40: 16 | V40: 17 | W40: 18 | X40: 19 | Y40: 20 | Z40: 21 | AA40: 22 | AB40: 23 | AC40: 24 | AD40: 25 | AE40: 26 | AF40: 27
C41: Debt Service 1
C42: Debt Service 2
C43: CFADS

Sheet Fixed Debt Amt LLCR
E2: 0 | F2: 1 | G2: 2 | H2: 3 | I2: 4 | J2: 5 | K2: 6 | L2: 7 | M2: 8 | N2: 9 | O2: 10 | P2: 11 | Q2: 12 | R2: 13 | S2: 14 | T2: 15
C3: CFADS | E3: 0.03 | F3: 100 | G3: =F3*(1+$E$3) -> 103 | H3: =G3*(1+$E$3) -> 106.09 | I3: 109.2727 | J3: 112.550881 | K3: 115.9274074 | L3: 119.4052297 | M3: 122.9873865 | N3: 126.6770081 | O3: 130.4773184 | P3: 134.3916379 | Q3: 138.4233871 | R3: 142.5760887 | S3: 146.8533713 | T3: 151.2589725
B5: Inputs
C6: Total Debt | E6: 800
C7: Max Tenor | E7: =MAX(E21,E29) -> 12 | F7: =F2<=$E$7 -> TRUE | G7: =G2<=$E$7 -> TRUE | H7: TRUE | I7: TRUE | J7: TRUE | K7: TRUE | L7: TRUE | M7: TRUE | N7: TRUE | O7: TRUE | P7: TRUE | Q7: TRUE | R7: FALSE | S7: FALSE | T7: FALSE
B9: Aggregate - Just Add Up
C10: Aggregate DSCR from LLCR Below | E10: =E16 -> 1.368424458 | F10: =F3 / $E10*F7 -> 73.0767412 | G10: 75.26904344 | H10: 77.52711474 | I10: 79.85292818 | J10: 82.24851603 | K10: 84.71597151 | L10: 87.25745066 | M10: 89.87517418 | N10: 92.5714294 | O10: 95.34857228 | P10: 98.20902945 | Q10: 101.1553003 | R10: 0 | S10: 0 | T10: 0
C11: Fixed Debt | E11: =E6 -> 800
C12: CFADS over Tenor | F12: =F3*F7 -> 100 | G12: =G3*G7 -> 103 | H12: 106.09 | I12: 109.2727 | J12: 112.550881 | K12: 115.9274074 | L12: 119.4052297 | M12: 122.9873865 | N12: 126.6770081 | O12: 130.4773184 | P12: 134.3916379 | Q12: 138.4233871 | R12: 0 | S12: 0 | T12: 0
C13: Debt IRR | E13: =D39 -> 0.04
C14: PV CFADS | E14: =NPV(E13,F12:T12) -> 1094.739567
C15: No Circularity in Debt IRR
C16: LLCR from Aggregate PV CFADS | E16: =E14 / E11 -> 1.368424458
B18: Compute LLCR for Capture Debt Issue
C19: Issue 2 | D19: 0.4 | E19: =D19 * E$11 -> 320
C20: Interest rate | F20: 0.04 | G20: =F20 -> 0.04 | H20: =G20 -> 0.04 | I20: 0.04 | J20: 0.04 | K20: 0.04 | L20: 0.04 | M20: 0.04 | N20: 0.04 | O20: 0.04 | P20: 0.04 | Q20: 0.04 | R20: 0.04 | S20: 0.04 | T20: 0.04
C21: Tenor | E21: 8 | F21: =F2<=$E$21 -> TRUE | G21: TRUE | H21: TRUE | I21: TRUE | J21: TRUE | K21: TRUE | L21: TRUE | M21: TRUE | N21: FALSE | O21: FALSE | P21: FALSE | Q21: FALSE | R21: FALSE | S21: FALSE | T21: FALSE
C22: CFADS
C23: PV CFADS at Interest Rate for Issue
C24: LLCR
C25: Debt Service - Non-Capture | E25: =NPV(F20,F25:T25) -> 0
B26: =#REF! -> 
C27: Interest rate | E27: 0.04
C28: Issue 1 | D28: =1 - D19 -> 0.6 | E28: =D28 * E11 -> 480
C29: Tenor | E29: 12 | F29: =F2<=$E$29 -> TRUE | G29: =G2<=$E$29 -> TRUE | H29: TRUE | I29: TRUE | J29: TRUE | K29: TRUE | L29: TRUE | M29: TRUE | N29: TRUE | O29: TRUE | P29: TRUE | Q29: TRUE | R29: FALSE | S29: FALSE | T29: FALSE
C30: Debt Service - Capture
C32: DS Aggregate | F32: =F30 + F25 -> 0 | G32: 0 | H32: 0 | I32: 0 | J32: 0 | K32: 0 | L32: 0 | M32: 0 | N32: 0 | O32: 0 | P32: 0 | Q32: 0 | R32: 0 | S32: 0 | T32: 0
C33: PV of DS | E33: =NPV(E27,F30:T30) -> 0
C34: DSCR | F34: =IF(F32,F3/F32) -> FALSE | G34: FALSE | H34: FALSE | I34: FALSE | J34: FALSE | K34: FALSE | L34: FALSE | M34: FALSE | N34: FALSE | O34: FALSE | P34: FALSE | Q34: FALSE | R34: FALSE | S34: FALSE | T34: FALSE
B36: Compute Debt IRR
C37: Total debt cash flow | E37: =-E33-E25 -> 0
C38: Debt IRR | D38: =IRR(E37:T37) -> 
C39: Fixed | D39: 0.04
C40: Difference | D40: =D38-D39 -> 
E42: DSCR =CFADS/(DS1 + DS2) | H42: DS1 + DS2 =CFADS /DSCR | K42: DS1 =CFADS/DSCR - DS2
B44: Graph | F44: =F2 -> 1 | G44: =G2 -> 2 | H44: 3 | I44: 4 | J44: 5 | K44: 6 | L44: 7 | M44: 8 | N44: 9 | O44: 10 | P44: 11 | Q44: 12 | R44: 13 | S44: 14 | T44: 15
C45: Debt Issue 1 | F45: =F25 -> 0 | G45: =G25 -> 0 | H45: 0 | I45: 0 | J45: 0 | K45: 0 | L45: 0 | M45: 0 | N45: 0 | O45: 0 | P45: 0 | Q45: 0 | R45: 0 | S45: 0 | T45: 0
C46: Debt Issue 2 | F46: =F30 -> 0 | G46: =G30 -> 0 | H46: 0 | I46: 0 | J46: 0 | K46: 0 | L46: 0 | M46: 0 | N46: 0 | O46: 0 | P46: 0 | Q46: 0 | R46: 0 | S46: 0 | T46: 0
C47: CFADS | F47: =F3-F45-F46 -> 100 | G47: =G3-G45-G46 -> 103 | H47: 106.09 | I47: =I3-I45-I46 -> 109.2727 | J47: =J3-J45-J46 -> 112.550881 | K47: =K3-K45-K46 -> 115.9274074 | L47: =L3-L45-L46 -> 119.4052297 | M47: =M3-M45-M46 -> 122.9873865 | N47: =N3-N45-N46 -> 126.6770081 | O47: =O3-O45-O46 -> 130.4773184 | P47: =P3-P45-P46 -> 134.3916379 | Q47: =Q3-Q45-Q46 -> 138.4233871 | R47: =R3-R45-R46 -> 142.5760887 | S47: =S3-S45-S46 -> 146.8533713 | T47: =T3-T45-T46 -> 151.2589725

Sheet Steps (2)
C2: Do not need a capture issue
C4: 1. Use the Varying Input DSCR
C5: 3. Set the End Row to the Debt Tenor of the Shortest Issue
C8: 4. For the Non-Capture Issue, Use Same DSCR
C9: 4. For the Non-Capture Issue, Compute the PV of Debt Service
C10: 5. Compute a factor for the PV of Debt Service/Target Debt

Sheet Multiple Issues Changing DSCR
E2: 0 | F2: 1 | G2: 2 | H2: 3 | I2: 4 | J2: 5 | K2: 6 | L2: 7 | M2: 8 | N2: 9 | O2: 10 | P2: 11 | Q2: 12 | R2: 13 | S2: 14 | T2: 15 | U2: 16 | V2: 17 | W2: 18 | X2: 19 | Y2: 20 | Z2: 21 | AA2: 22 | AB2: 23 | AC2: 24 | AD2: 25 | AE2: 26 | AF2: 27
C3: Longest Tenor | D3: 17 | F3: =F2<=$D$3 -> TRUE | G3: =G2<=$D$3 -> TRUE | H3: TRUE | I3: TRUE | J3: TRUE | K3: TRUE | L3: TRUE | M3: TRUE | N3: TRUE | O3: TRUE | P3: TRUE | Q3: TRUE | R3: TRUE | S3: TRUE | T3: TRUE | U3: TRUE | V3: TRUE | W3: FALSE | X3: FALSE | Y3: FALSE | Z3: FALSE | AA3: FALSE | AB3: FALSE | AC3: FALSE | AD3: FALSE | AE3: FALSE | AF3: FALSE
C4: CFADS | D4: 0.01 | F4: 100 | G4: =F4*(1+$D$4) -> 101 | H4: =G4*(1+$D$4) -> 102.01 | I4: 103.0301 | J4: 104.060401 | K4: 105.101005 | L4: 106.1520151 | M4: 107.2135352 | N4: 108.2856706 | O4: 109.3685273 | P4: 110.4622125 | Q4: 111.5668347 | R4: 112.682503 | S4: 113.809328 | T4: 114.9474213 | U4: 116.0968955 | V4: 117.2578645 | W4: 118.4304431 | X4: 119.6147476 | Y4: 120.810895 | Z4: 122.019004 | AA4: 123.239194 | AB4: 124.471586 | AC4: 125.7163018 | AD4: 126.9734649 | AE4: 128.2431995 | AF4: 129.5256315
B6: Step 1: Aggregate Debt Size at Overall Debt IRR
C7: Aggregate Debt Service over Tenor | D7: 1.5
C8: DSCR | F8: 2 | G8: =F8-0.1 -> 1.9 | H8: =G8-0.1 -> 1.8 | I8: 1.7 | J8: 1.6 | K8: 1.5 | L8: 1.4 | M8: 1.3 | N8: 1.2 | O8: 1.2 | P8: 1.2 | Q8: 1.2 | R8: 1.2 | S8: 1.2 | T8: 1.2 | U8: 1.2 | V8: 1.2 | W8: 1.2 | X8: 1.2 | Y8: 1.2 | Z8: 1.2 | AA8: 1.2 | AB8: 1.2 | AC8: 1.2 | AD8: 1.2 | AE8: 1.2 | AF8: 1.2
C9: Debt Service
C10: Debt IRR - for PV from Below | D10: =Debt_IRR_fixed -> 0.05116982896
C11: PV Debt Service =Debt | E11: =NPV($D10, F9:TT9) -> 0
C12: Difference | D12: =E33 -> -728.5344838
B14: Step 2: All of the Non-Capture Issue
C15: Issue 2 - Non-Capture | E15: 0.6
C16: Debt Amount from Percent | E16: =E15 * E$11 -> 0
C17: Tenor | E17: 13 | F17: =F2<=$E$17 -> TRUE | G17: =G2<=$E$17 -> TRUE | H17: TRUE | I17: TRUE | J17: TRUE | K17: TRUE | L17: TRUE | M17: TRUE | N17: TRUE | O17: TRUE | P17: TRUE | Q17: TRUE | R17: TRUE | S17: FALSE | T17: FALSE | U17: FALSE | V17: FALSE | W17: FALSE | X17: FALSE | Y17: FALSE | Z17: FALSE | AA17: FALSE | AB17: FALSE | AC17: FALSE | AD17: FALSE | AE17: FALSE | AF17: FALSE
C18: Interest rate | E18: 0.03 | F18: =E18 -> 0.03 | G18: =F18 -> 0.03 | H18: 0.03 | I18: 0.03 | J18: 0.03 | K18: 0.03 | L18: 0.03 | M18: 0.03 | N18: 0.03 | O18: 0.03 | P18: 0.03 | Q18: 0.03 | R18: 0.03 | S18: 0.03 | T18: 0.03 | U18: 0.03 | V18: 0.03 | W18: 0.03 | X18: 0.03 | Y18: 0.03 | Z18: 0.03 | AA18: 0.03 | AB18: 0.03 | AC18: 0.03 | AD18: 0.03 | AE18: 0.03 | AF18: 0.03
C19: Full Debt Service at DSCR
C20: Hypothetical PV of Full Debt Service
C21: Total Debt from Multiplication
C22: Factor to Apply to Debt Service
C23: DS for Issue 2 - Capture | D23: =NPV(E18,F23:TT23) -> 0
B25: Step 3: Compute Capture Debt Service
C26: Issue 1 - Capturing
C27: Interest rate | E27: 0.07 | F27: =$E$27 -> 0.07 | G27: =$E$27 -> 0.07 | H27: 0.07 | I27: 0.07 | J27: 0.07 | K27: 0.07 | L27: 0.07 | M27: 0.07 | N27: 0.07 | O27: 0.07 | P27: 0.07 | Q27: 0.07 | R27: 0.07 | S27: 0.07 | T27: 0.07 | U27: 0.07 | V27: 0.07 | W27: 0.07 | X27: 0.07 | Y27: 0.07 | Z27: 0.07 | AA27: 0.07 | AB27: 0.07 | AC27: 0.07 | AD27: 0.07 | AE27: 0.07 | AF27: 0.07
C28: Debt Service - Issue 1 Capturing | F28: =F4 / F8 * F3- F23 -> 50 | G28: 53.15789474 | H28: 56.67222222 | I28: 60.60594118 | J28: 65.03775063 | K28: 70.06733667 | L28: 75.8228679 | M28: 82.47195016 | N28: 90.2380588 | O28: 91.14043939 | P28: 92.05184378 | Q28: 92.97236222 | R28: 93.90208584 | S28: 94.8411067 | T28: 95.78951777 | U28: 96.74741295 | V28: 97.71488708 | W28: 0 | X28: 0 | Y28: 0 | Z28: 0 | AA28: 0 | AB28: 0 | AC28: 0 | AD28: 0 | AE28: 0 | AF28: 0
C29: PV of DS | E29: =NPV(E27, F28:TT28) -> 728.5344838
C31: Total Debt Using PV | E31: =E16 + E29 -> 728.5344838
C32: Aggregate PV of Debt Service | E32: =E11 -> 0
C33: Diff | E33: =E11 - E31 -> -728.5344838
C35: Total debt cash flow Usin PV | E35: =-E31 -> -728.5344838 | F35: =F23 + F28 -> 50 | G35: 53.15789474 | H35: 56.67222222 | I35: 60.60594118 | J35: 65.03775063 | K35: 70.06733667 | L35: 75.8228679 | M35: 82.47195016 | N35: 90.2380588 | O35: 91.14043939 | P35: 92.05184378 | Q35: 92.97236222 | R35: 93.90208584 | S35: 94.8411067 | T35: 95.78951777 | U35: 96.74741295 | V35: 97.71488708 | W35: 0 | X35: 0 | Y35: 0 | Z35: 0 | AA35: 0 | AB35: 0 | AC35: 0 | AD35: 0 | AE35: 0 | AF35: 0
C36: Debt IRR | D36: =IRR(E35:TT35) -> 0.07
C37: Fixed Debt IRR | D37: 0.05116982896
C38: Difference | D38: =Debt_IRR_calculated - Debt_IRR_fixed -> 0.01883017104
C40: Capturing Debt | E40: DSCR =CFADS/(DS1 + DS2) | H40: DS1 + DS2 =CFADS /DSCR | K40: DS1 (capturing) =CFADS/DSCR - DS2
F42: =F2 -> 1 | G42: 2 | H42: 3 | I42: 4 | J42: 5 | K42: 6 | L42: 7 | M42: 8 | N42: 9 | O42: 10 | P42: 11 | Q42: 12 | R42: 13 | S42: 14 | T42: 15 | U42: 16 | V42: 17 | W42: 18 | X42: 19 | Y42: 20 | Z42: 21 | AA42: 22 | AB42: 23 | AC42: 24 | AD42: 25 | AE42: 26 | AF42: 27
C43: Debt Service 1 | F43: =F23 -> 0 | G43: =G23 -> 0 | H43: 0 | I43: 0 | J43: 0 | K43: 0 | L43: 0 | M43: 0 | N43: 0 | O43: 0 | P43: 0 | Q43: 0 | R43: 0 | S43: 0 | T43: 0 | U43: 0 | V43: 0 | W43: 0 | X43: 0 | Y43: 0 | Z43: 0 | AA43: 0 | AB43: 0 | AC43: 0 | AD43: 0 | AE43: 0 | AF43: 0
C44: Debt Service 2 | F44: =F28 -> 50 | G44: =G28 -> 53.15789474 | H44: 56.67222222 | I44: 60.60594118 | J44: 65.03775063 | K44: 70.06733667 | L44: 75.8228679 | M44: 82.47195016 | N44: 90.2380588 | O44: 91.14043939 | P44: 92.05184378 | Q44: 92.97236222 | R44: 93.90208584 | S44: 94.8411067 | T44: 95.78951777 | U44: 96.74741295 | V44: 97.71488708 | W44: 0 | X44: 0 | Y44: 0 | Z44: 0 | AA44: 0 | AB44: 0 | AC44: 0 | AD44: 0 | AE44: 0 | AF44: 0
C45: CFADS | F45: =F4-F43-F44 -> 50 | G45: 47.84210526 | H45: 45.33777778 | I45: 42.42415882 | J45: 39.02265037 | K45: 35.03366834 | L45: 30.32914716 | M45: 24.74158505 | N45: 18.04761176 | O45: 18.22808788 | P45: 18.41036876 | Q45: 18.59447244 | R45: 18.78041717 | S45: 18.96822134 | T45: 19.15790355 | U45: 19.34948259 | V45: 19.54297742 | W45: 118.4304431 | X45: 119.6147476 | Y45: 120.810895 | Z45: 122.019004 | AA45: 123.239194 | AB45: 124.471586 | AC45: 125.7163018 | AD45: 126.9734649 | AE45: 128.2431995 | AF45: 129.5256315

Sheet Changing DSCR - Fixed
D2: Time | G2: 1 | H2: 2 | I2: 3 | J2: 4 | K2: 5 | L2: 6 | M2: 7 | N2: 8 | O2: 9 | P2: 10 | Q2: 11 | R2: 12 | S2: 13
D3: CFADS | G3: 100 | H3: 120 | I3: 130 | J3: 80 | K3: 100 | L3: 150 | M3: 106 | N3: 107 | O3: 108 | P3: 109 | Q3: 110 | R3: 111 | S3: 112
D4: DSCR | G4: 2.5 | H4: 2.4 | I4: 2.3 | J4: 2.2 | K4: 2 | L4: 1.5 | M4: 1.5 | N4: 1.5 | O4: 1.5 | P4: 1.5 | Q4: 1.5 | R4: 1.5 | S4: 1.5
E6: Number | F6: Debt | G6: Tenor | H6: Rate
H7: 1 | I7: 5
D8: Capture | E8: 1 | F8: 200 | G8: 10 | H8: 0.1 | I8: 0.08
D9: Non Capture | E9: 2 | F9: 150 | G9: 7 | H9: 0.04 | I9: 0.03
D10: Non Capture | E10: 3 | F10: 130 | G10: 6 | H10: 0.02 | I10: 0.05
D12: Total | F12: =SUM(F8:F11) -> 480
D14: Aggregate Debt Service Before Adjustment | G14: =G3/G4 -> 40 | H14: 50 | I14: 56.52173913 | J14: 36.36363636 | K14: 50 | L14: 100 | M14: 70.66666667 | N14: 71.33333333 | O14: 72 | P14: 72.66666667 | Q14: 73.33333333 | R14: 74 | S14: 74.66666667
D15: Debt IRR
B17: Debt Service Calculations
D18: Debt 2 - Interest Rate | G18: =LOOKUP(G2,7:7,9:9) -> 0.04 | H18: 0.04 | I18: 0.04 | J18: 0.04 | K18: 0.03 | L18: 0.03 | M18: 0.03 | N18: 0.03 | O18: 0.03 | P18: 0.03 | Q18: 0.03 | R18: 0.03 | S18: 0.03
D19: Flag | E19: =G9 -> 7 | G19: =G2<=$E19 -> TRUE | H19: TRUE | I19: TRUE | J19: TRUE | K19: TRUE | L19: TRUE | M19: TRUE | N19: FALSE | O19: FALSE | P19: FALSE | Q19: FALSE | R19: FALSE | S19: FALSE
D20: PV Factor | F20: 1 | G20: =F20*(1+G18) -> 1.04 | H20: =G20*(1+H18) -> 1.0816 | I20: 1.124864 | J20: 1.16985856 | K20: 1.204954317 | L20: 1.241102946 | M20: 1.278336035 | N20: 1.316686116 | O20: 1.356186699 | P20: 1.3968723 | Q20: 1.438778469 | R20: 1.481941823 | S20: 1.526400078
D21: Debt Service
D22: PV of Debt Service without Adustment
D23: Target Debt
D24: Sculpting Ratio
D25: Debt Service Applied
D27: Debt 3 - Interest Rate | G27: =LOOKUP(G2,7:7,10:10) -> 0.02 | H27: 0.02 | I27: 0.02 | J27: 0.02 | K27: 0.05 | L27: 0.05 | M27: 0.05 | N27: 0.05 | O27: 0.05 | P27: 0.05 | Q27: 0.05 | R27: 0.05 | S27: 0.05
D28: Flag | E28: =G10 -> 6 | G28: =G2<=$E$28 -> TRUE | H28: TRUE | I28: TRUE | J28: TRUE | K28: TRUE | L28: TRUE | M28: FALSE | N28: FALSE | O28: FALSE | P28: FALSE | Q28: FALSE | R28: FALSE | S28: FALSE
D29: PV Factor | F29: 1 | G29: =F29*(1+G27) -> 1.02 | H29: =G29*(1+H27) -> 1.0404 | I29: 1.061208 | J29: 1.08243216 | K29: 1.136553768 | L29: 1.193381456 | M29: 1.253050529 | N29: 1.315703056 | O29: 1.381488208 | P29: 1.450562619 | Q29: 1.52309075 | R29: 1.599245287 | S29: 1.679207552
D30: Debt Service | G30: =G28*G14 -> 40 | H30: 50 | I30: 56.52173913 | J30: 36.36363636 | K30: 50 | L30: 100 | M30: 0 | N30: 0 | O30: 0 | P30: 0 | Q30: 0 | R30: 0 | S30: 0
D31: PV of Debt Service without Adustment | E31: =SUMPRODUCT(G30:S30/G29:S29) -> 301.9183445
D32: Target Debt | E32: =F10 -> 130
D33: Sculpting Ratio | E33: =E32/E31 -> 0.4305799975
D34: Debt Service Applied | G34: =G30*$E$33 -> 17.2231999 | H34: =H30*$E$33 -> 21.52899987 | I34: 24.33713029 | J34: 15.65745445 | K34: 21.52899987 | L34: 43.05799975 | M34: 0 | N34: 0 | O34: 0 | P34: 0 | Q34: 0 | R34: 0 | S34: 0
D37: Debt 1 | G37: =LOOKUP(G2,7:7,8:8) -> 0.1 | H37: 0.1 | I37: 0.1 | J37: 0.1 | K37: 0.08 | L37: 0.08 | M37: 0.08 | N37: 0.08 | O37: 0.08 | P37: 0.08 | Q37: 0.08 | R37: 0.08 | S37: 0.08
D38: Flag | E38: =G8 -> 10 | G38: =G2<=$E38 -> TRUE | H38: TRUE | I38: TRUE | J38: TRUE | K38: TRUE | L38: TRUE | M38: TRUE | N38: TRUE | O38: TRUE | P38: TRUE | Q38: FALSE | R38: FALSE | S38: FALSE
D39: PV Factor | F39: 1 | G39: =F39*(1+G37) -> 1.1 | H39: =G39*(1+H37) -> 1.21 | I39: 1.331 | J39: 1.4641 | K39: 1.581228 | L39: 1.70772624 | M39: 1.844344339 | N39: 1.991891886 | O39: 2.151243237 | P39: 2.323342696 | Q39: 2.509210112 | R39: 2.709946921 | S39: 2.926742675
D40: Debt Service | G40: =G14*G38 -> 40 | H40: 50 | I40: 56.52173913 | J40: 36.36363636 | K40: 50 | L40: 100 | M40: 70.66666667 | N40: 71.33333333 | O40: 72 | P40: 72.66666667 | Q40: 0 | R40: 0 | S40: 0
D41: PV of Debt Service without Adustment | E41: =SUMPRODUCT(G40:S40/G39:S39) -> 374.0397869
D42: Target Debt | E42: =F8 -> 200
D43: Hedieh Sculpting Ratio | E43: =E42/E41 -> 0.5347024755
D44: Debt Service Applied | G44: =$E$43*G40 -> 21.38809902 | H44: =$E$43*H40 -> 26.73512378 | I44: 30.22231383 | J44: 19.44372638 | K44: 26.73512378 | L44: 53.47024755 | M44: 37.7856416 | N44: 38.14210992 | O44: 38.49857824 | P44: 38.85504655 | Q44: 0 | R44: 0 | S44: 0
B46: Check
C47: Debt 1
D48: Opening | G48: =F50 -> 200 | H48: =G50 -> 198.611901 | I48: 191.7379673 | J48: 180.6894502 | K48: 179.3146688 | L48: 166.9247186 | M48: 126.8084485 | N48: 99.16748278 | O48: 68.95877148 | P48: 35.97689496 | Q48: -1.847411113e-13 | R48: -1.995204002e-13 | S48: -2.154820322e-13
D49: Repayment | G49: =G44-G51 -> 1.388099021 | H49: =H44-H51 -> 6.873933678 | I49: =I44-I51 -> 11.0485171 | J49: =J44-J51 -> 1.374781363 | K49: =K44-K51 -> 12.38995027 | L49: =L44-L51 -> 40.11627007 | M49: 27.64096572 | N49: 30.2087113 | O49: 32.98187652 | P49: 35.97689496 | Q49: 1.47792889e-14 | R49: 1.596163202e-14 | S49: 1.723856258e-14
D50: Closing | F50: =E42 -> 200 | G50: =G48-G49 -> 198.611901 | H50: =H48-H49 -> 191.7379673 | I50: 180.6894502 | J50: 179.3146688 | K50: 166.9247186 | L50: 126.8084485 | M50: 99.16748278 | N50: 68.95877148 | O50: 35.97689496 | P50: -1.847411113e-13 | Q50: -1.995204002e-13 | R50: -2.154820322e-13 | S50: -2.327205948e-13
D51: Intrest | G51: =G37*G48 -> 20 | H51: =H37*H48 -> 19.8611901 | I51: 19.17379673 | J51: 18.06894502 | K51: 14.34517351 | L51: 13.35397749 | M51: 10.14467588 | N51: 7.933398622 | O51: 5.516701718 | P51: 2.878151597 | Q51: -1.47792889e-14 | R51: -1.596163202e-14 | S51: -1.723856258e-14
C53: Debt 2
D54: Opening | G54: =F56 -> 0 | H54: =G56 -> 0 | I54: 0 | J54: 0 | K54: 0 | L54: 0 | M54: 0 | N54: 0 | O54: 0 | P54: 0 | Q54: 0 | R54: 0 | S54: 0
D55: Repayment | G55: =G25-G57 -> 0 | H55: =H25-H57 -> 0 | I55: 0 | J55: 0 | K55: 0 | L55: 0 | M55: 0 | N55: 0 | O55: 0 | P55: 0 | Q55: 0 | R55: 0 | S55: 0
D56: Closing | F56: =E23 -> 0 | G56: =G54-G55 -> 0 | H56: =H54-H55 -> 0 | I56: 0 | J56: 0 | K56: 0 | L56: 0 | M56: 0 | N56: 0 | O56: 0 | P56: 0 | Q56: 0 | R56: 0 | S56: 0
D57: Intrest | G57: =G54*G18 -> 0 | H57: =H54*H18 -> 0 | I57: 0 | J57: 0 | K57: 0 | L57: 0 | M57: 0 | N57: 0 | O57: 0 | P57: 0 | Q57: 0 | R57: 0 | S57: 0
C60: Debt 3
D61: Opening | G61: =F63 -> 130 | H61: =G63 -> 115.3768001 | I61: 96.15533623 | J61: 73.74131266 | K61: 59.55868446 | L61: 41.00761881 | M61: 0 | N61: 0 | O61: 0 | P61: 0 | Q61: 0 | R61: 0 | S61: 0
D62: Repayment | G62: =G34-G64 -> 14.6231999 | H62: =H34-H64 -> 19.22146387 | I62: 22.41402357 | J62: 14.1826282 | K62: 18.55106565 | L62: 41.00761881 | M62: 0 | N62: 0 | O62: 0 | P62: 0 | Q62: 0 | R62: 0 | S62: 0
D63: Closing | F63: =E32 -> 130 | G63: =G61-G62 -> 115.3768001 | H63: =H61-H62 -> 96.15533623 | I63: 73.74131266 | J63: 59.55868446 | K63: 41.00761881 | L63: 0 | M63: 0 | N63: 0 | O63: 0 | P63: 0 | Q63: 0 | R63: 0 | S63: 0
D64: Intrest | G64: =G61*G27 -> 2.6 | H64: =H61*H27 -> 2.307536002 | I64: 1.923106725 | J64: 1.474826253 | K64: 2.977934223 | L64: 2.05038094 | M64: 0 | N64: 0 | O64: 0 | P64: 0 | Q64: 0 | R64: 0 | S64: 0
B66: Total DSCR
D67: CFADS
D68: Total Debt Service
D69: DSCR Computed
D71: DSCR | G71: =G4 -> 2.5 | H71: 2.4 | I71: 2.3 | J71: 2.2 | K71: 2 | L71: 1.5 | M71: 1.5 | N71: 1.5 | O71: 1.5 | P71: 1.5 | Q71: 1.5 | R71: 1.5 | S71: 1.5
B73: Graph
G74: =G2 -> 1 | H74: =H2 -> 2 | I74: 3 | J74: 4 | K74: 5 | L74: 6 | M74: 7 | N74: 8 | O74: 9 | P74: 10 | Q74: 11 | R74: 12 | S74: 13
D75: Debt Service 1 | G75: =G44 -> 21.38809902 | H75: =H44 -> 26.73512378 | I75: 30.22231383 | J75: 19.44372638 | K75: 26.73512378 | L75: 53.47024755 | M75: 37.7856416 | N75: 38.14210992 | O75: 38.49857824 | P75: 38.85504655 | Q75: 0 | R75: 0 | S75: 0
D76: Debt Service 2 | G76: =G25 -> 0 | H76: =H25 -> 0 | I76: 0 | J76: 0 | K76: 0 | L76: 0 | M76: 0 | N76: 0 | O76: 0 | P76: 0 | Q76: 0 | R76: 0 | S76: 0
D77: Debt Service 3 | G77: =G34 -> 17.2231999 | H77: =H34 -> 21.52899987 | I77: 24.33713029 | J77: 15.65745445 | K77: 21.52899987 | L77: 43.05799975 | M77: 0 | N77: 0 | O77: 0 | P77: 0 | Q77: 0 | R77: 0 | S77: 0
D78: CFADS | G78: =G3-G75-G76-G77 -> 61.38870108 | H78: =H3-H75-H76-H77 -> 71.73587635 | I78: 75.44055587 | J78: 44.89881916 | K78: 51.73587635 | L78: 53.4717527 | M78: 68.2143584 | N78: 68.85789008 | O78: 69.50142176 | P78: 70.14495345 | Q78: 110 | R78: 111 | S78: 112

Sheet Changing DSCR with Capture
B1: Inputs | G1: s
E2: Num | F2: Debt | G2: Tenor | H2: Rate
H3: 1 | I3: 5
D4: Capture | E4: 1 | F4: 200 | G4: 10 | H4: 0.1 | I4: 0.08
D5: Non Capture | E5: 2 | F5: 150 | G5: 8 | H5: 0.04 | I5: 0.03
D6: Non Capture | E6: 3 | F6: 130 | G6: 6 | H6: 0.02 | I6: 0.05
D8: Total | F8: =SUM(F4:F7) -> 480
G10: 1 | H10: 2 | I10: 3 | J10: 4 | K10: 5 | L10: 6 | M10: 7 | N10: 8 | O10: 9 | P10: 10 | Q10: 11 | R10: 12 | S10: 13
D11: CFADS | G11: 100 | H11: 120 | I11: 130 | J11: 80 | K11: 100 | L11: 150 | M11: 106 | N11: 107 | O11: 108 | P11: 109 | Q11: 110 | R11: 111 | S11: 112
D12: DSCR | G12: 2.5 | H12: 2.4 | I12: 2.3 | J12: 2.2 | K12: 2 | L12: 1.5 | M12: 1.5 | N12: 1.5 | O12: 1.5 | P12: 1.5 | Q12: 1.5 | R12: 1.5 | S12: 1.5
D14: Aggregate Debt Service Before Adjustment | G14: =G11/G12*G38 -> 40 | H14: =H11/H12*H38 -> 50 | I14: 56.52173913 | J14: 36.36363636 | K14: 50 | L14: 100 | M14: 70.66666667 | N14: 71.33333333 | O14: 72 | P14: 72.66666667 | Q14: 0 | R14: 0 | S14: 0
D15: Debt IRR
B17: Debt Service Calculations
D18: Debt 2 - Interest Rate | G18: =LOOKUP(G10,3:3,5:5) -> 0.04 | H18: 0.04 | I18: 0.04 | J18: 0.04 | K18: 0.03 | L18: 0.03 | M18: 0.03 | N18: 0.03 | O18: 0.03 | P18: 0.03 | Q18: 0.03 | R18: 0.03 | S18: 0.03
D19: Flag | E19: =G5 -> 8 | G19: =G10<=$E19 -> TRUE | H19: TRUE | I19: TRUE | J19: TRUE | K19: TRUE | L19: TRUE | M19: TRUE | N19: TRUE | O19: FALSE | P19: FALSE | Q19: FALSE | R19: FALSE | S19: FALSE
D20: PV Factor | F20: 1 | G20: =F20*(1+G18) -> 1.04 | H20: =G20*(1+H18) -> 1.0816 | I20: 1.124864 | J20: 1.16985856 | K20: 1.204954317 | L20: 1.241102946 | M20: 1.278336035 | N20: 1.316686116 | O20: 1.356186699 | P20: 1.3968723 | Q20: 1.438778469 | R20: 1.481941823 | S20: 1.526400078
D21: Debt Service
D22: PV of Debt Service without Adustment | E22: =SUMPRODUCT(G21:S21/G20:S20) -> 0
D23: Target Debt | E23: =F5 -> 150
D24: Sculpting Ratio
D25: Debt Service Applied
D27: Debt 3 - Interest Rate | G27: =LOOKUP(G10,3:3,6:6) -> 0.02 | H27: 0.02 | I27: 0.02 | J27: 0.02 | K27: 0.05 | L27: 0.05 | M27: 0.05 | N27: 0.05 | O27: 0.05 | P27: 0.05 | Q27: 0.05 | R27: 0.05 | S27: 0.05
D28: Flag | E28: =G6 -> 6 | G28: =G10<=$E$28 -> TRUE | H28: TRUE | I28: TRUE | J28: TRUE | K28: TRUE | L28: TRUE | M28: FALSE | N28: FALSE | O28: FALSE | P28: FALSE | Q28: FALSE | R28: FALSE | S28: FALSE
D29: PV Factor | F29: 1 | G29: =F29*(1+G27) -> 1.02 | H29: =G29*(1+H27) -> 1.0404 | I29: 1.061208 | J29: 1.08243216 | K29: 1.136553768 | L29: 1.193381456 | M29: 1.253050529 | N29: 1.315703056 | O29: 1.381488208 | P29: 1.450562619 | Q29: 1.52309075 | R29: 1.599245287 | S29: 1.679207552
D30: Debt Service | G30: =G28*G14 -> 40 | H30: 50 | I30: 56.52173913 | J30: 36.36363636 | K30: 50 | L30: 100 | M30: 0 | N30: 0 | O30: 0 | P30: 0 | Q30: 0 | R30: 0 | S30: 0
D31: PV of Debt Service without Adustment | E31: =SUMPRODUCT(G30:S30/G29:S29) -> 301.9183445
D32: Target Debt | E32: =F6 -> 130
D33: Hedieh Sculpting Ratio | E33: =E32/E31 -> 0.4305799975
D34: Debt Service Applied | G34: =G30*$E$33 -> 17.2231999 | H34: =H30*$E$33 -> 21.52899987 | I34: 24.33713029 | J34: 15.65745445 | K34: 21.52899987 | L34: 43.05799975 | M34: 0 | N34: 0 | O34: 0 | P34: 0 | Q34: 0 | R34: 0 | S34: 0
D37: Debt 1 | G37: =LOOKUP(G10,3:3,4:4) -> 0.1 | H37: 0.1 | I37: 0.1 | J37: 0.1 | K37: 0.08 | L37: 0.08 | M37: 0.08 | N37: 0.08 | O37: 0.08 | P37: 0.08 | Q37: 0.08 | R37: 0.08 | S37: 0.08
D38: Flag | E38: =G4 -> 10 | G38: =G10<=$E38 -> TRUE | H38: TRUE | I38: TRUE | J38: TRUE | K38: TRUE | L38: TRUE | M38: TRUE | N38: TRUE | O38: TRUE | P38: TRUE | Q38: FALSE | R38: FALSE | S38: FALSE
D39: PV Factor | F39: 1 | G39: =F39*(1+G37) -> 1.1 | H39: =G39*(1+H37) -> 1.21 | I39: 1.331 | J39: 1.4641 | K39: 1.581228 | L39: 1.70772624 | M39: 1.844344339 | N39: 1.991891886 | O39: 2.151243237 | P39: 2.323342696 | Q39: 2.509210112 | R39: 2.709946921 | S39: 2.926742675
D40: Debt Service | G40: =G14*G38 -> 40 | H40: 50 | I40: 56.52173913 | J40: 36.36363636 | K40: 50 | L40: 100 | M40: 70.66666667 | N40: 71.33333333 | O40: 72 | P40: 72.66666667 | Q40: 0 | R40: 0 | S40: 0
D41: PV of Debt Service without Adustment | E41: =SUMPRODUCT(G40:S40/G39:S39) -> 374.0397869
D42: Target Debt | E42: =F4 -> 200
D43: Hedieh Sculpting Ratio | E43: =E42/E41 -> 0.5347024755
D44: Debt Service Applied
B46: Check
C47: Debt 1
D48: Opening | G48: =F50 -> 200 | H48: =G50 -> 220 | I48: 242 | J48: 266.2 | K48: 292.82 | L48: 316.2456 | M48: 341.545248 | N48: 368.8688678 | O48: 398.3783773 | P48: 430.2486474 | Q48: 464.6685392 | R48: 501.8420224 | S48: 541.9893842
D49: Repayment | G49: =MIN(G44-G51,G48) -> -20 | H49: =MIN(H44-H51,H48) -> -22 | I49: -24.2 | J49: -26.62 | K49: -23.4256 | L49: -25.299648 | M49: -27.32361984 | N49: -29.50950943 | O49: -31.87027018 | P49: -34.4198918 | Q49: -37.17348314 | R49: -40.14736179 | S49: -43.35915073
D50: Closing | F50: =E42 -> 200 | G50: =G48-G49 -> 220 | H50: =H48-H49 -> 242 | I50: 266.2 | J50: 292.82 | K50: 316.2456 | L50: 341.545248 | M50: 368.8688678 | N50: 398.3783773 | O50: 430.2486474 | P50: 464.6685392 | Q50: 501.8420224 | R50: 541.9893842 | S50: 585.3485349
D51: Intrest | G51: =G37*G48 -> 20 | H51: =H37*H48 -> 22 | I51: 24.2 | J51: 26.62 | K51: 23.4256 | L51: 25.299648 | M51: 27.32361984 | N51: 29.50950943 | O51: 31.87027018 | P51: 34.4198918 | Q51: 37.17348314 | R51: 40.14736179 | S51: 43.35915073
C53: Debt 2
D54: Opening | G54: =F56 -> 150 | H54: =G56 -> 156 | I54: 162.24 | J54: 168.7296 | K54: 175.478784 | L54: 180.7431475 | M54: 186.1654419 | N54: 191.7504052 | O54: 197.5029174 | P54: 203.4280049 | Q54: 209.530845 | R54: 215.8167704 | S54: 222.2912735
D55: Repayment | G55: =G25-G57 -> -6 | H55: =H25-H57 -> -6.24 | I55: -6.4896 | J55: -6.749184 | K55: -5.26436352 | L55: -5.422294426 | M55: -5.584963258 | N55: -5.752512156 | O55: -5.925087521 | P55: -6.102840146 | Q55: -6.285925351 | R55: -6.474503111 | S55: -6.668738205
D56: Closing | F56: =E23 -> 150 | G56: =G54-G55 -> 156 | H56: =H54-H55 -> 162.24 | I56: 168.7296 | J56: 175.478784 | K56: 180.7431475 | L56: 186.1654419 | M56: 191.7504052 | N56: 197.5029174 | O56: 203.4280049 | P56: 209.530845 | Q56: 215.8167704 | R56: 222.2912735 | S56: 228.9600117
D57: Intrest | G57: =G54*G18 -> 6 | H57: =H54*H18 -> 6.24 | I57: 6.4896 | J57: 6.749184 | K57: 5.26436352 | L57: 5.422294426 | M57: 5.584963258 | N57: 5.752512156 | O57: 5.925087521 | P57: 6.102840146 | Q57: 6.285925351 | R57: 6.474503111 | S57: 6.668738205
C60: Debt 3
D61: Opening | G61: =F63 -> 130 | H61: =G63 -> 115.3768001 | I61: 96.15533623 | J61: 73.74131266 | K61: 59.55868446 | L61: 41.00761881 | M61: 0 | N61: 0 | O61: 0 | P61: 0 | Q61: 0 | R61: 0 | S61: 0
D62: Repayment | G62: =G34-G64 -> 14.6231999 | H62: =H34-H64 -> 19.22146387 | I62: 22.41402357 | J62: 14.1826282 | K62: 18.55106565 | L62: 41.00761881 | M62: 0 | N62: 0 | O62: 0 | P62: 0 | Q62: 0 | R62: 0 | S62: 0
D63: Closing | F63: =E32 -> 130 | G63: =G61-G62 -> 115.3768001 | H63: =H61-H62 -> 96.15533623 | I63: 73.74131266 | J63: 59.55868446 | K63: 41.00761881 | L63: 0 | M63: 0 | N63: 0 | O63: 0 | P63: 0 | Q63: 0 | R63: 0 | S63: 0
D64: Intrest | G64: =G61*G27 -> 2.6 | H64: =H61*H27 -> 2.307536002 | I64: 1.923106725 | J64: 1.474826253 | K64: 2.977934223 | L64: 2.05038094 | M64: 0 | N64: 0 | O64: 0 | P64: 0 | Q64: 0 | R64: 0 | S64: 0
C66: DSCR
D68: CFADS | G68: =G11 -> 100 | H68: =H11 -> 120 | I68: 130 | J68: 80 | K68: 100 | L68: 150 | M68: 106 | N68: 107 | O68: 108 | P68: 109 | Q68: 110 | R68: 111 | S68: 112
D69: Debt Service | G69: =G64+G62+G57+G55+G51+G49 -> 17.2231999 | H69: =H64+H62+H57+H55+H51+H49 -> 21.52899987 | I69: 24.33713029 | J69: 15.65745445 | K69: 21.52899987 | L69: 43.05799975 | M69: 0 | N69: 0 | O69: 0 | P69: 0 | Q69: 0 | R69: 0 | S69: 0
D70: DSCR | G70: =IF(G69>0.1,G68/G69) -> 5.806122009 | H70: =IF(H69>0.1,H68/H69) -> 5.573877129 | I70: 5.341632248 | J70: 5.109387368 | K70: 4.644897607 | L70: 3.483673205 | M70: FALSE | N70: FALSE | O70: FALSE | P70: FALSE | Q70: FALSE | R70: FALSE | S70: FALSE
B72: Graph
G73: =G10 -> 1 | H73: =H10 -> 2 | I73: 3 | J73: 4 | K73: 5 | L73: 6 | M73: 7 | N73: 8 | O73: 9 | P73: 10 | Q73: 11 | R73: 12 | S73: 13
D74: Debt Service 1 | G74: =G44 -> 0 | H74: =H44 -> 0 | I74: 0 | J74: 0 | K74: 0 | L74: 0 | M74: 0 | N74: 0 | O74: 0 | P74: 0 | Q74: 0 | R74: 0 | S74: 0
D75: Debt Service 2 | G75: =G25 -> 0 | H75: =H25 -> 0 | I75: 0 | J75: 0 | K75: 0 | L75: 0 | M75: 0 | N75: 0 | O75: 0 | P75: 0 | Q75: 0 | R75: 0 | S75: 0
D76: Debt Service 3 | G76: =G34 -> 17.2231999 | H76: =H34 -> 21.52899987 | I76: 24.33713029 | J76: 15.65745445 | K76: 21.52899987 | L76: 43.05799975 | M76: 0 | N76: 0 | O76: 0 | P76: 0 | Q76: 0 | R76: 0 | S76: 0
D77: CFADS | G77: =G68-G74-G75-G76 -> 82.7768001 | H77: =H68-H74-H75-H76 -> 98.47100013 | I77: 105.6628697 | J77: 64.34254555 | K77: 78.47100013 | L77: 106.9420003 | M77: 106 | N77: 107 | O77: 108 | P77: 109 | Q77: 110 | R77: 111 | S77: 112

Sheet Steps
C4: 1. Run the interpolate lookup and goal seek with aggregate debt service
C5: for this, use the debt IRR and the shortest tenure
C7: 2. Get the Curved DSCR
C8: 3. Set the End Row to the Debt Tenor of the Shortest Issue
C11: 4. For the Non-Capture Issue, Use Same DSCR
C12: 4. For the Non-Capture Issue, Compute the PV of Debt Service
C13: 5. Compute a factor for the PV of Debt Service/Target Debt
C15: 6. Compute the Capture Debt Service
C18: Video Points
C20: Monster Model
C21: Basic Idea of UDF - Change Debt to Capital
C22: Inserting the UDF and interpreting the output
C23: Different options and become a monster
C24: Speed of Model
C26: Use Simple Model to Explain
C27: Use Basic Scenarios

Sheet CurvedSculpting
F3: 0 | G3: 1 | H3: 2 | I3: 3 | J3: 4 | K3: 5 | L3: 6 | M3: 7 | N3: 8 | O3: 9 | P3: 10 | Q3: 11 | R3: 12 | S3: 13 | T3: 14 | U3: 15 | V3: 16 | W3: 17 | X3: 18 | Y3: 19 | Z3: 20 | AA3: 21 | AB3: 22 | AC3: 23
D4: Debt Repayment Flag | E4: =MAX(F9:F10) -> 15 | G4: =G3<=$E$4 -> TRUE | H4: =H3<=$E$4 -> TRUE | I4: TRUE | J4: TRUE | K4: TRUE | L4: TRUE | M4: TRUE | N4: TRUE | O4: TRUE | P4: TRUE | Q4: TRUE | R4: TRUE | S4: TRUE | T4: TRUE | U4: TRUE | V4: FALSE | W4: FALSE | X4: FALSE | Y4: FALSE | Z4: FALSE | AA4: FALSE | AB4: FALSE | AC4: FALSE
D5: CFADS | E5: 0.02 | G5: 150 | H5: =G5*(1+$E$5) -> 153 | I5: =H5*(1+$E$5) -> 156.06 | J5: 159.1812 | K5: 162.364824 | L5: 165.6121205 | M5: 168.9243629 | N5: 172.3028501 | O5: 175.7489072 | P5: 179.2638853 | Q5: 182.849163 | R5: 186.5061463 | S5: 190.2362692 | T5: 194.0409946 | U5: 197.9218145 | V5: =U5*(1+$E$5) -> 201.8802507 | W5: =V5*(1+$E$5) -> 205.9178558 | X5: =W5*(1+$E$5) -> 210.0362129 | Y5: =X5*(1+$E$5) -> 214.2369371 | Z5: =Y5*(1+$E$5) -> 218.5216759 | AA5: =Z5*(1+$E$5) -> 222.8921094 | AB5: =AA5*(1+$E$5) -> 227.3499516 | AC5: =AB5*(1+$E$5) -> 231.8969506
B7: Inputs
F8: Tenor | G8: Fixed Debt | H8: Int Rate
D9: Issue 1 | F9: 15 | G9: 500 | H9: 0.1
D10: Issue 2 | F10: 10 | G10: 400 | H10: 0.03
B12: Step 1: Curved DSCR with Interpolate
D13: Start and End | G13: =G3 -> 1 | H13: =F10 -> 10
D14: DSCR Range | F14: Start_DSCR | G14: 2.47465399 | H14: =E17 -> 1.25
D16: Curved DSCR
D17: Aggregate DS | E17: 1.25
D18: Debt IRR | E18: =Fixed_Debt_IRR -> 0.07800398369
D20: Fixed Debt | F20: =G9+G10 -> 900
D21: PV DS | E21: =F39 -> 0.1 | F21: =F32+F43 -> 0
D22: Difference | G22: Dif_1
B24: Step 2: Capture Issue
D25: Issue 2 | E25: 0 | F25: =E25 * F$20 -> 0
D26: Tenure | E26: =F10 -> 10 | G26: =G3<=$E$26 -> TRUE | H26: =H3<=$E$26 -> TRUE | I26: =I3<=$E$26 -> TRUE | J26: =J3<=$E$26 -> TRUE | K26: =K3<=$E$26 -> TRUE | L26: =L3<=$E$26 -> TRUE | M26: =M3<=$E$26 -> TRUE | N26: =N3<=$E$26 -> TRUE | O26: =O3<=$E$26 -> TRUE | P26: =P3<=$E$26 -> TRUE | Q26: =Q3<=$E$26 -> FALSE | R26: =R3<=$E$26 -> FALSE | S26: =S3<=$E$26 -> FALSE | T26: =T3<=$E$26 -> FALSE | U26: =U3<=$E$26 -> FALSE | V26: =V3<=$E$26 -> FALSE | W26: =W3<=$E$26 -> FALSE | X26: =X3<=$E$26 -> FALSE | Y26: =Y3<=$E$26 -> FALSE | Z26: =Z3<=$E$26 -> FALSE | AA26: =AA3<=$E$26 -> FALSE | AB26: =AB3<=$E$26 -> FALSE | AC26: =AC3<=$E$26 -> FALSE
D28: Interest rate | G28: =H10 -> 0.03 | H28: =G28 -> 0.03 | I28: =H28 -> 0.03 | J28: 0.03 | K28: 0.03 | L28: 0.03 | M28: 0.03 | N28: 0.03 | O28: 0.03 | P28: 0.03 | Q28: 0.03 | R28: 0.03 | S28: 0.03 | T28: 0.03 | U28: 0.03 | V28: =U28 -> 0.03 | W28: =V28 -> 0.03 | X28: =W28 -> 0.03 | Y28: =X28 -> 0.03 | Z28: =Y28 -> 0.03 | AA28: =Z28 -> 0.03 | AB28: =AA28 -> 0.03 | AC28: =AB28 -> 0.03
D29: CFADS | G29: =G26*G5 -> 150 | H29: =H26*H5 -> 153 | I29: =I26*I5 -> 156.06 | J29: =J26*J5 -> 159.1812 | K29: =K26*K5 -> 162.364824 | L29: =L26*L5 -> 165.6121205 | M29: =M26*M5 -> 168.9243629 | N29: =N26*N5 -> 172.3028501 | O29: =O26*O5 -> 175.7489072 | P29: =P26*P5 -> 179.2638853 | Q29: =Q26*Q5 -> 0 | R29: =R26*R5 -> 0 | S29: =S26*S5 -> 0 | T29: =T26*T5 -> 0 | U29: =U26*U5 -> 0 | V29: =V26*V5 -> 0 | W29: =W26*W5 -> 0 | X29: =X26*X5 -> 0 | Y29: =Y26*Y5 -> 0 | Z29: =Z26*Z5 -> 0 | AA29: =AA26*AA5 -> 0 | AB29: =AB26*AB5 -> 0 | AC29: =AC26*AC5 -> 0
D30: Debt Service with Full DSCR
D31: PV of Debt Service | F31: =NPV(G28,G30:AC30) -> 0
D32: Fixed Debt
D33: Sculpting Ratio
D34: Debt Service Adjusted with Sculpting Ratio
B36: Step 3: Capture Issue
C37: =D38 -> Issue 1
D38: Issue 1
D39: Interest rate | F39: 0.1 | G39: =$F$39 -> 0.1 | H39: =$F$39 -> 0.1 | I39: 0.1 | J39: 0.1 | K39: 0.1 | L39: 0.1 | M39: 0.1 | N39: 0.1 | O39: 0.1 | P39: 0.1 | Q39: 0.1 | R39: 0.1 | S39: 0.1 | T39: 0.1 | U39: 0.1 | V39: 0.1 | W39: 0.1 | X39: 0.1 | Y39: 0.1 | Z39: 0.1 | AA39: 0.1 | AB39: 0.1 | AC39: 0.1
D40: =D38 -> Issue 1 | E40: =1 - E25 -> 1 | F40: =E40 * F20 -> 900
D42: Debt Service 1
D43: PV of CFADS | F43: =NPV(F39, G42:TU42) -> 0
D45: Debt Service 2 | G45: =G34 -> 0 | H45: =H34 -> 0 | I45: =I34 -> 0 | J45: =J34 -> 0 | K45: =K34 -> 0 | L45: =L34 -> 0 | M45: =M34 -> 0 | N45: =N34 -> 0 | O45: =O34 -> 0 | P45: =P34 -> 0 | Q45: =Q34 -> 0 | R45: =R34 -> 0 | S45: =S34 -> 0 | T45: =T34 -> 0 | U45: =U34 -> 0 | V45: =V34 -> 0 | W45: =W34 -> 0 | X45: =X34 -> 0 | Y45: =Y34 -> 0 | Z45: =Z34 -> 0 | AA45: =AA34 -> 0 | AB45: =AB34 -> 0 | AC45: =AC34 -> 0
D46: Total Debt Service | G46: =SUM(G42:G45) -> 0 | H46: =SUM(H42:H45) -> 0 | I46: 0 | J46: 0 | K46: 0 | L46: 0 | M46: 0 | N46: 0 | O46: 0 | P46: 0 | Q46: 0 | R46: 0 | S46: 0 | T46: 0 | U46: 0 | V46: =SUM(V42:V45) -> 0 | W46: 0 | X46: 0 | Y46: 0 | Z46: 0 | AA46: 0 | AB46: 0 | AC46: 0
D48: DSCR | G48: =G5/G46 ->  | H48: =H5/H46 ->  | I48: =I5/I46 ->  | J48: =J5/J46 ->  | K48: =K5/K46 ->  | L48: =L5/L46 ->  | M48: =M5/M46 ->  | N48: =N5/N46 ->  | O48: =O5/O46 ->  | P48: =P5/P46 ->  | Q48: =Q5/Q46 ->  | R48: =R5/R46 ->  | S48: =S5/S46 ->  | T48: =T5/T46 ->  | U48: =U5/U46 ->  | V48: =V5/V46 ->  | W48: =W5/W46 ->  | X48: =X5/X46 ->  | Y48: =Y5/Y46 ->  | Z48: =Z5/Z46 ->  | AA48: =AA5/AA46 ->  | AB48: =AB5/AB46 ->  | AC48: =AC5/AC46 -> 
B50: Debt IRR
D51: Total debt cash flow
D52: Debt IRR
D53: Fixed Debt IRR | E53: 0.07800398369
D54: Difference | E54: =E52-E53 -> -0.07800398369
B56: Graph
G57: =G3 -> 1 | H57: =H3 -> 2 | I57: 3 | J57: 4 | K57: 5 | L57: 6 | M57: 7 | N57: 8 | O57: 9 | P57: 10 | Q57: 11 | R57: 12 | S57: 13 | T57: 14 | U57: 15 | V57: 16 | W57: 17 | X57: 18 | Y57: 19 | Z57: 20 | AA57: 21 | AB57: 22 | AC57: 23
C58: Debt Service 1 | G58: =G34 -> 0 | H58: =H34 -> 0 | I58: 0 | J58: 0 | K58: 0 | L58: 0 | M58: 0 | N58: 0 | O58: 0 | P58: 0 | Q58: 0 | R58: 0 | S58: 0 | T58: 0 | U58: 0 | V58: 0 | W58: 0 | X58: 0 | Y58: 0 | Z58: 0 | AA58: 0 | AB58: 0 | AC58: 0
C59: Debt Service 2 | G59: =G42 -> 0 | H59: =H42 -> 0 | I59: 0 | J59: 0 | K59: 0 | L59: 0 | M59: 0 | N59: 0 | O59: 0 | P59: 0 | Q59: 0 | R59: 0 | S59: 0 | T59: 0 | U59: 0 | V59: 0 | W59: 0 | X59: 0 | Y59: 0 | Z59: 0 | AA59: 0 | AB59: 0 | AC59: 0
C60: CFADS | G60: =G5-G58-G59 -> 150 | H60: =H5-H58-H59 -> 153 | I60: =I5-I58-I59 -> 156.06 | J60: =J5-J58-J59 -> 159.1812 | K60: =K5-K58-K59 -> 162.364824 | L60: =L5-L58-L59 -> 165.6121205 | M60: =M5-M58-M59 -> 168.9243629 | N60: =N5-N58-N59 -> 172.3028501 | O60: =O5-O58-O59 -> 175.7489072 | P60: =P5-P58-P59 -> 179.2638853 | Q60: =Q5-Q58-Q59 -> 182.849163 | R60: =R5-R58-R59 -> 186.5061463 | S60: =S5-S58-S59 -> 190.2362692 | T60: =T5-T58-T59 -> 194.0409946 | U60: =U5-U58-U59 -> 197.9218145 | V60: =V5-V58-V59 -> 201.8802507 | W60: =W5-W58-W59 -> 205.9178558 | X60: =X5-X58-X59 -> 210.0362129 | Y60: =Y5-Y58-Y59 -> 214.2369371 | Z60: =Z5-Z58-Z59 -> 218.5216759 | AA60: =AA5-AA58-AA59 -> 222.8921094 | AB60: =AB5-AB58-AB59 -> 227.3499516 | AC60: =AC5-AC58-AC59 -> 231.8969506
F62: DSCR =CFADS/(DS1 + DS2) | I62: DS1 + DS2 =CFADS /DSCR | L62: DS1 =CFADS/DSCR - DS2

Sheet LLCR and PLCR
G1: 0 | H1: 1 | I1: 2 | J1: 3 | K1: 4 | L1: 5 | M1: 6 | N1: 7 | O1: 8 | P1: 9 | Q1: 10 | R1: 11 | S1: 12 | T1: 13 | U1: 14 | V1: 15
C3: DSCR | D3: % Reduction in Cash Flow for one period
C4: LLCR | D4: % Reduction over life of the loan (how low can cash flow reduce over life of loan and restructure)
C5: PLCR | D5: % Reduction over life of project(how low can go and still restructure)
H6: *(1-$E$50)
B7: Cash Flow and Debt Balance without Default
C8: Cash Flow | H8: 100 | I8: =H8 -> 100 | J8: =I8 -> 100 | K8: 100 | L8: 100 | M8: 100 | N8: 100 | O8: 100 | P8: 100 | Q8: 100 | R8: 100 | S8: 100 | T8: 100 | U8: 100 | V8: 100
C10: Debt Balance
C11: Opening Balance | H11: =G13 -> 600 | I11: =H13 -> 540 | J11: 480 | K11: 420 | L11: 360 | M11: 300 | N11: 240 | O11: 180 | P11: 120 | Q11: 60 | R11: 0 | S11: 0 | T11: 0 | U11: 0 | V11: 0
C12: Less: Repayment | H12: =MIN($G$13/10,H11) -> 60 | I12: =MIN($G$13/10,I11) -> 60 | J12: 60 | K12: 60 | L12: 60 | M12: 60 | N12: 60 | O12: 60 | P12: 60 | Q12: 60 | R12: 0 | S12: 0 | T12: 0 | U12: 0 | V12: 0
C13: Ending Balance | G13: 600 | H13: =H11-H12 -> 540 | I13: =I11-I12 -> 480 | J13: 420 | K13: 360 | L13: 300 | M13: 240 | N13: 180 | O13: 120 | P13: 60 | Q13: 0 | R13: 0 | S13: 0 | T13: 0 | U13: 0 | V13: 0
C14: Interest Expense | F14: 0.05 | H14: =H11*$F$14 -> 30 | I14: 27 | J14: 24 | K14: 21 | L14: 18 | M14: 15 | N14: 12 | O14: 9 | P14: 6 | Q14: 3 | R14: 0 | S14: 0 | T14: 0 | U14: 0 | V14: 0
B16: Defaulted Debt from Waterfall
C17: Opening Balance | H17: =G20 -> 0 | I17: =H20 -> 0 | J17: 0 | K17: 0 | L17: 0 | M17: 0 | N17: 0 | O17: 0 | P17: 0 | Q17: 0 | R17: 0 | S17: 0 | T17: 0 | U17: 0 | V17: 0
C18: Add Default
C19: Less Repayment of Default
C20: Closing Balance | H20: =H17+H18-H19 -> 0 | I20: =I17+I18-I19 -> 0 | J20: 0 | K20: 0 | L20: 0 | M20: 0 | N20: 0 | O20: 0 | P20: 0 | Q20: 0 | R20: 0 | S20: 0 | T20: 0 | U20: 0 | V20: 0
C21: Interest on Default | F21: 0.05 | H21: =H17*$F$21 -> 0 | I21: 0 | J21: 0 | K21: 0 | L21: 0 | M21: 0 | N21: 0 | O21: 0 | P21: 0 | Q21: 0 | R21: 0 | S21: 0 | T21: 0 | U21: 0 | V21: 0
B23: Cash Flow Waterfall
C24: Cash Flow | H24: =H8 -> 100 | I24: 100 | J24: 100 | K24: 100 | L24: 100 | M24: 100 | N24: 100 | O24: 100 | P24: 100 | Q24: 100 | R24: 100 | S24: 100 | T24: 100 | U24: 100 | V24: 100
C25: Less Scheduled Debt Service | H25: =H12+H14 -> 90 | I25: 87 | J25: 84 | K25: 81 | L25: 78 | M25: 75 | N25: 72 | O25: 69 | P25: 66 | Q25: 63 | R25: 0 | S25: 0 | T25: 0 | U25: 0 | V25: 0
C26: Less Interest on Default | H26: =H21 -> 0 | I26: 0 | J26: 0 | K26: 0 | L26: 0 | M26: 0 | N26: 0 | O26: 0 | P26: 0 | Q26: 0 | R26: 0 | S26: 0 | T26: 0 | U26: 0 | V26: 0
C27: Cash Flow post Debt Service | H27: =H24-H25-H26 -> 10 | I27: =I24-I25-I26 -> 13 | J27: 16 | K27: 19 | L27: 22 | M27: 25 | N27: 28 | O27: 31 | P27: 34 | Q27: 37 | R27: 100 | S27: 100 | T27: 100 | U27: 100 | V27: 100
C28: Add Default
C29: Less Repayment of Default
C30: Equity Cash Flow
B32: Ratios
D33: x | E33: Pct Cash Decline
C34: DSCR | D34: =MIN(H34:V34) -> 1.111111111 | E34: =(D34-1)/D34 -> 0.1 | H34: =IFERROR(H8/(H12+H14),FALSE) -> 1.111111111 | I34: 1.149425287 | J34: 1.19047619 | K34: 1.234567901 | L34: 1.282051282 | M34: 1.333333333 | N34: 1.388888889 | O34: 1.449275362 | P34: 1.515151515 | Q34: 1.587301587 | R34: FALSE | S34: FALSE | T34: FALSE | U34: FALSE | V34: FALSE
C36: LLCR | D36: =NPV(F14,H8:Q8)/G13 -> 1.286955822 | E36: =(D36-1)/D36 -> 0.2229725502 | G36: 0.2229725502
C38: PLCR | D38: =NPV(F21,H8:V8)/$G$13 -> 1.729943006 | E38: =(D38-1)/D38 -> 0.4219462743 | G38: 0.4219462743
